Workbook

Sheet Legende

Sheet Berechnung
A3: Schiffstyp | B3: Fahrttyp | C3: Start Binnenhafen | D3: Ziel Binnenhafen | E3: Ladungsgewicht [t] | F3: Entfernung [km] | G3: spez. Verbrauch [g/tkm] | H3: Gesamtverbrauch [kg Diesel] | I3: Gesamtverbrauch [l Diesel] | J3: Energieverbrauch TTW [MJ] | K3: Energieverbrauch WTW [MJ] | L3: CO2 TTW [kg] | M3: CO2 WTW [kg] | N3: CO2-Äquivalente TTW [kg] | O3: CO2-Äquivalente WTW [kg]
A4: Großmotorschiff | B4: Talfahrt | C4: Rotterdam | D4: Leverkusen | E4: 15 | F4: =IF(E4="","",VLOOKUP(INDEX(Binnenhäfen!$A$2:$A$501, MATCH(Berechnung!C4,Binnenhäfen!$B$2:$B$501,0))&"_"&INDEX(Binnenhäfen!$A$2:$A$501, MATCH(Berechnung!D4,Binnenhäfen!$B$2:$B$501,0)),Entfernung_Binnenhäfen!$C$2:$D$10001,2,FALSE)) -> 285 | G4: =IF(E4="","", VLOOKUP(INDEX(SchiffstypenID, MATCH(Berechnung!A4,Schiffstypen!$B$2:$B$4,0))&"_"&INDEX(FahrttypenID, MATCH(Berechnung!B4,Fahrttypen!$B$2:$B$5,0)),Energieverbrauch_Kennzahlen!$C$2:$D$10,2,FALSE)) -> 3.9 | H4: =IF(G4="","",PRODUCT(G4,F4,E4)/1000) -> 16.6725 | I4: =IF(H4="","",H4/Treibhausgas_Kennzahlen!$B$5) -> 20.0390625 | J4: =IF(H4="","",H4*Treibhausgas_Kennzahlen!B$9) -> 718.58475 | K4: =IF(H4="","",H4*Treibhausgas_Kennzahlen!C$9) -> 855.29925 | L4: =IF(H4="","",H4*Treibhausgas_Kennzahlen!D$9) -> 52.6851 | M4: =IF(H4="","",H4*Treibhausgas_Kennzahlen!E$9) -> 64.0224 | N4: =IF(H4="","",H4*Treibhausgas_Kennzahlen!F$9) -> 53.518725 | O4: =IF(H4="","",H4*Treibhausgas_Kennzahlen!G$9) -> 65.02275
A5: Großmotorschiff | B5: Bergfahrt | C5: Rotterdam | D5: Duisburg | E5: 10 | F5: =IF(E5="","",VLOOKUP(INDEX(Binnenhäfen!$A$2:$A$501, MATCH(Berechnung!C5,Binnenhäfen!$B$2:$B$501,0))&"_"&INDEX(Binnenhäfen!$A$2:$A$501, MATCH(Berechnung!D5,Binnenhäfen!$B$2:$B$501,0)),Entfernung_Binnenhäfen!$C$2:$D$10001,2,FALSE)) -> 225 | G5: =IF(E5="","", VLOOKUP(INDEX(SchiffstypenID, MATCH(Berechnung!A5,Schiffstypen!$B$2:$B$4,0))&"_"&INDEX(FahrttypenID, MATCH(Berechnung!B5,Fahrttypen!$B$2:$B$5,0)),Energieverbrauch_Kennzahlen!$C$2:$D$10,2,FALSE)) -> 7.5 | H5: =IF(G5="","",PRODUCT(G5,F5,E5)/1000) -> 16.875 | I5: =IF(H5="","",H5/Treibhausgas_Kennzahlen!$B$5) -> 20.28245192 | J5: =IF(H5="","",H5*Treibhausgas_Kennzahlen!B$9) -> 727.3125 | K5: =IF(H5="","",H5*Treibhausgas_Kennzahlen!C$9) -> 865.6875 | L5: =IF(H5="","",H5*Treibhausgas_Kennzahlen!D$9) -> 53.325 | M5: =IF(H5="","",H5*Treibhausgas_Kennzahlen!E$9) -> 64.8 | N5: =IF(H5="","",H5*Treibhausgas_Kennzahlen!F$9) -> 54.16875 | O5: =IF(H5="","",H5*Treibhausgas_Kennzahlen!G$9) -> 65.8125
A6: Jowi-Klasse | B6: Kanalfahrt | C6: Leverkusen | D6: Duisburg | E6: 10 | F6: =IF(E6="","",VLOOKUP(INDEX(Binnenhäfen!$A$2:$A$501, MATCH(Berechnung!C6,Binnenhäfen!$B$2:$B$501,0))&"_"&INDEX(Binnenhäfen!$A$2:$A$501, MATCH(Berechnung!D6,Binnenhäfen!$B$2:$B$501,0)),Entfernung_Binnenhäfen!$C$2:$D$10001,2,FALSE)) -> 72 | G6: =IF(E6="","", VLOOKUP(INDEX(SchiffstypenID, MATCH(Berechnung!A6,Schiffstypen!$B$2:$B$4,0))&"_"&INDEX(FahrttypenID, MATCH(Berechnung!B6,Fahrttypen!$B$2:$B$5,0)),Energieverbrauch_Kennzahlen!$C$2:$D$10,2,FALSE)) -> - | H6: 0.72 | I6: =IF(H6="","",H6/Treibhausgas_Kennzahlen!$B$5) -> 0.8653846154 | J6: =IF(H6="","",H6*Treibhausgas_Kennzahlen!B$9) -> 31.032 | K6: =IF(H6="","",H6*Treibhausgas_Kennzahlen!C$9) -> 36.936 | L6: =IF(H6="","",H6*Treibhausgas_Kennzahlen!D$9) -> 2.2752 | M6: =IF(H6="","",H6*Treibhausgas_Kennzahlen!E$9) -> 2.7648 | N6: =IF(H6="","",H6*Treibhausgas_Kennzahlen!F$9) -> 2.3112 | O6: =IF(H6="","",H6*Treibhausgas_Kennzahlen!G$9) -> 2.808
A7: Europaschiff | B7: Talfahrt | C7: Leverkusen | D7: Duisburg | E7: 5 | F7: =IF(E7="","",VLOOKUP(INDEX(Binnenhäfen!$A$2:$A$501, MATCH(Berechnung!C7,Binnenhäfen!$B$2:$B$501,0))&"_"&INDEX(Binnenhäfen!$A$2:$A$501, MATCH(Berechnung!D7,Binnenhäfen!$B$2:$B$501,0)),Entfernung_Binnenhäfen!$C$2:$D$10001,2,FALSE)) -> 72 | G7: =IF(E7="","", VLOOKUP(INDEX(SchiffstypenID, MATCH(Berechnung!A7,Schiffstypen!$B$2:$B$4,0))&"_"&INDEX(FahrttypenID, MATCH(Berechnung!B7,Fahrttypen!$B$2:$B$5,0)),Energieverbrauch_Kennzahlen!$C$2:$D$10,2,FALSE)) -> 8.3 | H7: =IF(G7="","",PRODUCT(G7,F7,E7)/1000) -> 2.988 | I7: =IF(H7="","",H7/Treibhausgas_Kennzahlen!$B$5) -> 3.591346154 | J7: =IF(H7="","",H7*Treibhausgas_Kennzahlen!B$9) -> 128.7828 | K7: =IF(H7="","",H7*Treibhausgas_Kennzahlen!C$9) -> 153.2844 | L7: =IF(H7="","",H7*Treibhausgas_Kennzahlen!D$9) -> 9.44208 | M7: =IF(H7="","",H7*Treibhausgas_Kennzahlen!E$9) -> 11.47392 | N7: =IF(H7="","",H7*Treibhausgas_Kennzahlen!F$9) -> 9.59148 | O7: =IF(H7="","",H7*Treibhausgas_Kennzahlen!G$9) -> 11.6532
F8: =IF(E8="","",VLOOKUP(INDEX(Binnenhäfen!$A$2:$A$501, MATCH(Berechnung!C8,Binnenhäfen!$B$2:$B$501,0))&"_"&INDEX(Binnenhäfen!$A$2:$A$501, MATCH(Berechnung!D8,Binnenhäfen!$B$2:$B$501,0)),Entfernung_Binnenhäfen!$C$2:$D$10001,2,FALSE)) ->  | G8: =IF(E8="","", VLOOKUP(INDEX(SchiffstypenID, MATCH(Berechnung!A8,Schiffstypen!$B$2:$B$4,0))&"_"&INDEX(FahrttypenID, MATCH(Berechnung!B8,Fahrttypen!$B$2:$B$5,0)),Energieverbrauch_Kennzahlen!$C$2:$D$10,2,FALSE)) ->  | I8: =IF(H8="","",H8/Treibhausgas_Kennzahlen!$B$5) ->  | J8: =IF(H8="","",H8*Treibhausgas_Kennzahlen!B$9) ->  | K8: =IF(H8="","",H8*Treibhausgas_Kennzahlen!C$9) ->  | L8: =IF(H8="","",H8*Treibhausgas_Kennzahlen!D$9) ->  | M8: =IF(H8="","",H8*Treibhausgas_Kennzahlen!E$9) ->  | N8: =IF(H8="","",H8*Treibhausgas_Kennzahlen!F$9) ->  | O8: =IF(H8="","",H8*Treibhausgas_Kennzahlen!G$9) -> 
F9: =IF(E9="","",VLOOKUP(INDEX(Binnenhäfen!$A$2:$A$501, MATCH(Berechnung!C9,Binnenhäfen!$B$2:$B$501,0))&"_"&INDEX(Binnenhäfen!$A$2:$A$501, MATCH(Berechnung!D9,Binnenhäfen!$B$2:$B$501,0)),Entfernung_Binnenhäfen!$C$2:$D$10001,2,FALSE)) ->  | G9: =IF(E9="","", VLOOKUP(INDEX(SchiffstypenID, MATCH(Berechnung!A9,Schiffstypen!$B$2:$B$4,0))&"_"&INDEX(FahrttypenID, MATCH(Berechnung!B9,Fahrttypen!$B$2:$B$5,0)),Energieverbrauch_Kennzahlen!$C$2:$D$10,2,FALSE)) ->  | I9: =IF(H9="","",H9/Treibhausgas_Kennzahlen!$B$5) ->  | J9: =IF(H9="","",H9*Treibhausgas_Kennzahlen!B$9) ->  | K9: =IF(H9="","",H9*Treibhausgas_Kennzahlen!C$9) ->  | L9: =IF(H9="","",H9*Treibhausgas_Kennzahlen!D$9) ->  | M9: =IF(H9="","",H9*Treibhausgas_Kennzahlen!E$9) ->  | N9: =IF(H9="","",H9*Treibhausgas_Kennzahlen!F$9) ->  | O9: =IF(H9="","",H9*Treibhausgas_Kennzahlen!G$9) -> 
F10: =IF(E10="","",VLOOKUP(INDEX(Binnenhäfen!$A$2:$A$501, MATCH(Berechnung!C10,Binnenhäfen!$B$2:$B$501,0))&"_"&INDEX(Binnenhäfen!$A$2:$A$501, MATCH(Berechnung!D10,Binnenhäfen!$B$2:$B$501,0)),Entfernung_Binnenhäfen!$C$2:$D$10001,2,FALSE)) ->  | G10: =IF(E10="","", VLOOKUP(INDEX(SchiffstypenID, MATCH(Berechnung!A10,Schiffstypen!$B$2:$B$4,0))&"_"&INDEX(FahrttypenID, MATCH(Berechnung!B10,Fahrttypen!$B$2:$B$5,0)),Energieverbrauch_Kennzahlen!$C$2:$D$10,2,FALSE)) ->  | I10: =IF(H10="","",H10/Treibhausgas_Kennzahlen!$B$5) ->  | J10: =IF(H10="","",H10*Treibhausgas_Kennzahlen!B$9) ->  | K10: =IF(H10="","",H10*Treibhausgas_Kennzahlen!C$9) ->  | L10: =IF(H10="","",H10*Treibhausgas_Kennzahlen!D$9) ->  | M10: =IF(H10="","",H10*Treibhausgas_Kennzahlen!E$9) ->  | N10: =IF(H10="","",H10*Treibhausgas_Kennzahlen!F$9) ->  | O10: =IF(H10="","",H10*Treibhausgas_Kennzahlen!G$9) -> 
F11: =IF(E11="","",VLOOKUP(INDEX(Binnenhäfen!$A$2:$A$501, MATCH(Berechnung!C11,Binnenhäfen!$B$2:$B$501,0))&"_"&INDEX(Binnenhäfen!$A$2:$A$501, MATCH(Berechnung!D11,Binnenhäfen!$B$2:$B$501,0)),Entfernung_Binnenhäfen!$C$2:$D$10001,2,FALSE)) ->  | G11: =IF(E11="","", VLOOKUP(INDEX(SchiffstypenID, MATCH(Berechnung!A11,Schiffstypen!$B$2:$B$4,0))&"_"&INDEX(FahrttypenID, MATCH(Berechnung!B11,Fahrttypen!$B$2:$B$5,0)),Energieverbrauch_Kennzahlen!$C$2:$D$10,2,FALSE)) ->  | I11: =IF(H11="","",H11/Treibhausgas_Kennzahlen!$B$5) ->  | J11: =IF(H11="","",H11*Treibhausgas_Kennzahlen!B$9) ->  | K11: =IF(H11="","",H11*Treibhausgas_Kennzahlen!C$9) ->  | L11: =IF(H11="","",H11*Treibhausgas_Kennzahlen!D$9) ->  | M11: =IF(H11="","",H11*Treibhausgas_Kennzahlen!E$9) ->  | N11: =IF(H11="","",H11*Treibhausgas_Kennzahlen!F$9) ->  | O11: =IF(H11="","",H11*Treibhausgas_Kennzahlen!G$9) -> 
F12: =IF(E12="","",VLOOKUP(INDEX(Binnenhäfen!$A$2:$A$501, MATCH(Berechnung!C12,Binnenhäfen!$B$2:$B$501,0))&"_"&INDEX(Binnenhäfen!$A$2:$A$501, MATCH(Berechnung!D12,Binnenhäfen!$B$2:$B$501,0)),Entfernung_Binnenhäfen!$C$2:$D$10001,2,FALSE)) ->  | G12: =IF(E12="","", VLOOKUP(INDEX(SchiffstypenID, MATCH(Berechnung!A12,Schiffstypen!$B$2:$B$4,0))&"_"&INDEX(FahrttypenID, MATCH(Berechnung!B12,Fahrttypen!$B$2:$B$5,0)),Energieverbrauch_Kennzahlen!$C$2:$D$10,2,FALSE)) ->  | I12: =IF(H12="","",H12/Treibhausgas_Kennzahlen!$B$5) ->  | J12: =IF(H12="","",H12*Treibhausgas_Kennzahlen!B$9) ->  | K12: =IF(H12="","",H12*Treibhausgas_Kennzahlen!C$9) ->  | L12: =IF(H12="","",H12*Treibhausgas_Kennzahlen!D$9) ->  | M12: =IF(H12="","",H12*Treibhausgas_Kennzahlen!E$9) ->  | N12: =IF(H12="","",H12*Treibhausgas_Kennzahlen!F$9) ->  | O12: =IF(H12="","",H12*Treibhausgas_Kennzahlen!G$9) -> 
F13: =IF(E13="","",VLOOKUP(INDEX(Binnenhäfen!$A$2:$A$501, MATCH(Berechnung!C13,Binnenhäfen!$B$2:$B$501,0))&"_"&INDEX(Binnenhäfen!$A$2:$A$501, MATCH(Berechnung!D13,Binnenhäfen!$B$2:$B$501,0)),Entfernung_Binnenhäfen!$C$2:$D$10001,2,FALSE)) ->  | G13: =IF(E13="","", VLOOKUP(INDEX(SchiffstypenID, MATCH(Berechnung!A13,Schiffstypen!$B$2:$B$4,0))&"_"&INDEX(FahrttypenID, MATCH(Berechnung!B13,Fahrttypen!$B$2:$B$5,0)),Energieverbrauch_Kennzahlen!$C$2:$D$10,2,FALSE)) ->  | I13: =IF(H13="","",H13/Treibhausgas_Kennzahlen!$B$5) ->  | J13: =IF(H13="","",H13*Treibhausgas_Kennzahlen!B$9) ->  | K13: =IF(H13="","",H13*Treibhausgas_Kennzahlen!C$9) ->  | L13: =IF(H13="","",H13*Treibhausgas_Kennzahlen!D$9) ->  | M13: =IF(H13="","",H13*Treibhausgas_Kennzahlen!E$9) ->  | N13: =IF(H13="","",H13*Treibhausgas_Kennzahlen!F$9) ->  | O13: =IF(H13="","",H13*Treibhausgas_Kennzahlen!G$9) -> 
F14: =IF(E14="","",VLOOKUP(INDEX(Binnenhäfen!$A$2:$A$501, MATCH(Berechnung!C14,Binnenhäfen!$B$2:$B$501,0))&"_"&INDEX(Binnenhäfen!$A$2:$A$501, MATCH(Berechnung!D14,Binnenhäfen!$B$2:$B$501,0)),Entfernung_Binnenhäfen!$C$2:$D$10001,2,FALSE)) ->  | G14: =IF(E14="","", VLOOKUP(INDEX(SchiffstypenID, MATCH(Berechnung!A14,Schiffstypen!$B$2:$B$4,0))&"_"&INDEX(FahrttypenID, MATCH(Berechnung!B14,Fahrttypen!$B$2:$B$5,0)),Energieverbrauch_Kennzahlen!$C$2:$D$10,2,FALSE)) ->  | I14: =IF(H14="","",H14/Treibhausgas_Kennzahlen!$B$5) ->  | J14: =IF(H14="","",H14*Treibhausgas_Kennzahlen!B$9) ->  | K14: =IF(H14="","",H14*Treibhausgas_Kennzahlen!C$9) ->  | L14: =IF(H14="","",H14*Treibhausgas_Kennzahlen!D$9) ->  | M14: =IF(H14="","",H14*Treibhausgas_Kennzahlen!E$9) ->  | N14: =IF(H14="","",H14*Treibhausgas_Kennzahlen!F$9) ->  | O14: =IF(H14="","",H14*Treibhausgas_Kennzahlen!G$9) -> 
F15: =IF(E15="","",VLOOKUP(INDEX(Binnenhäfen!$A$2:$A$501, MATCH(Berechnung!C15,Binnenhäfen!$B$2:$B$501,0))&"_"&INDEX(Binnenhäfen!$A$2:$A$501, MATCH(Berechnung!D15,Binnenhäfen!$B$2:$B$501,0)),Entfernung_Binnenhäfen!$C$2:$D$10001,2,FALSE)) ->  | G15: =IF(E15="","", VLOOKUP(INDEX(SchiffstypenID, MATCH(Berechnung!A15,Schiffstypen!$B$2:$B$4,0))&"_"&INDEX(FahrttypenID, MATCH(Berechnung!B15,Fahrttypen!$B$2:$B$5,0)),Energieverbrauch_Kennzahlen!$C$2:$D$10,2,FALSE)) ->  | I15: =IF(H15="","",H15/Treibhausgas_Kennzahlen!$B$5) ->  | J15: =IF(H15="","",H15*Treibhausgas_Kennzahlen!B$9) ->  | K15: =IF(H15="","",H15*Treibhausgas_Kennzahlen!C$9) ->  | L15: =IF(H15="","",H15*Treibhausgas_Kennzahlen!D$9) ->  | M15: =IF(H15="","",H15*Treibhausgas_Kennzahlen!E$9) ->  | N15: =IF(H15="","",H15*Treibhausgas_Kennzahlen!F$9) ->  | O15: =IF(H15="","",H15*Treibhausgas_Kennzahlen!G$9) -> 
F16: =IF(E16="","",VLOOKUP(INDEX(Binnenhäfen!$A$2:$A$501, MATCH(Berechnung!C16,Binnenhäfen!$B$2:$B$501,0))&"_"&INDEX(Binnenhäfen!$A$2:$A$501, MATCH(Berechnung!D16,Binnenhäfen!$B$2:$B$501,0)),Entfernung_Binnenhäfen!$C$2:$D$10001,2,FALSE)) ->  | G16: =IF(E16="","", VLOOKUP(INDEX(SchiffstypenID, MATCH(Berechnung!A16,Schiffstypen!$B$2:$B$4,0))&"_"&INDEX(FahrttypenID, MATCH(Berechnung!B16,Fahrttypen!$B$2:$B$5,0)),Energieverbrauch_Kennzahlen!$C$2:$D$10,2,FALSE)) ->  | I16: =IF(H16="","",H16/Treibhausgas_Kennzahlen!$B$5) ->  | J16: =IF(H16="","",H16*Treibhausgas_Kennzahlen!B$9) ->  | K16: =IF(H16="","",H16*Treibhausgas_Kennzahlen!C$9) ->  | L16: =IF(H16="","",H16*Treibhausgas_Kennzahlen!D$9) ->  | M16: =IF(H16="","",H16*Treibhausgas_Kennzahlen!E$9) ->  | N16: =IF(H16="","",H16*Treibhausgas_Kennzahlen!F$9) ->  | O16: =IF(H16="","",H16*Treibhausgas_Kennzahlen!G$9) -> 
F17: =IF(E17="","",VLOOKUP(INDEX(Binnenhäfen!$A$2:$A$501, MATCH(Berechnung!C17,Binnenhäfen!$B$2:$B$501,0))&"_"&INDEX(Binnenhäfen!$A$2:$A$501, MATCH(Berechnung!D17,Binnenhäfen!$B$2:$B$501,0)),Entfernung_Binnenhäfen!$C$2:$D$10001,2,FALSE)) ->  | G17: =IF(E17="","", VLOOKUP(INDEX(SchiffstypenID, MATCH(Berechnung!A17,Schiffstypen!$B$2:$B$4,0))&"_"&INDEX(FahrttypenID, MATCH(Berechnung!B17,Fahrttypen!$B$2:$B$5,0)),Energieverbrauch_Kennzahlen!$C$2:$D$10,2,FALSE)) ->  | I17: =IF(H17="","",H17/Treibhausgas_Kennzahlen!$B$5) ->  | J17: =IF(H17="","",H17*Treibhausgas_Kennzahlen!B$9) ->  | K17: =IF(H17="","",H17*Treibhausgas_Kennzahlen!C$9) ->  | L17: =IF(H17="","",H17*Treibhausgas_Kennzahlen!D$9) ->  | M17: =IF(H17="","",H17*Treibhausgas_Kennzahlen!E$9) ->  | N17: =IF(H17="","",H17*Treibhausgas_Kennzahlen!F$9) ->  | O17: =IF(H17="","",H17*Treibhausgas_Kennzahlen!G$9) -> 
F18: =IF(E18="","",VLOOKUP(INDEX(Binnenhäfen!$A$2:$A$501, MATCH(Berechnung!C18,Binnenhäfen!$B$2:$B$501,0))&"_"&INDEX(Binnenhäfen!$A$2:$A$501, MATCH(Berechnung!D18,Binnenhäfen!$B$2:$B$501,0)),Entfernung_Binnenhäfen!$C$2:$D$10001,2,FALSE)) ->  | G18: =IF(E18="","", VLOOKUP(INDEX(SchiffstypenID, MATCH(Berechnung!A18,Schiffstypen!$B$2:$B$4,0))&"_"&INDEX(FahrttypenID, MATCH(Berechnung!B18,Fahrttypen!$B$2:$B$5,0)),Energieverbrauch_Kennzahlen!$C$2:$D$10,2,FALSE)) ->  | I18: =IF(H18="","",H18/Treibhausgas_Kennzahlen!$B$5) ->  | J18: =IF(H18="","",H18*Treibhausgas_Kennzahlen!B$9) ->  | K18: =IF(H18="","",H18*Treibhausgas_Kennzahlen!C$9) ->  | L18: =IF(H18="","",H18*Treibhausgas_Kennzahlen!D$9) ->  | M18: =IF(H18="","",H18*Treibhausgas_Kennzahlen!E$9) ->  | N18: =IF(H18="","",H18*Treibhausgas_Kennzahlen!F$9) ->  | O18: =IF(H18="","",H18*Treibhausgas_Kennzahlen!G$9) -> 
F19: =IF(E19="","",VLOOKUP(INDEX(Binnenhäfen!$A$2:$A$501, MATCH(Berechnung!C19,Binnenhäfen!$B$2:$B$501,0))&"_"&INDEX(Binnenhäfen!$A$2:$A$501, MATCH(Berechnung!D19,Binnenhäfen!$B$2:$B$501,0)),Entfernung_Binnenhäfen!$C$2:$D$10001,2,FALSE)) ->  | G19: =IF(E19="","", VLOOKUP(INDEX(SchiffstypenID, MATCH(Berechnung!A19,Schiffstypen!$B$2:$B$4,0))&"_"&INDEX(FahrttypenID, MATCH(Berechnung!B19,Fahrttypen!$B$2:$B$5,0)),Energieverbrauch_Kennzahlen!$C$2:$D$10,2,FALSE)) ->  | I19: =IF(H19="","",H19/Treibhausgas_Kennzahlen!$B$5) ->  | J19: =IF(H19="","",H19*Treibhausgas_Kennzahlen!B$9) ->  | K19: =IF(H19="","",H19*Treibhausgas_Kennzahlen!C$9) ->  | L19: =IF(H19="","",H19*Treibhausgas_Kennzahlen!D$9) ->  | M19: =IF(H19="","",H19*Treibhausgas_Kennzahlen!E$9) ->  | N19: =IF(H19="","",H19*Treibhausgas_Kennzahlen!F$9) ->  | O19: =IF(H19="","",H19*Treibhausgas_Kennzahlen!G$9) -> 
F20: =IF(E20="","",VLOOKUP(INDEX(Binnenhäfen!$A$2:$A$501, MATCH(Berechnung!C20,Binnenhäfen!$B$2:$B$501,0))&"_"&INDEX(Binnenhäfen!$A$2:$A$501, MATCH(Berechnung!D20,Binnenhäfen!$B$2:$B$501,0)),Entfernung_Binnenhäfen!$C$2:$D$10001,2,FALSE)) ->  | G20: =IF(E20="","", VLOOKUP(INDEX(SchiffstypenID, MATCH(Berechnung!A20,Schiffstypen!$B$2:$B$4,0))&"_"&INDEX(FahrttypenID, MATCH(Berechnung!B20,Fahrttypen!$B$2:$B$5,0)),Energieverbrauch_Kennzahlen!$C$2:$D$10,2,FALSE)) ->  | I20: =IF(H20="","",H20/Treibhausgas_Kennzahlen!$B$5) ->  | J20: =IF(H20="","",H20*Treibhausgas_Kennzahlen!B$9) ->  | K20: =IF(H20="","",H20*Treibhausgas_Kennzahlen!C$9) ->  | L20: =IF(H20="","",H20*Treibhausgas_Kennzahlen!D$9) ->  | M20: =IF(H20="","",H20*Treibhausgas_Kennzahlen!E$9) ->  | N20: =IF(H20="","",H20*Treibhausgas_Kennzahlen!F$9) ->  | O20: =IF(H20="","",H20*Treibhausgas_Kennzahlen!G$9) -> 
F21: =IF(E21="","",VLOOKUP(INDEX(Binnenhäfen!$A$2:$A$501, MATCH(Berechnung!C21,Binnenhäfen!$B$2:$B$501,0))&"_"&INDEX(Binnenhäfen!$A$2:$A$501, MATCH(Berechnung!D21,Binnenhäfen!$B$2:$B$501,0)),Entfernung_Binnenhäfen!$C$2:$D$10001,2,FALSE)) ->  | G21: =IF(E21="","", VLOOKUP(INDEX(SchiffstypenID, MATCH(Berechnung!A21,Schiffstypen!$B$2:$B$4,0))&"_"&INDEX(FahrttypenID, MATCH(Berechnung!B21,Fahrttypen!$B$2:$B$5,0)),Energieverbrauch_Kennzahlen!$C$2:$D$10,2,FALSE)) ->  | I21: =IF(H21="","",H21/Treibhausgas_Kennzahlen!$B$5) ->  | J21: =IF(H21="","",H21*Treibhausgas_Kennzahlen!B$9) ->  | K21: =IF(H21="","",H21*Treibhausgas_Kennzahlen!C$9) ->  | L21: =IF(H21="","",H21*Treibhausgas_Kennzahlen!D$9) ->  | M21: =IF(H21="","",H21*Treibhausgas_Kennzahlen!E$9) ->  | N21: =IF(H21="","",H21*Treibhausgas_Kennzahlen!F$9) ->  | O21: =IF(H21="","",H21*Treibhausgas_Kennzahlen!G$9) -> 
F22: =IF(E22="","",VLOOKUP(INDEX(Binnenhäfen!$A$2:$A$501, MATCH(Berechnung!C22,Binnenhäfen!$B$2:$B$501,0))&"_"&INDEX(Binnenhäfen!$A$2:$A$501, MATCH(Berechnung!D22,Binnenhäfen!$B$2:$B$501,0)),Entfernung_Binnenhäfen!$C$2:$D$10001,2,FALSE)) ->  | G22: =IF(E22="","", VLOOKUP(INDEX(SchiffstypenID, MATCH(Berechnung!A22,Schiffstypen!$B$2:$B$4,0))&"_"&INDEX(FahrttypenID, MATCH(Berechnung!B22,Fahrttypen!$B$2:$B$5,0)),Energieverbrauch_Kennzahlen!$C$2:$D$10,2,FALSE)) ->  | I22: =IF(H22="","",H22/Treibhausgas_Kennzahlen!$B$5) ->  | J22: =IF(H22="","",H22*Treibhausgas_Kennzahlen!B$9) ->  | K22: =IF(H22="","",H22*Treibhausgas_Kennzahlen!C$9) ->  | L22: =IF(H22="","",H22*Treibhausgas_Kennzahlen!D$9) ->  | M22: =IF(H22="","",H22*Treibhausgas_Kennzahlen!E$9) ->  | N22: =IF(H22="","",H22*Treibhausgas_Kennzahlen!F$9) ->  | O22: =IF(H22="","",H22*Treibhausgas_Kennzahlen!G$9) -> 
F23: =IF(E23="","",VLOOKUP(INDEX(Binnenhäfen!$A$2:$A$501, MATCH(Berechnung!C23,Binnenhäfen!$B$2:$B$501,0))&"_"&INDEX(Binnenhäfen!$A$2:$A$501, MATCH(Berechnung!D23,Binnenhäfen!$B$2:$B$501,0)),Entfernung_Binnenhäfen!$C$2:$D$10001,2,FALSE)) ->  | G23: =IF(E23="","", VLOOKUP(INDEX(SchiffstypenID, MATCH(Berechnung!A23,Schiffstypen!$B$2:$B$4,0))&"_"&INDEX(FahrttypenID, MATCH(Berechnung!B23,Fahrttypen!$B$2:$B$5,0)),Energieverbrauch_Kennzahlen!$C$2:$D$10,2,FALSE)) ->  | I23: =IF(H23="","",H23/Treibhausgas_Kennzahlen!$B$5) ->  | J23: =IF(H23="","",H23*Treibhausgas_Kennzahlen!B$9) ->  | K23: =IF(H23="","",H23*Treibhausgas_Kennzahlen!C$9) ->  | L23: =IF(H23="","",H23*Treibhausgas_Kennzahlen!D$9) ->  | M23: =IF(H23="","",H23*Treibhausgas_Kennzahlen!E$9) ->  | N23: =IF(H23="","",H23*Treibhausgas_Kennzahlen!F$9) ->  | O23: =IF(H23="","",H23*Treibhausgas_Kennzahlen!G$9) -> 
F24: =IF(E24="","",VLOOKUP(INDEX(Binnenhäfen!$A$2:$A$501, MATCH(Berechnung!C24,Binnenhäfen!$B$2:$B$501,0))&"_"&INDEX(Binnenhäfen!$A$2:$A$501, MATCH(Berechnung!D24,Binnenhäfen!$B$2:$B$501,0)),Entfernung_Binnenhäfen!$C$2:$D$10001,2,FALSE)) ->  | G24: =IF(E24="","", VLOOKUP(INDEX(SchiffstypenID, MATCH(Berechnung!A24,Schiffstypen!$B$2:$B$4,0))&"_"&INDEX(FahrttypenID, MATCH(Berechnung!B24,Fahrttypen!$B$2:$B$5,0)),Energieverbrauch_Kennzahlen!$C$2:$D$10,2,FALSE)) ->  | I24: =IF(H24="","",H24/Treibhausgas_Kennzahlen!$B$5) ->  | J24: =IF(H24="","",H24*Treibhausgas_Kennzahlen!B$9) ->  | K24: =IF(H24="","",H24*Treibhausgas_Kennzahlen!C$9) ->  | L24: =IF(H24="","",H24*Treibhausgas_Kennzahlen!D$9) ->  | M24: =IF(H24="","",H24*Treibhausgas_Kennzahlen!E$9) ->  | N24: =IF(H24="","",H24*Treibhausgas_Kennzahlen!F$9) ->  | O24: =IF(H24="","",H24*Treibhausgas_Kennzahlen!G$9) -> 
F25: =IF(E25="","",VLOOKUP(INDEX(Binnenhäfen!$A$2:$A$501, MATCH(Berechnung!C25,Binnenhäfen!$B$2:$B$501,0))&"_"&INDEX(Binnenhäfen!$A$2:$A$501, MATCH(Berechnung!D25,Binnenhäfen!$B$2:$B$501,0)),Entfernung_Binnenhäfen!$C$2:$D$10001,2,FALSE)) ->  | G25: =IF(E25="","", VLOOKUP(INDEX(SchiffstypenID, MATCH(Berechnung!A25,Schiffstypen!$B$2:$B$4,0))&"_"&INDEX(FahrttypenID, MATCH(Berechnung!B25,Fahrttypen!$B$2:$B$5,0)),Energieverbrauch_Kennzahlen!$C$2:$D$10,2,FALSE)) ->  | I25: =IF(H25="","",H25/Treibhausgas_Kennzahlen!$B$5) ->  | J25: =IF(H25="","",H25*Treibhausgas_Kennzahlen!B$9) ->  | K25: =IF(H25="","",H25*Treibhausgas_Kennzahlen!C$9) ->  | L25: =IF(H25="","",H25*Treibhausgas_Kennzahlen!D$9) ->  | M25: =IF(H25="","",H25*Treibhausgas_Kennzahlen!E$9) ->  | N25: =IF(H25="","",H25*Treibhausgas_Kennzahlen!F$9) ->  | O25: =IF(H25="","",H25*Treibhausgas_Kennzahlen!G$9) -> 
F26: =IF(E26="","",VLOOKUP(INDEX(Binnenhäfen!$A$2:$A$501, MATCH(Berechnung!C26,Binnenhäfen!$B$2:$B$501,0))&"_"&INDEX(Binnenhäfen!$A$2:$A$501, MATCH(Berechnung!D26,Binnenhäfen!$B$2:$B$501,0)),Entfernung_Binnenhäfen!$C$2:$D$10001,2,FALSE)) ->  | G26: =IF(E26="","", VLOOKUP(INDEX(SchiffstypenID, MATCH(Berechnung!A26,Schiffstypen!$B$2:$B$4,0))&"_"&INDEX(FahrttypenID, MATCH(Berechnung!B26,Fahrttypen!$B$2:$B$5,0)),Energieverbrauch_Kennzahlen!$C$2:$D$10,2,FALSE)) ->  | I26: =IF(H26="","",H26/Treibhausgas_Kennzahlen!$B$5) ->  | J26: =IF(H26="","",H26*Treibhausgas_Kennzahlen!B$9) ->  | K26: =IF(H26="","",H26*Treibhausgas_Kennzahlen!C$9) ->  | L26: =IF(H26="","",H26*Treibhausgas_Kennzahlen!D$9) ->  | M26: =IF(H26="","",H26*Treibhausgas_Kennzahlen!E$9) ->  | N26: =IF(H26="","",H26*Treibhausgas_Kennzahlen!F$9) ->  | O26: =IF(H26="","",H26*Treibhausgas_Kennzahlen!G$9) -> 
F27: =IF(E27="","",VLOOKUP(INDEX(Binnenhäfen!$A$2:$A$501, MATCH(Berechnung!C27,Binnenhäfen!$B$2:$B$501,0))&"_"&INDEX(Binnenhäfen!$A$2:$A$501, MATCH(Berechnung!D27,Binnenhäfen!$B$2:$B$501,0)),Entfernung_Binnenhäfen!$C$2:$D$10001,2,FALSE)) ->  | G27: =IF(E27="","", VLOOKUP(INDEX(SchiffstypenID, MATCH(Berechnung!A27,Schiffstypen!$B$2:$B$4,0))&"_"&INDEX(FahrttypenID, MATCH(Berechnung!B27,Fahrttypen!$B$2:$B$5,0)),Energieverbrauch_Kennzahlen!$C$2:$D$10,2,FALSE)) ->  | I27: =IF(H27="","",H27/Treibhausgas_Kennzahlen!$B$5) ->  | J27: =IF(H27="","",H27*Treibhausgas_Kennzahlen!B$9) ->  | K27: =IF(H27="","",H27*Treibhausgas_Kennzahlen!C$9) ->  | L27: =IF(H27="","",H27*Treibhausgas_Kennzahlen!D$9) ->  | M27: =IF(H27="","",H27*Treibhausgas_Kennzahlen!E$9) ->  | N27: =IF(H27="","",H27*Treibhausgas_Kennzahlen!F$9) ->  | O27: =IF(H27="","",H27*Treibhausgas_Kennzahlen!G$9) -> 
F28: =IF(E28="","",VLOOKUP(INDEX(Binnenhäfen!$A$2:$A$501, MATCH(Berechnung!C28,Binnenhäfen!$B$2:$B$501,0))&"_"&INDEX(Binnenhäfen!$A$2:$A$501, MATCH(Berechnung!D28,Binnenhäfen!$B$2:$B$501,0)),Entfernung_Binnenhäfen!$C$2:$D$10001,2,FALSE)) ->  | G28: =IF(E28="","", VLOOKUP(INDEX(SchiffstypenID, MATCH(Berechnung!A28,Schiffstypen!$B$2:$B$4,0))&"_"&INDEX(FahrttypenID, MATCH(Berechnung!B28,Fahrttypen!$B$2:$B$5,0)),Energieverbrauch_Kennzahlen!$C$2:$D$10,2,FALSE)) ->  | I28: =IF(H28="","",H28/Treibhausgas_Kennzahlen!$B$5) ->  | J28: =IF(H28="","",H28*Treibhausgas_Kennzahlen!B$9) ->  | K28: =IF(H28="","",H28*Treibhausgas_Kennzahlen!C$9) ->  | L28: =IF(H28="","",H28*Treibhausgas_Kennzahlen!D$9) ->  | M28: =IF(H28="","",H28*Treibhausgas_Kennzahlen!E$9) ->  | N28: =IF(H28="","",H28*Treibhausgas_Kennzahlen!F$9) ->  | O28: =IF(H28="","",H28*Treibhausgas_Kennzahlen!G$9) -> 
F29: =IF(E29="","",VLOOKUP(INDEX(Binnenhäfen!$A$2:$A$501, MATCH(Berechnung!C29,Binnenhäfen!$B$2:$B$501,0))&"_"&INDEX(Binnenhäfen!$A$2:$A$501, MATCH(Berechnung!D29,Binnenhäfen!$B$2:$B$501,0)),Entfernung_Binnenhäfen!$C$2:$D$10001,2,FALSE)) ->  | G29: =IF(E29="","", VLOOKUP(INDEX(SchiffstypenID, MATCH(Berechnung!A29,Schiffstypen!$B$2:$B$4,0))&"_"&INDEX(FahrttypenID, MATCH(Berechnung!B29,Fahrttypen!$B$2:$B$5,0)),Energieverbrauch_Kennzahlen!$C$2:$D$10,2,FALSE)) ->  | I29: =IF(H29="","",H29/Treibhausgas_Kennzahlen!$B$5) ->  | J29: =IF(H29="","",H29*Treibhausgas_Kennzahlen!B$9) ->  | K29: =IF(H29="","",H29*Treibhausgas_Kennzahlen!C$9) ->  | L29: =IF(H29="","",H29*Treibhausgas_Kennzahlen!D$9) ->  | M29: =IF(H29="","",H29*Treibhausgas_Kennzahlen!E$9) ->  | N29: =IF(H29="","",H29*Treibhausgas_Kennzahlen!F$9) ->  | O29: =IF(H29="","",H29*Treibhausgas_Kennzahlen!G$9) -> 
F30: =IF(E30="","",VLOOKUP(INDEX(Binnenhäfen!$A$2:$A$501, MATCH(Berechnung!C30,Binnenhäfen!$B$2:$B$501,0))&"_"&INDEX(Binnenhäfen!$A$2:$A$501, MATCH(Berechnung!D30,Binnenhäfen!$B$2:$B$501,0)),Entfernung_Binnenhäfen!$C$2:$D$10001,2,FALSE)) ->  | G30: =IF(E30="","", VLOOKUP(INDEX(SchiffstypenID, MATCH(Berechnung!A30,Schiffstypen!$B$2:$B$4,0))&"_"&INDEX(FahrttypenID, MATCH(Berechnung!B30,Fahrttypen!$B$2:$B$5,0)),Energieverbrauch_Kennzahlen!$C$2:$D$10,2,FALSE)) ->  | I30: =IF(H30="","",H30/Treibhausgas_Kennzahlen!$B$5) ->  | J30: =IF(H30="","",H30*Treibhausgas_Kennzahlen!B$9) ->  | K30: =IF(H30="","",H30*Treibhausgas_Kennzahlen!C$9) ->  | L30: =IF(H30="","",H30*Treibhausgas_Kennzahlen!D$9) ->  | M30: =IF(H30="","",H30*Treibhausgas_Kennzahlen!E$9) ->  | N30: =IF(H30="","",H30*Treibhausgas_Kennzahlen!F$9) ->  | O30: =IF(H30="","",H30*Treibhausgas_Kennzahlen!G$9) -> 
F31: =IF(E31="","",VLOOKUP(INDEX(Binnenhäfen!$A$2:$A$501, MATCH(Berechnung!C31,Binnenhäfen!$B$2:$B$501,0))&"_"&INDEX(Binnenhäfen!$A$2:$A$501, MATCH(Berechnung!D31,Binnenhäfen!$B$2:$B$501,0)),Entfernung_Binnenhäfen!$C$2:$D$10001,2,FALSE)) ->  | G31: =IF(E31="","", VLOOKUP(INDEX(SchiffstypenID, MATCH(Berechnung!A31,Schiffstypen!$B$2:$B$4,0))&"_"&INDEX(FahrttypenID, MATCH(Berechnung!B31,Fahrttypen!$B$2:$B$5,0)),Energieverbrauch_Kennzahlen!$C$2:$D$10,2,FALSE)) ->  | I31: =IF(H31="","",H31/Treibhausgas_Kennzahlen!$B$5) ->  | J31: =IF(H31="","",H31*Treibhausgas_Kennzahlen!B$9) ->  | K31: =IF(H31="","",H31*Treibhausgas_Kennzahlen!C$9) ->  | L31: =IF(H31="","",H31*Treibhausgas_Kennzahlen!D$9) ->  | M31: =IF(H31="","",H31*Treibhausgas_Kennzahlen!E$9) ->  | N31: =IF(H31="","",H31*Treibhausgas_Kennzahlen!F$9) ->  | O31: =IF(H31="","",H31*Treibhausgas_Kennzahlen!G$9) -> 
F32: =IF(E32="","",VLOOKUP(INDEX(Binnenhäfen!$A$2:$A$501, MATCH(Berechnung!C32,Binnenhäfen!$B$2:$B$501,0))&"_"&INDEX(Binnenhäfen!$A$2:$A$501, MATCH(Berechnung!D32,Binnenhäfen!$B$2:$B$501,0)),Entfernung_Binnenhäfen!$C$2:$D$10001,2,FALSE)) ->  | G32: =IF(E32="","", VLOOKUP(INDEX(SchiffstypenID, MATCH(Berechnung!A32,Schiffstypen!$B$2:$B$4,0))&"_"&INDEX(FahrttypenID, MATCH(Berechnung!B32,Fahrttypen!$B$2:$B$5,0)),Energieverbrauch_Kennzahlen!$C$2:$D$10,2,FALSE)) ->  | I32: =IF(H32="","",H32/Treibhausgas_Kennzahlen!$B$5) ->  | J32: =IF(H32="","",H32*Treibhausgas_Kennzahlen!B$9) ->  | K32: =IF(H32="","",H32*Treibhausgas_Kennzahlen!C$9) ->  | L32: =IF(H32="","",H32*Treibhausgas_Kennzahlen!D$9) ->  | M32: =IF(H32="","",H32*Treibhausgas_Kennzahlen!E$9) ->  | N32: =IF(H32="","",H32*Treibhausgas_Kennzahlen!F$9) ->  | O32: =IF(H32="","",H32*Treibhausgas_Kennzahlen!G$9) -> 
F33: =IF(E33="","",VLOOKUP(INDEX(Binnenhäfen!$A$2:$A$501, MATCH(Berechnung!C33,Binnenhäfen!$B$2:$B$501,0))&"_"&INDEX(Binnenhäfen!$A$2:$A$501, MATCH(Berechnung!D33,Binnenhäfen!$B$2:$B$501,0)),Entfernung_Binnenhäfen!$C$2:$D$10001,2,FALSE)) ->  | G33: =IF(E33="","", VLOOKUP(INDEX(SchiffstypenID, MATCH(Berechnung!A33,Schiffstypen!$B$2:$B$4,0))&"_"&INDEX(FahrttypenID, MATCH(Berechnung!B33,Fahrttypen!$B$2:$B$5,0)),Energieverbrauch_Kennzahlen!$C$2:$D$10,2,FALSE)) ->  | I33: =IF(H33="","",H33/Treibhausgas_Kennzahlen!$B$5) ->  | J33: =IF(H33="","",H33*Treibhausgas_Kennzahlen!B$9) ->  | K33: =IF(H33="","",H33*Treibhausgas_Kennzahlen!C$9) ->  | L33: =IF(H33="","",H33*Treibhausgas_Kennzahlen!D$9) ->  | M33: =IF(H33="","",H33*Treibhausgas_Kennzahlen!E$9) ->  | N33: =IF(H33="","",H33*Treibhausgas_Kennzahlen!F$9) ->  | O33: =IF(H33="","",H33*Treibhausgas_Kennzahlen!G$9) -> 
F34: =IF(E34="","",VLOOKUP(INDEX(Binnenhäfen!$A$2:$A$501, MATCH(Berechnung!C34,Binnenhäfen!$B$2:$B$501,0))&"_"&INDEX(Binnenhäfen!$A$2:$A$501, MATCH(Berechnung!D34,Binnenhäfen!$B$2:$B$501,0)),Entfernung_Binnenhäfen!$C$2:$D$10001,2,FALSE)) ->  | G34: =IF(E34="","", VLOOKUP(INDEX(SchiffstypenID, MATCH(Berechnung!A34,Schiffstypen!$B$2:$B$4,0))&"_"&INDEX(FahrttypenID, MATCH(Berechnung!B34,Fahrttypen!$B$2:$B$5,0)),Energieverbrauch_Kennzahlen!$C$2:$D$10,2,FALSE)) ->  | I34: =IF(H34="","",H34/Treibhausgas_Kennzahlen!$B$5) ->  | J34: =IF(H34="","",H34*Treibhausgas_Kennzahlen!B$9) ->  | K34: =IF(H34="","",H34*Treibhausgas_Kennzahlen!C$9) ->  | L34: =IF(H34="","",H34*Treibhausgas_Kennzahlen!D$9) ->  | M34: =IF(H34="","",H34*Treibhausgas_Kennzahlen!E$9) ->  | N34: =IF(H34="","",H34*Treibhausgas_Kennzahlen!F$9) ->  | O34: =IF(H34="","",H34*Treibhausgas_Kennzahlen!G$9) -> 
F35: =IF(E35="","",VLOOKUP(INDEX(Binnenhäfen!$A$2:$A$501, MATCH(Berechnung!C35,Binnenhäfen!$B$2:$B$501,0))&"_"&INDEX(Binnenhäfen!$A$2:$A$501, MATCH(Berechnung!D35,Binnenhäfen!$B$2:$B$501,0)),Entfernung_Binnenhäfen!$C$2:$D$10001,2,FALSE)) ->  | G35: =IF(E35="","", VLOOKUP(INDEX(SchiffstypenID, MATCH(Berechnung!A35,Schiffstypen!$B$2:$B$4,0))&"_"&INDEX(FahrttypenID, MATCH(Berechnung!B35,Fahrttypen!$B$2:$B$5,0)),Energieverbrauch_Kennzahlen!$C$2:$D$10,2,FALSE)) ->  | I35: =IF(H35="","",H35/Treibhausgas_Kennzahlen!$B$5) ->  | J35: =IF(H35="","",H35*Treibhausgas_Kennzahlen!B$9) ->  | K35: =IF(H35="","",H35*Treibhausgas_Kennzahlen!C$9) ->  | L35: =IF(H35="","",H35*Treibhausgas_Kennzahlen!D$9) ->  | M35: =IF(H35="","",H35*Treibhausgas_Kennzahlen!E$9) ->  | N35: =IF(H35="","",H35*Treibhausgas_Kennzahlen!F$9) ->  | O35: =IF(H35="","",H35*Treibhausgas_Kennzahlen!G$9) -> 
F36: =IF(E36="","",VLOOKUP(INDEX(Binnenhäfen!$A$2:$A$501, MATCH(Berechnung!C36,Binnenhäfen!$B$2:$B$501,0))&"_"&INDEX(Binnenhäfen!$A$2:$A$501, MATCH(Berechnung!D36,Binnenhäfen!$B$2:$B$501,0)),Entfernung_Binnenhäfen!$C$2:$D$10001,2,FALSE)) ->  | G36: =IF(E36="","", VLOOKUP(INDEX(SchiffstypenID, MATCH(Berechnung!A36,Schiffstypen!$B$2:$B$4,0))&"_"&INDEX(FahrttypenID, MATCH(Berechnung!B36,Fahrttypen!$B$2:$B$5,0)),Energieverbrauch_Kennzahlen!$C$2:$D$10,2,FALSE)) ->  | I36: =IF(H36="","",H36/Treibhausgas_Kennzahlen!$B$5) ->  | J36: =IF(H36="","",H36*Treibhausgas_Kennzahlen!B$9) ->  | K36: =IF(H36="","",H36*Treibhausgas_Kennzahlen!C$9) ->  | L36: =IF(H36="","",H36*Treibhausgas_Kennzahlen!D$9) ->  | M36: =IF(H36="","",H36*Treibhausgas_Kennzahlen!E$9) ->  | N36: =IF(H36="","",H36*Treibhausgas_Kennzahlen!F$9) ->  | O36: =IF(H36="","",H36*Treibhausgas_Kennzahlen!G$9) -> 
F37: =IF(E37="","",VLOOKUP(INDEX(Binnenhäfen!$A$2:$A$501, MATCH(Berechnung!C37,Binnenhäfen!$B$2:$B$501,0))&"_"&INDEX(Binnenhäfen!$A$2:$A$501, MATCH(Berechnung!D37,Binnenhäfen!$B$2:$B$501,0)),Entfernung_Binnenhäfen!$C$2:$D$10001,2,FALSE)) ->  | G37: =IF(E37="","", VLOOKUP(INDEX(SchiffstypenID, MATCH(Berechnung!A37,Schiffstypen!$B$2:$B$4,0))&"_"&INDEX(FahrttypenID, MATCH(Berechnung!B37,Fahrttypen!$B$2:$B$5,0)),Energieverbrauch_Kennzahlen!$C$2:$D$10,2,FALSE)) ->  | I37: =IF(H37="","",H37/Treibhausgas_Kennzahlen!$B$5) ->  | J37: =IF(H37="","",H37*Treibhausgas_Kennzahlen!B$9) ->  | K37: =IF(H37="","",H37*Treibhausgas_Kennzahlen!C$9) ->  | L37: =IF(H37="","",H37*Treibhausgas_Kennzahlen!D$9) ->  | M37: =IF(H37="","",H37*Treibhausgas_Kennzahlen!E$9) ->  | N37: =IF(H37="","",H37*Treibhausgas_Kennzahlen!F$9) ->  | O37: =IF(H37="","",H37*Treibhausgas_Kennzahlen!G$9) -> 
F38: =IF(E38="","",VLOOKUP(INDEX(Binnenhäfen!$A$2:$A$501, MATCH(Berechnung!C38,Binnenhäfen!$B$2:$B$501,0))&"_"&INDEX(Binnenhäfen!$A$2:$A$501, MATCH(Berechnung!D38,Binnenhäfen!$B$2:$B$501,0)),Entfernung_Binnenhäfen!$C$2:$D$10001,2,FALSE)) ->  | G38: =IF(E38="","", VLOOKUP(INDEX(SchiffstypenID, MATCH(Berechnung!A38,Schiffstypen!$B$2:$B$4,0))&"_"&INDEX(FahrttypenID, MATCH(Berechnung!B38,Fahrttypen!$B$2:$B$5,0)),Energieverbrauch_Kennzahlen!$C$2:$D$10,2,FALSE)) ->  | I38: =IF(H38="","",H38/Treibhausgas_Kennzahlen!$B$5) ->  | J38: =IF(H38="","",H38*Treibhausgas_Kennzahlen!B$9) ->  | K38: =IF(H38="","",H38*Treibhausgas_Kennzahlen!C$9) ->  | L38: =IF(H38="","",H38*Treibhausgas_Kennzahlen!D$9) ->  | M38: =IF(H38="","",H38*Treibhausgas_Kennzahlen!E$9) ->  | N38: =IF(H38="","",H38*Treibhausgas_Kennzahlen!F$9) ->  | O38: =IF(H38="","",H38*Treibhausgas_Kennzahlen!G$9) -> 
F39: =IF(E39="","",VLOOKUP(INDEX(Binnenhäfen!$A$2:$A$501, MATCH(Berechnung!C39,Binnenhäfen!$B$2:$B$501,0))&"_"&INDEX(Binnenhäfen!$A$2:$A$501, MATCH(Berechnung!D39,Binnenhäfen!$B$2:$B$501,0)),Entfernung_Binnenhäfen!$C$2:$D$10001,2,FALSE)) ->  | G39: =IF(E39="","", VLOOKUP(INDEX(SchiffstypenID, MATCH(Berechnung!A39,Schiffstypen!$B$2:$B$4,0))&"_"&INDEX(FahrttypenID, MATCH(Berechnung!B39,Fahrttypen!$B$2:$B$5,0)),Energieverbrauch_Kennzahlen!$C$2:$D$10,2,FALSE)) ->  | I39: =IF(H39="","",H39/Treibhausgas_Kennzahlen!$B$5) ->  | J39: =IF(H39="","",H39*Treibhausgas_Kennzahlen!B$9) ->  | K39: =IF(H39="","",H39*Treibhausgas_Kennzahlen!C$9) ->  | L39: =IF(H39="","",H39*Treibhausgas_Kennzahlen!D$9) ->  | M39: =IF(H39="","",H39*Treibhausgas_Kennzahlen!E$9) ->  | N39: =IF(H39="","",H39*Treibhausgas_Kennzahlen!F$9) ->  | O39: =IF(H39="","",H39*Treibhausgas_Kennzahlen!G$9) -> 
F40: =IF(E40="","",VLOOKUP(INDEX(Binnenhäfen!$A$2:$A$501, MATCH(Berechnung!C40,Binnenhäfen!$B$2:$B$501,0))&"_"&INDEX(Binnenhäfen!$A$2:$A$501, MATCH(Berechnung!D40,Binnenhäfen!$B$2:$B$501,0)),Entfernung_Binnenhäfen!$C$2:$D$10001,2,FALSE)) ->  | G40: =IF(E40="","", VLOOKUP(INDEX(SchiffstypenID, MATCH(Berechnung!A40,Schiffstypen!$B$2:$B$4,0))&"_"&INDEX(FahrttypenID, MATCH(Berechnung!B40,Fahrttypen!$B$2:$B$5,0)),Energieverbrauch_Kennzahlen!$C$2:$D$10,2,FALSE)) ->  | I40: =IF(H40="","",H40/Treibhausgas_Kennzahlen!$B$5) ->  | J40: =IF(H40="","",H40*Treibhausgas_Kennzahlen!B$9) ->  | K40: =IF(H40="","",H40*Treibhausgas_Kennzahlen!C$9) ->  | L40: =IF(H40="","",H40*Treibhausgas_Kennzahlen!D$9) ->  | M40: =IF(H40="","",H40*Treibhausgas_Kennzahlen!E$9) ->  | N40: =IF(H40="","",H40*Treibhausgas_Kennzahlen!F$9) ->  | O40: =IF(H40="","",H40*Treibhausgas_Kennzahlen!G$9) -> 
F41: =IF(E41="","",VLOOKUP(INDEX(Binnenhäfen!$A$2:$A$501, MATCH(Berechnung!C41,Binnenhäfen!$B$2:$B$501,0))&"_"&INDEX(Binnenhäfen!$A$2:$A$501, MATCH(Berechnung!D41,Binnenhäfen!$B$2:$B$501,0)),Entfernung_Binnenhäfen!$C$2:$D$10001,2,FALSE)) ->  | G41: =IF(E41="","", VLOOKUP(INDEX(SchiffstypenID, MATCH(Berechnung!A41,Schiffstypen!$B$2:$B$4,0))&"_"&INDEX(FahrttypenID, MATCH(Berechnung!B41,Fahrttypen!$B$2:$B$5,0)),Energieverbrauch_Kennzahlen!$C$2:$D$10,2,FALSE)) ->  | I41: =IF(H41="","",H41/Treibhausgas_Kennzahlen!$B$5) ->  | J41: =IF(H41="","",H41*Treibhausgas_Kennzahlen!B$9) ->  | K41: =IF(H41="","",H41*Treibhausgas_Kennzahlen!C$9) ->  | L41: =IF(H41="","",H41*Treibhausgas_Kennzahlen!D$9) ->  | M41: =IF(H41="","",H41*Treibhausgas_Kennzahlen!E$9) ->  | N41: =IF(H41="","",H41*Treibhausgas_Kennzahlen!F$9) ->  | O41: =IF(H41="","",H41*Treibhausgas_Kennzahlen!G$9) -> 
F42: =IF(E42="","",VLOOKUP(INDEX(Binnenhäfen!$A$2:$A$501, MATCH(Berechnung!C42,Binnenhäfen!$B$2:$B$501,0))&"_"&INDEX(Binnenhäfen!$A$2:$A$501, MATCH(Berechnung!D42,Binnenhäfen!$B$2:$B$501,0)),Entfernung_Binnenhäfen!$C$2:$D$10001,2,FALSE)) ->  | G42: =IF(E42="","", VLOOKUP(INDEX(SchiffstypenID, MATCH(Berechnung!A42,Schiffstypen!$B$2:$B$4,0))&"_"&INDEX(FahrttypenID, MATCH(Berechnung!B42,Fahrttypen!$B$2:$B$5,0)),Energieverbrauch_Kennzahlen!$C$2:$D$10,2,FALSE)) ->  | I42: =IF(H42="","",H42/Treibhausgas_Kennzahlen!$B$5) ->  | J42: =IF(H42="","",H42*Treibhausgas_Kennzahlen!B$9) ->  | K42: =IF(H42="","",H42*Treibhausgas_Kennzahlen!C$9) ->  | L42: =IF(H42="","",H42*Treibhausgas_Kennzahlen!D$9) ->  | M42: =IF(H42="","",H42*Treibhausgas_Kennzahlen!E$9) ->  | N42: =IF(H42="","",H42*Treibhausgas_Kennzahlen!F$9) ->  | O42: =IF(H42="","",H42*Treibhausgas_Kennzahlen!G$9) -> 
F43: =IF(E43="","",VLOOKUP(INDEX(Binnenhäfen!$A$2:$A$501, MATCH(Berechnung!C43,Binnenhäfen!$B$2:$B$501,0))&"_"&INDEX(Binnenhäfen!$A$2:$A$501, MATCH(Berechnung!D43,Binnenhäfen!$B$2:$B$501,0)),Entfernung_Binnenhäfen!$C$2:$D$10001,2,FALSE)) ->  | G43: =IF(E43="","", VLOOKUP(INDEX(SchiffstypenID, MATCH(Berechnung!A43,Schiffstypen!$B$2:$B$4,0))&"_"&INDEX(FahrttypenID, MATCH(Berechnung!B43,Fahrttypen!$B$2:$B$5,0)),Energieverbrauch_Kennzahlen!$C$2:$D$10,2,FALSE)) ->  | I43: =IF(H43="","",H43/Treibhausgas_Kennzahlen!$B$5) ->  | J43: =IF(H43="","",H43*Treibhausgas_Kennzahlen!B$9) ->  | K43: =IF(H43="","",H43*Treibhausgas_Kennzahlen!C$9) ->  | L43: =IF(H43="","",H43*Treibhausgas_Kennzahlen!D$9) ->  | M43: =IF(H43="","",H43*Treibhausgas_Kennzahlen!E$9) ->  | N43: =IF(H43="","",H43*Treibhausgas_Kennzahlen!F$9) ->  | O43: =IF(H43="","",H43*Treibhausgas_Kennzahlen!G$9) -> 
F44: =IF(E44="","",VLOOKUP(INDEX(Binnenhäfen!$A$2:$A$501, MATCH(Berechnung!C44,Binnenhäfen!$B$2:$B$501,0))&"_"&INDEX(Binnenhäfen!$A$2:$A$501, MATCH(Berechnung!D44,Binnenhäfen!$B$2:$B$501,0)),Entfernung_Binnenhäfen!$C$2:$D$10001,2,FALSE)) ->  | G44: =IF(E44="","", VLOOKUP(INDEX(SchiffstypenID, MATCH(Berechnung!A44,Schiffstypen!$B$2:$B$4,0))&"_"&INDEX(FahrttypenID, MATCH(Berechnung!B44,Fahrttypen!$B$2:$B$5,0)),Energieverbrauch_Kennzahlen!$C$2:$D$10,2,FALSE)) ->  | I44: =IF(H44="","",H44/Treibhausgas_Kennzahlen!$B$5) ->  | J44: =IF(H44="","",H44*Treibhausgas_Kennzahlen!B$9) ->  | K44: =IF(H44="","",H44*Treibhausgas_Kennzahlen!C$9) ->  | L44: =IF(H44="","",H44*Treibhausgas_Kennzahlen!D$9) ->  | M44: =IF(H44="","",H44*Treibhausgas_Kennzahlen!E$9) ->  | N44: =IF(H44="","",H44*Treibhausgas_Kennzahlen!F$9) ->  | O44: =IF(H44="","",H44*Treibhausgas_Kennzahlen!G$9) -> 
F45: =IF(E45="","",VLOOKUP(INDEX(Binnenhäfen!$A$2:$A$501, MATCH(Berechnung!C45,Binnenhäfen!$B$2:$B$501,0))&"_"&INDEX(Binnenhäfen!$A$2:$A$501, MATCH(Berechnung!D45,Binnenhäfen!$B$2:$B$501,0)),Entfernung_Binnenhäfen!$C$2:$D$10001,2,FALSE)) ->  | G45: =IF(E45="","", VLOOKUP(INDEX(SchiffstypenID, MATCH(Berechnung!A45,Schiffstypen!$B$2:$B$4,0))&"_"&INDEX(FahrttypenID, MATCH(Berechnung!B45,Fahrttypen!$B$2:$B$5,0)),Energieverbrauch_Kennzahlen!$C$2:$D$10,2,FALSE)) ->  | I45: =IF(H45="","",H45/Treibhausgas_Kennzahlen!$B$5) ->  | J45: =IF(H45="","",H45*Treibhausgas_Kennzahlen!B$9) ->  | K45: =IF(H45="","",H45*Treibhausgas_Kennzahlen!C$9) ->  | L45: =IF(H45="","",H45*Treibhausgas_Kennzahlen!D$9) ->  | M45: =IF(H45="","",H45*Treibhausgas_Kennzahlen!E$9) ->  | N45: =IF(H45="","",H45*Treibhausgas_Kennzahlen!F$9) ->  | O45: =IF(H45="","",H45*Treibhausgas_Kennzahlen!G$9) -> 
F46: =IF(E46="","",VLOOKUP(INDEX(Binnenhäfen!$A$2:$A$501, MATCH(Berechnung!C46,Binnenhäfen!$B$2:$B$501,0))&"_"&INDEX(Binnenhäfen!$A$2:$A$501, MATCH(Berechnung!D46,Binnenhäfen!$B$2:$B$501,0)),Entfernung_Binnenhäfen!$C$2:$D$10001,2,FALSE)) ->  | G46: =IF(E46="","", VLOOKUP(INDEX(SchiffstypenID, MATCH(Berechnung!A46,Schiffstypen!$B$2:$B$4,0))&"_"&INDEX(FahrttypenID, MATCH(Berechnung!B46,Fahrttypen!$B$2:$B$5,0)),Energieverbrauch_Kennzahlen!$C$2:$D$10,2,FALSE)) ->  | I46: =IF(H46="","",H46/Treibhausgas_Kennzahlen!$B$5) ->  | J46: =IF(H46="","",H46*Treibhausgas_Kennzahlen!B$9) ->  | K46: =IF(H46="","",H46*Treibhausgas_Kennzahlen!C$9) ->  | L46: =IF(H46="","",H46*Treibhausgas_Kennzahlen!D$9) ->  | M46: =IF(H46="","",H46*Treibhausgas_Kennzahlen!E$9) ->  | N46: =IF(H46="","",H46*Treibhausgas_Kennzahlen!F$9) ->  | O46: =IF(H46="","",H46*Treibhausgas_Kennzahlen!G$9) -> 
F47: =IF(E47="","",VLOOKUP(INDEX(Binnenhäfen!$A$2:$A$501, MATCH(Berechnung!C47,Binnenhäfen!$B$2:$B$501,0))&"_"&INDEX(Binnenhäfen!$A$2:$A$501, MATCH(Berechnung!D47,Binnenhäfen!$B$2:$B$501,0)),Entfernung_Binnenhäfen!$C$2:$D$10001,2,FALSE)) ->  | G47: =IF(E47="","", VLOOKUP(INDEX(SchiffstypenID, MATCH(Berechnung!A47,Schiffstypen!$B$2:$B$4,0))&"_"&INDEX(FahrttypenID, MATCH(Berechnung!B47,Fahrttypen!$B$2:$B$5,0)),Energieverbrauch_Kennzahlen!$C$2:$D$10,2,FALSE)) ->  | I47: =IF(H47="","",H47/Treibhausgas_Kennzahlen!$B$5) ->  | J47: =IF(H47="","",H47*Treibhausgas_Kennzahlen!B$9) ->  | K47: =IF(H47="","",H47*Treibhausgas_Kennzahlen!C$9) ->  | L47: =IF(H47="","",H47*Treibhausgas_Kennzahlen!D$9) ->  | M47: =IF(H47="","",H47*Treibhausgas_Kennzahlen!E$9) ->  | N47: =IF(H47="","",H47*Treibhausgas_Kennzahlen!F$9) ->  | O47: =IF(H47="","",H47*Treibhausgas_Kennzahlen!G$9) -> 
F48: =IF(E48="","",VLOOKUP(INDEX(Binnenhäfen!$A$2:$A$501, MATCH(Berechnung!C48,Binnenhäfen!$B$2:$B$501,0))&"_"&INDEX(Binnenhäfen!$A$2:$A$501, MATCH(Berechnung!D48,Binnenhäfen!$B$2:$B$501,0)),Entfernung_Binnenhäfen!$C$2:$D$10001,2,FALSE)) ->  | G48: =IF(E48="","", VLOOKUP(INDEX(SchiffstypenID, MATCH(Berechnung!A48,Schiffstypen!$B$2:$B$4,0))&"_"&INDEX(FahrttypenID, MATCH(Berechnung!B48,Fahrttypen!$B$2:$B$5,0)),Energieverbrauch_Kennzahlen!$C$2:$D$10,2,FALSE)) ->  | I48: =IF(H48="","",H48/Treibhausgas_Kennzahlen!$B$5) ->  | J48: =IF(H48="","",H48*Treibhausgas_Kennzahlen!B$9) ->  | K48: =IF(H48="","",H48*Treibhausgas_Kennzahlen!C$9) ->  | L48: =IF(H48="","",H48*Treibhausgas_Kennzahlen!D$9) ->  | M48: =IF(H48="","",H48*Treibhausgas_Kennzahlen!E$9) ->  | N48: =IF(H48="","",H48*Treibhausgas_Kennzahlen!F$9) ->  | O48: =IF(H48="","",H48*Treibhausgas_Kennzahlen!G$9) -> 
F49: =IF(E49="","",VLOOKUP(INDEX(Binnenhäfen!$A$2:$A$501, MATCH(Berechnung!C49,Binnenhäfen!$B$2:$B$501,0))&"_"&INDEX(Binnenhäfen!$A$2:$A$501, MATCH(Berechnung!D49,Binnenhäfen!$B$2:$B$501,0)),Entfernung_Binnenhäfen!$C$2:$D$10001,2,FALSE)) ->  | G49: =IF(E49="","", VLOOKUP(INDEX(SchiffstypenID, MATCH(Berechnung!A49,Schiffstypen!$B$2:$B$4,0))&"_"&INDEX(FahrttypenID, MATCH(Berechnung!B49,Fahrttypen!$B$2:$B$5,0)),Energieverbrauch_Kennzahlen!$C$2:$D$10,2,FALSE)) ->  | I49: =IF(H49="","",H49/Treibhausgas_Kennzahlen!$B$5) ->  | J49: =IF(H49="","",H49*Treibhausgas_Kennzahlen!B$9) ->  | K49: =IF(H49="","",H49*Treibhausgas_Kennzahlen!C$9) ->  | L49: =IF(H49="","",H49*Treibhausgas_Kennzahlen!D$9) ->  | M49: =IF(H49="","",H49*Treibhausgas_Kennzahlen!E$9) ->  | N49: =IF(H49="","",H49*Treibhausgas_Kennzahlen!F$9) ->  | O49: =IF(H49="","",H49*Treibhausgas_Kennzahlen!G$9) -> 
F50: =IF(E50="","",VLOOKUP(INDEX(Binnenhäfen!$A$2:$A$501, MATCH(Berechnung!C50,Binnenhäfen!$B$2:$B$501,0))&"_"&INDEX(Binnenhäfen!$A$2:$A$501, MATCH(Berechnung!D50,Binnenhäfen!$B$2:$B$501,0)),Entfernung_Binnenhäfen!$C$2:$D$10001,2,FALSE)) ->  | G50: =IF(E50="","", VLOOKUP(INDEX(SchiffstypenID, MATCH(Berechnung!A50,Schiffstypen!$B$2:$B$4,0))&"_"&INDEX(FahrttypenID, MATCH(Berechnung!B50,Fahrttypen!$B$2:$B$5,0)),Energieverbrauch_Kennzahlen!$C$2:$D$10,2,FALSE)) ->  | I50: =IF(H50="","",H50/Treibhausgas_Kennzahlen!$B$5) ->  | J50: =IF(H50="","",H50*Treibhausgas_Kennzahlen!B$9) ->  | K50: =IF(H50="","",H50*Treibhausgas_Kennzahlen!C$9) ->  | L50: =IF(H50="","",H50*Treibhausgas_Kennzahlen!D$9) ->  | M50: =IF(H50="","",H50*Treibhausgas_Kennzahlen!E$9) ->  | N50: =IF(H50="","",H50*Treibhausgas_Kennzahlen!F$9) ->  | O50: =IF(H50="","",H50*Treibhausgas_Kennzahlen!G$9) -> 
F51: =IF(E51="","",VLOOKUP(INDEX(Binnenhäfen!$A$2:$A$501, MATCH(Berechnung!C51,Binnenhäfen!$B$2:$B$501,0))&"_"&INDEX(Binnenhäfen!$A$2:$A$501, MATCH(Berechnung!D51,Binnenhäfen!$B$2:$B$501,0)),Entfernung_Binnenhäfen!$C$2:$D$10001,2,FALSE)) ->  | G51: =IF(E51="","", VLOOKUP(INDEX(SchiffstypenID, MATCH(Berechnung!A51,Schiffstypen!$B$2:$B$4,0))&"_"&INDEX(FahrttypenID, MATCH(Berechnung!B51,Fahrttypen!$B$2:$B$5,0)),Energieverbrauch_Kennzahlen!$C$2:$D$10,2,FALSE)) ->  | I51: =IF(H51="","",H51/Treibhausgas_Kennzahlen!$B$5) ->  | J51: =IF(H51="","",H51*Treibhausgas_Kennzahlen!B$9) ->  | K51: =IF(H51="","",H51*Treibhausgas_Kennzahlen!C$9) ->  | L51: =IF(H51="","",H51*Treibhausgas_Kennzahlen!D$9) ->  | M51: =IF(H51="","",H51*Treibhausgas_Kennzahlen!E$9) ->  | N51: =IF(H51="","",H51*Treibhausgas_Kennzahlen!F$9) ->  | O51: =IF(H51="","",H51*Treibhausgas_Kennzahlen!G$9) -> 
F52: =IF(E52="","",VLOOKUP(INDEX(Binnenhäfen!$A$2:$A$501, MATCH(Berechnung!C52,Binnenhäfen!$B$2:$B$501,0))&"_"&INDEX(Binnenhäfen!$A$2:$A$501, MATCH(Berechnung!D52,Binnenhäfen!$B$2:$B$501,0)),Entfernung_Binnenhäfen!$C$2:$D$10001,2,FALSE)) ->  | G52: =IF(E52="","", VLOOKUP(INDEX(SchiffstypenID, MATCH(Berechnung!A52,Schiffstypen!$B$2:$B$4,0))&"_"&INDEX(FahrttypenID, MATCH(Berechnung!B52,Fahrttypen!$B$2:$B$5,0)),Energieverbrauch_Kennzahlen!$C$2:$D$10,2,FALSE)) ->  | I52: =IF(H52="","",H52/Treibhausgas_Kennzahlen!$B$5) ->  | J52: =IF(H52="","",H52*Treibhausgas_Kennzahlen!B$9) ->  | K52: =IF(H52="","",H52*Treibhausgas_Kennzahlen!C$9) ->  | L52: =IF(H52="","",H52*Treibhausgas_Kennzahlen!D$9) ->  | M52: =IF(H52="","",H52*Treibhausgas_Kennzahlen!E$9) ->  | N52: =IF(H52="","",H52*Treibhausgas_Kennzahlen!F$9) ->  | O52: =IF(H52="","",H52*Treibhausgas_Kennzahlen!G$9) -> 
F53: =IF(E53="","",VLOOKUP(INDEX(Binnenhäfen!$A$2:$A$501, MATCH(Berechnung!C53,Binnenhäfen!$B$2:$B$501,0))&"_"&INDEX(Binnenhäfen!$A$2:$A$501, MATCH(Berechnung!D53,Binnenhäfen!$B$2:$B$501,0)),Entfernung_Binnenhäfen!$C$2:$D$10001,2,FALSE)) ->  | G53: =IF(E53="","", VLOOKUP(INDEX(SchiffstypenID, MATCH(Berechnung!A53,Schiffstypen!$B$2:$B$4,0))&"_"&INDEX(FahrttypenID, MATCH(Berechnung!B53,Fahrttypen!$B$2:$B$5,0)),Energieverbrauch_Kennzahlen!$C$2:$D$10,2,FALSE)) ->  | I53: =IF(H53="","",H53/Treibhausgas_Kennzahlen!$B$5) ->  | J53: =IF(H53="","",H53*Treibhausgas_Kennzahlen!B$9) ->  | K53: =IF(H53="","",H53*Treibhausgas_Kennzahlen!C$9) ->  | L53: =IF(H53="","",H53*Treibhausgas_Kennzahlen!D$9) ->  | M53: =IF(H53="","",H53*Treibhausgas_Kennzahlen!E$9) ->  | N53: =IF(H53="","",H53*Treibhausgas_Kennzahlen!F$9) ->  | O53: =IF(H53="","",H53*Treibhausgas_Kennzahlen!G$9) -> 
F54: =IF(E54="","",VLOOKUP(INDEX(Binnenhäfen!$A$2:$A$501, MATCH(Berechnung!C54,Binnenhäfen!$B$2:$B$501,0))&"_"&INDEX(Binnenhäfen!$A$2:$A$501, MATCH(Berechnung!D54,Binnenhäfen!$B$2:$B$501,0)),Entfernung_Binnenhäfen!$C$2:$D$10001,2,FALSE)) ->  | G54: =IF(E54="","", VLOOKUP(INDEX(SchiffstypenID, MATCH(Berechnung!A54,Schiffstypen!$B$2:$B$4,0))&"_"&INDEX(FahrttypenID, MATCH(Berechnung!B54,Fahrttypen!$B$2:$B$5,0)),Energieverbrauch_Kennzahlen!$C$2:$D$10,2,FALSE)) ->  | I54: =IF(H54="","",H54/Treibhausgas_Kennzahlen!$B$5) ->  | J54: =IF(H54="","",H54*Treibhausgas_Kennzahlen!B$9) ->  | K54: =IF(H54="","",H54*Treibhausgas_Kennzahlen!C$9) ->  | L54: =IF(H54="","",H54*Treibhausgas_Kennzahlen!D$9) ->  | M54: =IF(H54="","",H54*Treibhausgas_Kennzahlen!E$9) ->  | N54: =IF(H54="","",H54*Treibhausgas_Kennzahlen!F$9) ->  | O54: =IF(H54="","",H54*Treibhausgas_Kennzahlen!G$9) -> 
F55: =IF(E55="","",VLOOKUP(INDEX(Binnenhäfen!$A$2:$A$501, MATCH(Berechnung!C55,Binnenhäfen!$B$2:$B$501,0))&"_"&INDEX(Binnenhäfen!$A$2:$A$501, MATCH(Berechnung!D55,Binnenhäfen!$B$2:$B$501,0)),Entfernung_Binnenhäfen!$C$2:$D$10001,2,FALSE)) ->  | G55: =IF(E55="","", VLOOKUP(INDEX(SchiffstypenID, MATCH(Berechnung!A55,Schiffstypen!$B$2:$B$4,0))&"_"&INDEX(FahrttypenID, MATCH(Berechnung!B55,Fahrttypen!$B$2:$B$5,0)),Energieverbrauch_Kennzahlen!$C$2:$D$10,2,FALSE)) ->  | I55: =IF(H55="","",H55/Treibhausgas_Kennzahlen!$B$5) ->  | J55: =IF(H55="","",H55*Treibhausgas_Kennzahlen!B$9) ->  | K55: =IF(H55="","",H55*Treibhausgas_Kennzahlen!C$9) ->  | L55: =IF(H55="","",H55*Treibhausgas_Kennzahlen!D$9) ->  | M55: =IF(H55="","",H55*Treibhausgas_Kennzahlen!E$9) ->  | N55: =IF(H55="","",H55*Treibhausgas_Kennzahlen!F$9) ->  | O55: =IF(H55="","",H55*Treibhausgas_Kennzahlen!G$9) -> 
F56: =IF(E56="","",VLOOKUP(INDEX(Binnenhäfen!$A$2:$A$501, MATCH(Berechnung!C56,Binnenhäfen!$B$2:$B$501,0))&"_"&INDEX(Binnenhäfen!$A$2:$A$501, MATCH(Berechnung!D56,Binnenhäfen!$B$2:$B$501,0)),Entfernung_Binnenhäfen!$C$2:$D$10001,2,FALSE)) ->  | G56: =IF(E56="","", VLOOKUP(INDEX(SchiffstypenID, MATCH(Berechnung!A56,Schiffstypen!$B$2:$B$4,0))&"_"&INDEX(FahrttypenID, MATCH(Berechnung!B56,Fahrttypen!$B$2:$B$5,0)),Energieverbrauch_Kennzahlen!$C$2:$D$10,2,FALSE)) ->  | I56: =IF(H56="","",H56/Treibhausgas_Kennzahlen!$B$5) ->  | J56: =IF(H56="","",H56*Treibhausgas_Kennzahlen!B$9) ->  | K56: =IF(H56="","",H56*Treibhausgas_Kennzahlen!C$9) ->  | L56: =IF(H56="","",H56*Treibhausgas_Kennzahlen!D$9) ->  | M56: =IF(H56="","",H56*Treibhausgas_Kennzahlen!E$9) ->  | N56: =IF(H56="","",H56*Treibhausgas_Kennzahlen!F$9) ->  | O56: =IF(H56="","",H56*Treibhausgas_Kennzahlen!G$9) -> 
F57: =IF(E57="","",VLOOKUP(INDEX(Binnenhäfen!$A$2:$A$501, MATCH(Berechnung!C57,Binnenhäfen!$B$2:$B$501,0))&"_"&INDEX(Binnenhäfen!$A$2:$A$501, MATCH(Berechnung!D57,Binnenhäfen!$B$2:$B$501,0)),Entfernung_Binnenhäfen!$C$2:$D$10001,2,FALSE)) ->  | G57: =IF(E57="","", VLOOKUP(INDEX(SchiffstypenID, MATCH(Berechnung!A57,Schiffstypen!$B$2:$B$4,0))&"_"&INDEX(FahrttypenID, MATCH(Berechnung!B57,Fahrttypen!$B$2:$B$5,0)),Energieverbrauch_Kennzahlen!$C$2:$D$10,2,FALSE)) ->  | I57: =IF(H57="","",H57/Treibhausgas_Kennzahlen!$B$5) ->  | J57: =IF(H57="","",H57*Treibhausgas_Kennzahlen!B$9) ->  | K57: =IF(H57="","",H57*Treibhausgas_Kennzahlen!C$9) ->  | L57: =IF(H57="","",H57*Treibhausgas_Kennzahlen!D$9) ->  | M57: =IF(H57="","",H57*Treibhausgas_Kennzahlen!E$9) ->  | N57: =IF(H57="","",H57*Treibhausgas_Kennzahlen!F$9) ->  | O57: =IF(H57="","",H57*Treibhausgas_Kennzahlen!G$9) -> 
F58: =IF(E58="","",VLOOKUP(INDEX(Binnenhäfen!$A$2:$A$501, MATCH(Berechnung!C58,Binnenhäfen!$B$2:$B$501,0))&"_"&INDEX(Binnenhäfen!$A$2:$A$501, MATCH(Berechnung!D58,Binnenhäfen!$B$2:$B$501,0)),Entfernung_Binnenhäfen!$C$2:$D$10001,2,FALSE)) ->  | G58: =IF(E58="","", VLOOKUP(INDEX(SchiffstypenID, MATCH(Berechnung!A58,Schiffstypen!$B$2:$B$4,0))&"_"&INDEX(FahrttypenID, MATCH(Berechnung!B58,Fahrttypen!$B$2:$B$5,0)),Energieverbrauch_Kennzahlen!$C$2:$D$10,2,FALSE)) ->  | I58: =IF(H58="","",H58/Treibhausgas_Kennzahlen!$B$5) ->  | J58: =IF(H58="","",H58*Treibhausgas_Kennzahlen!B$9) ->  | K58: =IF(H58="","",H58*Treibhausgas_Kennzahlen!C$9) ->  | L58: =IF(H58="","",H58*Treibhausgas_Kennzahlen!D$9) ->  | M58: =IF(H58="","",H58*Treibhausgas_Kennzahlen!E$9) ->  | N58: =IF(H58="","",H58*Treibhausgas_Kennzahlen!F$9) ->  | O58: =IF(H58="","",H58*Treibhausgas_Kennzahlen!G$9) -> 
F59: =IF(E59="","",VLOOKUP(INDEX(Binnenhäfen!$A$2:$A$501, MATCH(Berechnung!C59,Binnenhäfen!$B$2:$B$501,0))&"_"&INDEX(Binnenhäfen!$A$2:$A$501, MATCH(Berechnung!D59,Binnenhäfen!$B$2:$B$501,0)),Entfernung_Binnenhäfen!$C$2:$D$10001,2,FALSE)) ->  | G59: =IF(E59="","", VLOOKUP(INDEX(SchiffstypenID, MATCH(Berechnung!A59,Schiffstypen!$B$2:$B$4,0))&"_"&INDEX(FahrttypenID, MATCH(Berechnung!B59,Fahrttypen!$B$2:$B$5,0)),Energieverbrauch_Kennzahlen!$C$2:$D$10,2,FALSE)) ->  | I59: =IF(H59="","",H59/Treibhausgas_Kennzahlen!$B$5) ->  | J59: =IF(H59="","",H59*Treibhausgas_Kennzahlen!B$9) ->  | K59: =IF(H59="","",H59*Treibhausgas_Kennzahlen!C$9) ->  | L59: =IF(H59="","",H59*Treibhausgas_Kennzahlen!D$9) ->  | M59: =IF(H59="","",H59*Treibhausgas_Kennzahlen!E$9) ->  | N59: =IF(H59="","",H59*Treibhausgas_Kennzahlen!F$9) ->  | O59: =IF(H59="","",H59*Treibhausgas_Kennzahlen!G$9) -> 
F60: =IF(E60="","",VLOOKUP(INDEX(Binnenhäfen!$A$2:$A$501, MATCH(Berechnung!C60,Binnenhäfen!$B$2:$B$501,0))&"_"&INDEX(Binnenhäfen!$A$2:$A$501, MATCH(Berechnung!D60,Binnenhäfen!$B$2:$B$501,0)),Entfernung_Binnenhäfen!$C$2:$D$10001,2,FALSE)) ->  | G60: =IF(E60="","", VLOOKUP(INDEX(SchiffstypenID, MATCH(Berechnung!A60,Schiffstypen!$B$2:$B$4,0))&"_"&INDEX(FahrttypenID, MATCH(Berechnung!B60,Fahrttypen!$B$2:$B$5,0)),Energieverbrauch_Kennzahlen!$C$2:$D$10,2,FALSE)) ->  | I60: =IF(H60="","",H60/Treibhausgas_Kennzahlen!$B$5) ->  | J60: =IF(H60="","",H60*Treibhausgas_Kennzahlen!B$9) ->  | K60: =IF(H60="","",H60*Treibhausgas_Kennzahlen!C$9) ->  | L60: =IF(H60="","",H60*Treibhausgas_Kennzahlen!D$9) ->  | M60: =IF(H60="","",H60*Treibhausgas_Kennzahlen!E$9) ->  | N60: =IF(H60="","",H60*Treibhausgas_Kennzahlen!F$9) ->  | O60: =IF(H60="","",H60*Treibhausgas_Kennzahlen!G$9) -> 
F61: =IF(E61="","",VLOOKUP(INDEX(Binnenhäfen!$A$2:$A$501, MATCH(Berechnung!C61,Binnenhäfen!$B$2:$B$501,0))&"_"&INDEX(Binnenhäfen!$A$2:$A$501, MATCH(Berechnung!D61,Binnenhäfen!$B$2:$B$501,0)),Entfernung_Binnenhäfen!$C$2:$D$10001,2,FALSE)) ->  | G61: =IF(E61="","", VLOOKUP(INDEX(SchiffstypenID, MATCH(Berechnung!A61,Schiffstypen!$B$2:$B$4,0))&"_"&INDEX(FahrttypenID, MATCH(Berechnung!B61,Fahrttypen!$B$2:$B$5,0)),Energieverbrauch_Kennzahlen!$C$2:$D$10,2,FALSE)) ->  | I61: =IF(H61="","",H61/Treibhausgas_Kennzahlen!$B$5) ->  | J61: =IF(H61="","",H61*Treibhausgas_Kennzahlen!B$9) ->  | K61: =IF(H61="","",H61*Treibhausgas_Kennzahlen!C$9) ->  | L61: =IF(H61="","",H61*Treibhausgas_Kennzahlen!D$9) ->  | M61: =IF(H61="","",H61*Treibhausgas_Kennzahlen!E$9) ->  | N61: =IF(H61="","",H61*Treibhausgas_Kennzahlen!F$9) ->  | O61: =IF(H61="","",H61*Treibhausgas_Kennzahlen!G$9) -> 
F62: =IF(E62="","",VLOOKUP(INDEX(Binnenhäfen!$A$2:$A$501, MATCH(Berechnung!C62,Binnenhäfen!$B$2:$B$501,0))&"_"&INDEX(Binnenhäfen!$A$2:$A$501, MATCH(Berechnung!D62,Binnenhäfen!$B$2:$B$501,0)),Entfernung_Binnenhäfen!$C$2:$D$10001,2,FALSE)) ->  | G62: =IF(E62="","", VLOOKUP(INDEX(SchiffstypenID, MATCH(Berechnung!A62,Schiffstypen!$B$2:$B$4,0))&"_"&INDEX(FahrttypenID, MATCH(Berechnung!B62,Fahrttypen!$B$2:$B$5,0)),Energieverbrauch_Kennzahlen!$C$2:$D$10,2,FALSE)) ->  | I62: =IF(H62="","",H62/Treibhausgas_Kennzahlen!$B$5) ->  | J62: =IF(H62="","",H62*Treibhausgas_Kennzahlen!B$9) ->  | K62: =IF(H62="","",H62*Treibhausgas_Kennzahlen!C$9) ->  | L62: =IF(H62="","",H62*Treibhausgas_Kennzahlen!D$9) ->  | M62: =IF(H62="","",H62*Treibhausgas_Kennzahlen!E$9) ->  | N62: =IF(H62="","",H62*Treibhausgas_Kennzahlen!F$9) ->  | O62: =IF(H62="","",H62*Treibhausgas_Kennzahlen!G$9) -> 
F63: =IF(E63="","",VLOOKUP(INDEX(Binnenhäfen!$A$2:$A$501, MATCH(Berechnung!C63,Binnenhäfen!$B$2:$B$501,0))&"_"&INDEX(Binnenhäfen!$A$2:$A$501, MATCH(Berechnung!D63,Binnenhäfen!$B$2:$B$501,0)),Entfernung_Binnenhäfen!$C$2:$D$10001,2,FALSE)) ->  | G63: =IF(E63="","", VLOOKUP(INDEX(SchiffstypenID, MATCH(Berechnung!A63,Schiffstypen!$B$2:$B$4,0))&"_"&INDEX(FahrttypenID, MATCH(Berechnung!B63,Fahrttypen!$B$2:$B$5,0)),Energieverbrauch_Kennzahlen!$C$2:$D$10,2,FALSE)) ->  | I63: =IF(H63="","",H63/Treibhausgas_Kennzahlen!$B$5) ->  | J63: =IF(H63="","",H63*Treibhausgas_Kennzahlen!B$9) ->  | K63: =IF(H63="","",H63*Treibhausgas_Kennzahlen!C$9) ->  | L63: =IF(H63="","",H63*Treibhausgas_Kennzahlen!D$9) ->  | M63: =IF(H63="","",H63*Treibhausgas_Kennzahlen!E$9) ->  | N63: =IF(H63="","",H63*Treibhausgas_Kennzahlen!F$9) ->  | O63: =IF(H63="","",H63*Treibhausgas_Kennzahlen!G$9) -> 
F64: =IF(E64="","",VLOOKUP(INDEX(Binnenhäfen!$A$2:$A$501, MATCH(Berechnung!C64,Binnenhäfen!$B$2:$B$501,0))&"_"&INDEX(Binnenhäfen!$A$2:$A$501, MATCH(Berechnung!D64,Binnenhäfen!$B$2:$B$501,0)),Entfernung_Binnenhäfen!$C$2:$D$10001,2,FALSE)) ->  | G64: =IF(E64="","", VLOOKUP(INDEX(SchiffstypenID, MATCH(Berechnung!A64,Schiffstypen!$B$2:$B$4,0))&"_"&INDEX(FahrttypenID, MATCH(Berechnung!B64,Fahrttypen!$B$2:$B$5,0)),Energieverbrauch_Kennzahlen!$C$2:$D$10,2,FALSE)) ->  | I64: =IF(H64="","",H64/Treibhausgas_Kennzahlen!$B$5) ->  | J64: =IF(H64="","",H64*Treibhausgas_Kennzahlen!B$9) ->  | K64: =IF(H64="","",H64*Treibhausgas_Kennzahlen!C$9) ->  | L64: =IF(H64="","",H64*Treibhausgas_Kennzahlen!D$9) ->  | M64: =IF(H64="","",H64*Treibhausgas_Kennzahlen!E$9) ->  | N64: =IF(H64="","",H64*Treibhausgas_Kennzahlen!F$9) ->  | O64: =IF(H64="","",H64*Treibhausgas_Kennzahlen!G$9) -> 
F65: =IF(E65="","",VLOOKUP(INDEX(Binnenhäfen!$A$2:$A$501, MATCH(Berechnung!C65,Binnenhäfen!$B$2:$B$501,0))&"_"&INDEX(Binnenhäfen!$A$2:$A$501, MATCH(Berechnung!D65,Binnenhäfen!$B$2:$B$501,0)),Entfernung_Binnenhäfen!$C$2:$D$10001,2,FALSE)) ->  | G65: =IF(E65="","", VLOOKUP(INDEX(SchiffstypenID, MATCH(Berechnung!A65,Schiffstypen!$B$2:$B$4,0))&"_"&INDEX(FahrttypenID, MATCH(Berechnung!B65,Fahrttypen!$B$2:$B$5,0)),Energieverbrauch_Kennzahlen!$C$2:$D$10,2,FALSE)) ->  | I65: =IF(H65="","",H65/Treibhausgas_Kennzahlen!$B$5) ->  | J65: =IF(H65="","",H65*Treibhausgas_Kennzahlen!B$9) ->  | K65: =IF(H65="","",H65*Treibhausgas_Kennzahlen!C$9) ->  | L65: =IF(H65="","",H65*Treibhausgas_Kennzahlen!D$9) ->  | M65: =IF(H65="","",H65*Treibhausgas_Kennzahlen!E$9) ->  | N65: =IF(H65="","",H65*Treibhausgas_Kennzahlen!F$9) ->  | O65: =IF(H65="","",H65*Treibhausgas_Kennzahlen!G$9) -> 
F66: =IF(E66="","",VLOOKUP(INDEX(Binnenhäfen!$A$2:$A$501, MATCH(Berechnung!C66,Binnenhäfen!$B$2:$B$501,0))&"_"&INDEX(Binnenhäfen!$A$2:$A$501, MATCH(Berechnung!D66,Binnenhäfen!$B$2:$B$501,0)),Entfernung_Binnenhäfen!$C$2:$D$10001,2,FALSE)) ->  | G66: =IF(E66="","", VLOOKUP(INDEX(SchiffstypenID, MATCH(Berechnung!A66,Schiffstypen!$B$2:$B$4,0))&"_"&INDEX(FahrttypenID, MATCH(Berechnung!B66,Fahrttypen!$B$2:$B$5,0)),Energieverbrauch_Kennzahlen!$C$2:$D$10,2,FALSE)) ->  | I66: =IF(H66="","",H66/Treibhausgas_Kennzahlen!$B$5) ->  | J66: =IF(H66="","",H66*Treibhausgas_Kennzahlen!B$9) ->  | K66: =IF(H66="","",H66*Treibhausgas_Kennzahlen!C$9) ->  | L66: =IF(H66="","",H66*Treibhausgas_Kennzahlen!D$9) ->  | M66: =IF(H66="","",H66*Treibhausgas_Kennzahlen!E$9) ->  | N66: =IF(H66="","",H66*Treibhausgas_Kennzahlen!F$9) ->  | O66: =IF(H66="","",H66*Treibhausgas_Kennzahlen!G$9) -> 
F67: =IF(E67="","",VLOOKUP(INDEX(Binnenhäfen!$A$2:$A$501, MATCH(Berechnung!C67,Binnenhäfen!$B$2:$B$501,0))&"_"&INDEX(Binnenhäfen!$A$2:$A$501, MATCH(Berechnung!D67,Binnenhäfen!$B$2:$B$501,0)),Entfernung_Binnenhäfen!$C$2:$D$10001,2,FALSE)) ->  | G67: =IF(E67="","", VLOOKUP(INDEX(SchiffstypenID, MATCH(Berechnung!A67,Schiffstypen!$B$2:$B$4,0))&"_"&INDEX(FahrttypenID, MATCH(Berechnung!B67,Fahrttypen!$B$2:$B$5,0)),Energieverbrauch_Kennzahlen!$C$2:$D$10,2,FALSE)) ->  | I67: =IF(H67="","",H67/Treibhausgas_Kennzahlen!$B$5) ->  | J67: =IF(H67="","",H67*Treibhausgas_Kennzahlen!B$9) ->  | K67: =IF(H67="","",H67*Treibhausgas_Kennzahlen!C$9) ->  | L67: =IF(H67="","",H67*Treibhausgas_Kennzahlen!D$9) ->  | M67: =IF(H67="","",H67*Treibhausgas_Kennzahlen!E$9) ->  | N67: =IF(H67="","",H67*Treibhausgas_Kennzahlen!F$9) ->  | O67: =IF(H67="","",H67*Treibhausgas_Kennzahlen!G$9) -> 
F68: =IF(E68="","",VLOOKUP(INDEX(Binnenhäfen!$A$2:$A$501, MATCH(Berechnung!C68,Binnenhäfen!$B$2:$B$501,0))&"_"&INDEX(Binnenhäfen!$A$2:$A$501, MATCH(Berechnung!D68,Binnenhäfen!$B$2:$B$501,0)),Entfernung_Binnenhäfen!$C$2:$D$10001,2,FALSE)) ->  | G68: =IF(E68="","", VLOOKUP(INDEX(SchiffstypenID, MATCH(Berechnung!A68,Schiffstypen!$B$2:$B$4,0))&"_"&INDEX(FahrttypenID, MATCH(Berechnung!B68,Fahrttypen!$B$2:$B$5,0)),Energieverbrauch_Kennzahlen!$C$2:$D$10,2,FALSE)) ->  | I68: =IF(H68="","",H68/Treibhausgas_Kennzahlen!$B$5) ->  | J68: =IF(H68="","",H68*Treibhausgas_Kennzahlen!B$9) ->  | K68: =IF(H68="","",H68*Treibhausgas_Kennzahlen!C$9) ->  | L68: =IF(H68="","",H68*Treibhausgas_Kennzahlen!D$9) ->  | M68: =IF(H68="","",H68*Treibhausgas_Kennzahlen!E$9) ->  | N68: =IF(H68="","",H68*Treibhausgas_Kennzahlen!F$9) ->  | O68: =IF(H68="","",H68*Treibhausgas_Kennzahlen!G$9) -> 
F69: =IF(E69="","",VLOOKUP(INDEX(Binnenhäfen!$A$2:$A$501, MATCH(Berechnung!C69,Binnenhäfen!$B$2:$B$501,0))&"_"&INDEX(Binnenhäfen!$A$2:$A$501, MATCH(Berechnung!D69,Binnenhäfen!$B$2:$B$501,0)),Entfernung_Binnenhäfen!$C$2:$D$10001,2,FALSE)) ->  | G69: =IF(E69="","", VLOOKUP(INDEX(SchiffstypenID, MATCH(Berechnung!A69,Schiffstypen!$B$2:$B$4,0))&"_"&INDEX(FahrttypenID, MATCH(Berechnung!B69,Fahrttypen!$B$2:$B$5,0)),Energieverbrauch_Kennzahlen!$C$2:$D$10,2,FALSE)) ->  | I69: =IF(H69="","",H69/Treibhausgas_Kennzahlen!$B$5) ->  | J69: =IF(H69="","",H69*Treibhausgas_Kennzahlen!B$9) ->  | K69: =IF(H69="","",H69*Treibhausgas_Kennzahlen!C$9) ->  | L69: =IF(H69="","",H69*Treibhausgas_Kennzahlen!D$9) ->  | M69: =IF(H69="","",H69*Treibhausgas_Kennzahlen!E$9) ->  | N69: =IF(H69="","",H69*Treibhausgas_Kennzahlen!F$9) ->  | O69: =IF(H69="","",H69*Treibhausgas_Kennzahlen!G$9) -> 
F70: =IF(E70="","",VLOOKUP(INDEX(Binnenhäfen!$A$2:$A$501, MATCH(Berechnung!C70,Binnenhäfen!$B$2:$B$501,0))&"_"&INDEX(Binnenhäfen!$A$2:$A$501, MATCH(Berechnung!D70,Binnenhäfen!$B$2:$B$501,0)),Entfernung_Binnenhäfen!$C$2:$D$10001,2,FALSE)) ->  | G70: =IF(E70="","", VLOOKUP(INDEX(SchiffstypenID, MATCH(Berechnung!A70,Schiffstypen!$B$2:$B$4,0))&"_"&INDEX(FahrttypenID, MATCH(Berechnung!B70,Fahrttypen!$B$2:$B$5,0)),Energieverbrauch_Kennzahlen!$C$2:$D$10,2,FALSE)) ->  | I70: =IF(H70="","",H70/Treibhausgas_Kennzahlen!$B$5) ->  | J70: =IF(H70="","",H70*Treibhausgas_Kennzahlen!B$9) ->  | K70: =IF(H70="","",H70*Treibhausgas_Kennzahlen!C$9) ->  | L70: =IF(H70="","",H70*Treibhausgas_Kennzahlen!D$9) ->  | M70: =IF(H70="","",H70*Treibhausgas_Kennzahlen!E$9) ->  | N70: =IF(H70="","",H70*Treibhausgas_Kennzahlen!F$9) ->  | O70: =IF(H70="","",H70*Treibhausgas_Kennzahlen!G$9) -> 
F71: =IF(E71="","",VLOOKUP(INDEX(Binnenhäfen!$A$2:$A$501, MATCH(Berechnung!C71,Binnenhäfen!$B$2:$B$501,0))&"_"&INDEX(Binnenhäfen!$A$2:$A$501, MATCH(Berechnung!D71,Binnenhäfen!$B$2:$B$501,0)),Entfernung_Binnenhäfen!$C$2:$D$10001,2,FALSE)) ->  | G71: =IF(E71="","", VLOOKUP(INDEX(SchiffstypenID, MATCH(Berechnung!A71,Schiffstypen!$B$2:$B$4,0))&"_"&INDEX(FahrttypenID, MATCH(Berechnung!B71,Fahrttypen!$B$2:$B$5,0)),Energieverbrauch_Kennzahlen!$C$2:$D$10,2,FALSE)) ->  | H71: =IF(G71="","",PRODUCT(G71,F71,E71)/1000) ->  | I71: =IF(H71="","",H71/Treibhausgas_Kennzahlen!$B$5) ->  | J71: =IF(H71="","",H71*Treibhausgas_Kennzahlen!B$9) ->  | K71: =IF(H71="","",H71*Treibhausgas_Kennzahlen!C$9) ->  | L71: =IF(H71="","",H71*Treibhausgas_Kennzahlen!D$9) ->  | M71: =IF(H71="","",H71*Treibhausgas_Kennzahlen!E$9) ->  | N71: =IF(H71="","",H71*Treibhausgas_Kennzahlen!F$9) ->  | O71: =IF(H71="","",H71*Treibhausgas_Kennzahlen!G$9) -> 
F72: =IF(E72="","",VLOOKUP(INDEX(Binnenhäfen!$A$2:$A$501, MATCH(Berechnung!C72,Binnenhäfen!$B$2:$B$501,0))&"_"&INDEX(Binnenhäfen!$A$2:$A$501, MATCH(Berechnung!D72,Binnenhäfen!$B$2:$B$501,0)),Entfernung_Binnenhäfen!$C$2:$D$10001,2,FALSE)) ->  | G72: =IF(E72="","", VLOOKUP(INDEX(SchiffstypenID, MATCH(Berechnung!A72,Schiffstypen!$B$2:$B$4,0))&"_"&INDEX(FahrttypenID, MATCH(Berechnung!B72,Fahrttypen!$B$2:$B$5,0)),Energieverbrauch_Kennzahlen!$C$2:$D$10,2,FALSE)) ->  | I72: =IF(H72="","",H72/Treibhausgas_Kennzahlen!$B$5) ->  | J72: =IF(H72="","",H72*Treibhausgas_Kennzahlen!B$9) ->  | K72: =IF(H72="","",H72*Treibhausgas_Kennzahlen!C$9) ->  | L72: =IF(H72="","",H72*Treibhausgas_Kennzahlen!D$9) ->  | M72: =IF(H72="","",H72*Treibhausgas_Kennzahlen!E$9) ->  | N72: =IF(H72="","",H72*Treibhausgas_Kennzahlen!F$9) ->  | O72: =IF(H72="","",H72*Treibhausgas_Kennzahlen!G$9) -> 
F73: =IF(E73="","",VLOOKUP(INDEX(Binnenhäfen!$A$2:$A$501, MATCH(Berechnung!C73,Binnenhäfen!$B$2:$B$501,0))&"_"&INDEX(Binnenhäfen!$A$2:$A$501, MATCH(Berechnung!D73,Binnenhäfen!$B$2:$B$501,0)),Entfernung_Binnenhäfen!$C$2:$D$10001,2,FALSE)) ->  | G73: =IF(E73="","", VLOOKUP(INDEX(SchiffstypenID, MATCH(Berechnung!A73,Schiffstypen!$B$2:$B$4,0))&"_"&INDEX(FahrttypenID, MATCH(Berechnung!B73,Fahrttypen!$B$2:$B$5,0)),Energieverbrauch_Kennzahlen!$C$2:$D$10,2,FALSE)) ->  | I73: =IF(H73="","",H73/Treibhausgas_Kennzahlen!$B$5) ->  | J73: =IF(H73="","",H73*Treibhausgas_Kennzahlen!B$9) ->  | K73: =IF(H73="","",H73*Treibhausgas_Kennzahlen!C$9) ->  | L73: =IF(H73="","",H73*Treibhausgas_Kennzahlen!D$9) ->  | M73: =IF(H73="","",H73*Treibhausgas_Kennzahlen!E$9) ->  | N73: =IF(H73="","",H73*Treibhausgas_Kennzahlen!F$9) ->  | O73: =IF(H73="","",H73*Treibhausgas_Kennzahlen!G$9) -> 
F74: =IF(E74="","",VLOOKUP(INDEX(Binnenhäfen!$A$2:$A$501, MATCH(Berechnung!C74,Binnenhäfen!$B$2:$B$501,0))&"_"&INDEX(Binnenhäfen!$A$2:$A$501, MATCH(Berechnung!D74,Binnenhäfen!$B$2:$B$501,0)),Entfernung_Binnenhäfen!$C$2:$D$10001,2,FALSE)) ->  | G74: =IF(E74="","", VLOOKUP(INDEX(SchiffstypenID, MATCH(Berechnung!A74,Schiffstypen!$B$2:$B$4,0))&"_"&INDEX(FahrttypenID, MATCH(Berechnung!B74,Fahrttypen!$B$2:$B$5,0)),Energieverbrauch_Kennzahlen!$C$2:$D$10,2,FALSE)) ->  | I74: =IF(H74="","",H74/Treibhausgas_Kennzahlen!$B$5) ->  | J74: =IF(H74="","",H74*Treibhausgas_Kennzahlen!B$9) ->  | K74: =IF(H74="","",H74*Treibhausgas_Kennzahlen!C$9) ->  | L74: =IF(H74="","",H74*Treibhausgas_Kennzahlen!D$9) ->  | M74: =IF(H74="","",H74*Treibhausgas_Kennzahlen!E$9) ->  | N74: =IF(H74="","",H74*Treibhausgas_Kennzahlen!F$9) ->  | O74: =IF(H74="","",H74*Treibhausgas_Kennzahlen!G$9) -> 
F75: =IF(E75="","",VLOOKUP(INDEX(Binnenhäfen!$A$2:$A$501, MATCH(Berechnung!C75,Binnenhäfen!$B$2:$B$501,0))&"_"&INDEX(Binnenhäfen!$A$2:$A$501, MATCH(Berechnung!D75,Binnenhäfen!$B$2:$B$501,0)),Entfernung_Binnenhäfen!$C$2:$D$10001,2,FALSE)) ->  | G75: =IF(E75="","", VLOOKUP(INDEX(SchiffstypenID, MATCH(Berechnung!A75,Schiffstypen!$B$2:$B$4,0))&"_"&INDEX(FahrttypenID, MATCH(Berechnung!B75,Fahrttypen!$B$2:$B$5,0)),Energieverbrauch_Kennzahlen!$C$2:$D$10,2,FALSE)) ->  | I75: =IF(H75="","",H75/Treibhausgas_Kennzahlen!$B$5) ->  | J75: =IF(H75="","",H75*Treibhausgas_Kennzahlen!B$9) ->  | K75: =IF(H75="","",H75*Treibhausgas_Kennzahlen!C$9) ->  | L75: =IF(H75="","",H75*Treibhausgas_Kennzahlen!D$9) ->  | M75: =IF(H75="","",H75*Treibhausgas_Kennzahlen!E$9) ->  | N75: =IF(H75="","",H75*Treibhausgas_Kennzahlen!F$9) ->  | O75: =IF(H75="","",H75*Treibhausgas_Kennzahlen!G$9) -> 
F76: =IF(E76="","",VLOOKUP(INDEX(Binnenhäfen!$A$2:$A$501, MATCH(Berechnung!C76,Binnenhäfen!$B$2:$B$501,0))&"_"&INDEX(Binnenhäfen!$A$2:$A$501, MATCH(Berechnung!D76,Binnenhäfen!$B$2:$B$501,0)),Entfernung_Binnenhäfen!$C$2:$D$10001,2,FALSE)) ->  | G76: =IF(E76="","", VLOOKUP(INDEX(SchiffstypenID, MATCH(Berechnung!A76,Schiffstypen!$B$2:$B$4,0))&"_"&INDEX(FahrttypenID, MATCH(Berechnung!B76,Fahrttypen!$B$2:$B$5,0)),Energieverbrauch_Kennzahlen!$C$2:$D$10,2,FALSE)) ->  | I76: =IF(H76="","",H76/Treibhausgas_Kennzahlen!$B$5) ->  | J76: =IF(H76="","",H76*Treibhausgas_Kennzahlen!B$9) ->  | K76: =IF(H76="","",H76*Treibhausgas_Kennzahlen!C$9) ->  | L76: =IF(H76="","",H76*Treibhausgas_Kennzahlen!D$9) ->  | M76: =IF(H76="","",H76*Treibhausgas_Kennzahlen!E$9) ->  | N76: =IF(H76="","",H76*Treibhausgas_Kennzahlen!F$9) ->  | O76: =IF(H76="","",H76*Treibhausgas_Kennzahlen!G$9) -> 
F77: =IF(E77="","",VLOOKUP(INDEX(Binnenhäfen!$A$2:$A$501, MATCH(Berechnung!C77,Binnenhäfen!$B$2:$B$501,0))&"_"&INDEX(Binnenhäfen!$A$2:$A$501, MATCH(Berechnung!D77,Binnenhäfen!$B$2:$B$501,0)),Entfernung_Binnenhäfen!$C$2:$D$10001,2,FALSE)) ->  | G77: =IF(E77="","", VLOOKUP(INDEX(SchiffstypenID, MATCH(Berechnung!A77,Schiffstypen!$B$2:$B$4,0))&"_"&INDEX(FahrttypenID, MATCH(Berechnung!B77,Fahrttypen!$B$2:$B$5,0)),Energieverbrauch_Kennzahlen!$C$2:$D$10,2,FALSE)) ->  | I77: =IF(H77="","",H77/Treibhausgas_Kennzahlen!$B$5) ->  | J77: =IF(H77="","",H77*Treibhausgas_Kennzahlen!B$9) ->  | K77: =IF(H77="","",H77*Treibhausgas_Kennzahlen!C$9) ->  | L77: =IF(H77="","",H77*Treibhausgas_Kennzahlen!D$9) ->  | M77: =IF(H77="","",H77*Treibhausgas_Kennzahlen!E$9) ->  | N77: =IF(H77="","",H77*Treibhausgas_Kennzahlen!F$9) ->  | O77: =IF(H77="","",H77*Treibhausgas_Kennzahlen!G$9) -> 
F78: =IF(E78="","",VLOOKUP(INDEX(Binnenhäfen!$A$2:$A$501, MATCH(Berechnung!C78,Binnenhäfen!$B$2:$B$501,0))&"_"&INDEX(Binnenhäfen!$A$2:$A$501, MATCH(Berechnung!D78,Binnenhäfen!$B$2:$B$501,0)),Entfernung_Binnenhäfen!$C$2:$D$10001,2,FALSE)) ->  | G78: =IF(E78="","", VLOOKUP(INDEX(SchiffstypenID, MATCH(Berechnung!A78,Schiffstypen!$B$2:$B$4,0))&"_"&INDEX(FahrttypenID, MATCH(Berechnung!B78,Fahrttypen!$B$2:$B$5,0)),Energieverbrauch_Kennzahlen!$C$2:$D$10,2,FALSE)) ->  | I78: =IF(H78="","",H78/Treibhausgas_Kennzahlen!$B$5) ->  | J78: =IF(H78="","",H78*Treibhausgas_Kennzahlen!B$9) ->  | K78: =IF(H78="","",H78*Treibhausgas_Kennzahlen!C$9) ->  | L78: =IF(H78="","",H78*Treibhausgas_Kennzahlen!D$9) ->  | M78: =IF(H78="","",H78*Treibhausgas_Kennzahlen!E$9) ->  | N78: =IF(H78="","",H78*Treibhausgas_Kennzahlen!F$9) ->  | O78: =IF(H78="","",H78*Treibhausgas_Kennzahlen!G$9) -> 
F79: =IF(E79="","",VLOOKUP(INDEX(Binnenhäfen!$A$2:$A$501, MATCH(Berechnung!C79,Binnenhäfen!$B$2:$B$501,0))&"_"&INDEX(Binnenhäfen!$A$2:$A$501, MATCH(Berechnung!D79,Binnenhäfen!$B$2:$B$501,0)),Entfernung_Binnenhäfen!$C$2:$D$10001,2,FALSE)) ->  | G79: =IF(E79="","", VLOOKUP(INDEX(SchiffstypenID, MATCH(Berechnung!A79,Schiffstypen!$B$2:$B$4,0))&"_"&INDEX(FahrttypenID, MATCH(Berechnung!B79,Fahrttypen!$B$2:$B$5,0)),Energieverbrauch_Kennzahlen!$C$2:$D$10,2,FALSE)) ->  | I79: =IF(H79="","",H79/Treibhausgas_Kennzahlen!$B$5) ->  | J79: =IF(H79="","",H79*Treibhausgas_Kennzahlen!B$9) ->  | K79: =IF(H79="","",H79*Treibhausgas_Kennzahlen!C$9) ->  | L79: =IF(H79="","",H79*Treibhausgas_Kennzahlen!D$9) ->  | M79: =IF(H79="","",H79*Treibhausgas_Kennzahlen!E$9) ->  | N79: =IF(H79="","",H79*Treibhausgas_Kennzahlen!F$9) ->  | O79: =IF(H79="","",H79*Treibhausgas_Kennzahlen!G$9) -> 
F80: =IF(E80="","",VLOOKUP(INDEX(Binnenhäfen!$A$2:$A$501, MATCH(Berechnung!C80,Binnenhäfen!$B$2:$B$501,0))&"_"&INDEX(Binnenhäfen!$A$2:$A$501, MATCH(Berechnung!D80,Binnenhäfen!$B$2:$B$501,0)),Entfernung_Binnenhäfen!$C$2:$D$10001,2,FALSE)) ->  | G80: =IF(E80="","", VLOOKUP(INDEX(SchiffstypenID, MATCH(Berechnung!A80,Schiffstypen!$B$2:$B$4,0))&"_"&INDEX(FahrttypenID, MATCH(Berechnung!B80,Fahrttypen!$B$2:$B$5,0)),Energieverbrauch_Kennzahlen!$C$2:$D$10,2,FALSE)) ->  | I80: =IF(H80="","",H80/Treibhausgas_Kennzahlen!$B$5) ->  | J80: =IF(H80="","",H80*Treibhausgas_Kennzahlen!B$9) ->  | K80: =IF(H80="","",H80*Treibhausgas_Kennzahlen!C$9) ->  | L80: =IF(H80="","",H80*Treibhausgas_Kennzahlen!D$9) ->  | M80: =IF(H80="","",H80*Treibhausgas_Kennzahlen!E$9) ->  | N80: =IF(H80="","",H80*Treibhausgas_Kennzahlen!F$9) ->  | O80: =IF(H80="","",H80*Treibhausgas_Kennzahlen!G$9) -> 
F81: =IF(E81="","",VLOOKUP(INDEX(Binnenhäfen!$A$2:$A$501, MATCH(Berechnung!C81,Binnenhäfen!$B$2:$B$501,0))&"_"&INDEX(Binnenhäfen!$A$2:$A$501, MATCH(Berechnung!D81,Binnenhäfen!$B$2:$B$501,0)),Entfernung_Binnenhäfen!$C$2:$D$10001,2,FALSE)) ->  | G81: =IF(E81="","", VLOOKUP(INDEX(SchiffstypenID, MATCH(Berechnung!A81,Schiffstypen!$B$2:$B$4,0))&"_"&INDEX(FahrttypenID, MATCH(Berechnung!B81,Fahrttypen!$B$2:$B$5,0)),Energieverbrauch_Kennzahlen!$C$2:$D$10,2,FALSE)) ->  | I81: =IF(H81="","",H81/Treibhausgas_Kennzahlen!$B$5) ->  | J81: =IF(H81="","",H81*Treibhausgas_Kennzahlen!B$9) ->  | K81: =IF(H81="","",H81*Treibhausgas_Kennzahlen!C$9) ->  | L81: =IF(H81="","",H81*Treibhausgas_Kennzahlen!D$9) ->  | M81: =IF(H81="","",H81*Treibhausgas_Kennzahlen!E$9) ->  | N81: =IF(H81="","",H81*Treibhausgas_Kennzahlen!F$9) ->  | O81: =IF(H81="","",H81*Treibhausgas_Kennzahlen!G$9) -> 
F82: =IF(E82="","",VLOOKUP(INDEX(Binnenhäfen!$A$2:$A$501, MATCH(Berechnung!C82,Binnenhäfen!$B$2:$B$501,0))&"_"&INDEX(Binnenhäfen!$A$2:$A$501, MATCH(Berechnung!D82,Binnenhäfen!$B$2:$B$501,0)),Entfernung_Binnenhäfen!$C$2:$D$10001,2,FALSE)) ->  | G82: =IF(E82="","", VLOOKUP(INDEX(SchiffstypenID, MATCH(Berechnung!A82,Schiffstypen!$B$2:$B$4,0))&"_"&INDEX(FahrttypenID, MATCH(Berechnung!B82,Fahrttypen!$B$2:$B$5,0)),Energieverbrauch_Kennzahlen!$C$2:$D$10,2,FALSE)) ->  | I82: =IF(H82="","",H82/Treibhausgas_Kennzahlen!$B$5) ->  | J82: =IF(H82="","",H82*Treibhausgas_Kennzahlen!B$9) ->  | K82: =IF(H82="","",H82*Treibhausgas_Kennzahlen!C$9) ->  | L82: =IF(H82="","",H82*Treibhausgas_Kennzahlen!D$9) ->  | M82: =IF(H82="","",H82*Treibhausgas_Kennzahlen!E$9) ->  | N82: =IF(H82="","",H82*Treibhausgas_Kennzahlen!F$9) ->  | O82: =IF(H82="","",H82*Treibhausgas_Kennzahlen!G$9) -> 
F83: =IF(E83="","",VLOOKUP(INDEX(Binnenhäfen!$A$2:$A$501, MATCH(Berechnung!C83,Binnenhäfen!$B$2:$B$501,0))&"_"&INDEX(Binnenhäfen!$A$2:$A$501, MATCH(Berechnung!D83,Binnenhäfen!$B$2:$B$501,0)),Entfernung_Binnenhäfen!$C$2:$D$10001,2,FALSE)) ->  | G83: =IF(E83="","", VLOOKUP(INDEX(SchiffstypenID, MATCH(Berechnung!A83,Schiffstypen!$B$2:$B$4,0))&"_"&INDEX(FahrttypenID, MATCH(Berechnung!B83,Fahrttypen!$B$2:$B$5,0)),Energieverbrauch_Kennzahlen!$C$2:$D$10,2,FALSE)) ->  | I83: =IF(H83="","",H83/Treibhausgas_Kennzahlen!$B$5) ->  | J83: =IF(H83="","",H83*Treibhausgas_Kennzahlen!B$9) ->  | K83: =IF(H83="","",H83*Treibhausgas_Kennzahlen!C$9) ->  | L83: =IF(H83="","",H83*Treibhausgas_Kennzahlen!D$9) ->  | M83: =IF(H83="","",H83*Treibhausgas_Kennzahlen!E$9) ->  | N83: =IF(H83="","",H83*Treibhausgas_Kennzahlen!F$9) ->  | O83: =IF(H83="","",H83*Treibhausgas_Kennzahlen!G$9) -> 
F84: =IF(E84="","",VLOOKUP(INDEX(Binnenhäfen!$A$2:$A$501, MATCH(Berechnung!C84,Binnenhäfen!$B$2:$B$501,0))&"_"&INDEX(Binnenhäfen!$A$2:$A$501, MATCH(Berechnung!D84,Binnenhäfen!$B$2:$B$501,0)),Entfernung_Binnenhäfen!$C$2:$D$10001,2,FALSE)) ->  | G84: =IF(E84="","", VLOOKUP(INDEX(SchiffstypenID, MATCH(Berechnung!A84,Schiffstypen!$B$2:$B$4,0))&"_"&INDEX(FahrttypenID, MATCH(Berechnung!B84,Fahrttypen!$B$2:$B$5,0)),Energieverbrauch_Kennzahlen!$C$2:$D$10,2,FALSE)) ->  | I84: =IF(H84="","",H84/Treibhausgas_Kennzahlen!$B$5) ->  | J84: =IF(H84="","",H84*Treibhausgas_Kennzahlen!B$9) ->  | K84: =IF(H84="","",H84*Treibhausgas_Kennzahlen!C$9) ->  | L84: =IF(H84="","",H84*Treibhausgas_Kennzahlen!D$9) ->  | M84: =IF(H84="","",H84*Treibhausgas_Kennzahlen!E$9) ->  | N84: =IF(H84="","",H84*Treibhausgas_Kennzahlen!F$9) ->  | O84: =IF(H84="","",H84*Treibhausgas_Kennzahlen!G$9) -> 
F85: =IF(E85="","",VLOOKUP(INDEX(Binnenhäfen!$A$2:$A$501, MATCH(Berechnung!C85,Binnenhäfen!$B$2:$B$501,0))&"_"&INDEX(Binnenhäfen!$A$2:$A$501, MATCH(Berechnung!D85,Binnenhäfen!$B$2:$B$501,0)),Entfernung_Binnenhäfen!$C$2:$D$10001,2,FALSE)) ->  | G85: =IF(E85="","", VLOOKUP(INDEX(SchiffstypenID, MATCH(Berechnung!A85,Schiffstypen!$B$2:$B$4,0))&"_"&INDEX(FahrttypenID, MATCH(Berechnung!B85,Fahrttypen!$B$2:$B$5,0)),Energieverbrauch_Kennzahlen!$C$2:$D$10,2,FALSE)) ->  | I85: =IF(H85="","",H85/Treibhausgas_Kennzahlen!$B$5) ->  | J85: =IF(H85="","",H85*Treibhausgas_Kennzahlen!B$9) ->  | K85: =IF(H85="","",H85*Treibhausgas_Kennzahlen!C$9) ->  | L85: =IF(H85="","",H85*Treibhausgas_Kennzahlen!D$9) ->  | M85: =IF(H85="","",H85*Treibhausgas_Kennzahlen!E$9) ->  | N85: =IF(H85="","",H85*Treibhausgas_Kennzahlen!F$9) ->  | O85: =IF(H85="","",H85*Treibhausgas_Kennzahlen!G$9) -> 
F86: =IF(E86="","",VLOOKUP(INDEX(Binnenhäfen!$A$2:$A$501, MATCH(Berechnung!C86,Binnenhäfen!$B$2:$B$501,0))&"_"&INDEX(Binnenhäfen!$A$2:$A$501, MATCH(Berechnung!D86,Binnenhäfen!$B$2:$B$501,0)),Entfernung_Binnenhäfen!$C$2:$D$10001,2,FALSE)) ->  | G86: =IF(E86="","", VLOOKUP(INDEX(SchiffstypenID, MATCH(Berechnung!A86,Schiffstypen!$B$2:$B$4,0))&"_"&INDEX(FahrttypenID, MATCH(Berechnung!B86,Fahrttypen!$B$2:$B$5,0)),Energieverbrauch_Kennzahlen!$C$2:$D$10,2,FALSE)) ->  | I86: =IF(H86="","",H86/Treibhausgas_Kennzahlen!$B$5) ->  | J86: =IF(H86="","",H86*Treibhausgas_Kennzahlen!B$9) ->  | K86: =IF(H86="","",H86*Treibhausgas_Kennzahlen!C$9) ->  | L86: =IF(H86="","",H86*Treibhausgas_Kennzahlen!D$9) ->  | M86: =IF(H86="","",H86*Treibhausgas_Kennzahlen!E$9) ->  | N86: =IF(H86="","",H86*Treibhausgas_Kennzahlen!F$9) ->  | O86: =IF(H86="","",H86*Treibhausgas_Kennzahlen!G$9) -> 
F87: =IF(E87="","",VLOOKUP(INDEX(Binnenhäfen!$A$2:$A$501, MATCH(Berechnung!C87,Binnenhäfen!$B$2:$B$501,0))&"_"&INDEX(Binnenhäfen!$A$2:$A$501, MATCH(Berechnung!D87,Binnenhäfen!$B$2:$B$501,0)),Entfernung_Binnenhäfen!$C$2:$D$10001,2,FALSE)) ->  | G87: =IF(E87="","", VLOOKUP(INDEX(SchiffstypenID, MATCH(Berechnung!A87,Schiffstypen!$B$2:$B$4,0))&"_"&INDEX(FahrttypenID, MATCH(Berechnung!B87,Fahrttypen!$B$2:$B$5,0)),Energieverbrauch_Kennzahlen!$C$2:$D$10,2,FALSE)) ->  | I87: =IF(H87="","",H87/Treibhausgas_Kennzahlen!$B$5) ->  | J87: =IF(H87="","",H87*Treibhausgas_Kennzahlen!B$9) ->  | K87: =IF(H87="","",H87*Treibhausgas_Kennzahlen!C$9) ->  | L87: =IF(H87="","",H87*Treibhausgas_Kennzahlen!D$9) ->  | M87: =IF(H87="","",H87*Treibhausgas_Kennzahlen!E$9) ->  | N87: =IF(H87="","",H87*Treibhausgas_Kennzahlen!F$9) ->  | O87: =IF(H87="","",H87*Treibhausgas_Kennzahlen!G$9) -> 
F88: =IF(E88="","",VLOOKUP(INDEX(Binnenhäfen!$A$2:$A$501, MATCH(Berechnung!C88,Binnenhäfen!$B$2:$B$501,0))&"_"&INDEX(Binnenhäfen!$A$2:$A$501, MATCH(Berechnung!D88,Binnenhäfen!$B$2:$B$501,0)),Entfernung_Binnenhäfen!$C$2:$D$10001,2,FALSE)) ->  | G88: =IF(E88="","", VLOOKUP(INDEX(SchiffstypenID, MATCH(Berechnung!A88,Schiffstypen!$B$2:$B$4,0))&"_"&INDEX(FahrttypenID, MATCH(Berechnung!B88,Fahrttypen!$B$2:$B$5,0)),Energieverbrauch_Kennzahlen!$C$2:$D$10,2,FALSE)) ->  | I88: =IF(H88="","",H88/Treibhausgas_Kennzahlen!$B$5) ->  | J88: =IF(H88="","",H88*Treibhausgas_Kennzahlen!B$9) ->  | K88: =IF(H88="","",H88*Treibhausgas_Kennzahlen!C$9) ->  | L88: =IF(H88="","",H88*Treibhausgas_Kennzahlen!D$9) ->  | M88: =IF(H88="","",H88*Treibhausgas_Kennzahlen!E$9) ->  | N88: =IF(H88="","",H88*Treibhausgas_Kennzahlen!F$9) ->  | O88: =IF(H88="","",H88*Treibhausgas_Kennzahlen!G$9) -> 
F89: =IF(E89="","",VLOOKUP(INDEX(Binnenhäfen!$A$2:$A$501, MATCH(Berechnung!C89,Binnenhäfen!$B$2:$B$501,0))&"_"&INDEX(Binnenhäfen!$A$2:$A$501, MATCH(Berechnung!D89,Binnenhäfen!$B$2:$B$501,0)),Entfernung_Binnenhäfen!$C$2:$D$10001,2,FALSE)) ->  | G89: =IF(E89="","", VLOOKUP(INDEX(SchiffstypenID, MATCH(Berechnung!A89,Schiffstypen!$B$2:$B$4,0))&"_"&INDEX(FahrttypenID, MATCH(Berechnung!B89,Fahrttypen!$B$2:$B$5,0)),Energieverbrauch_Kennzahlen!$C$2:$D$10,2,FALSE)) ->  | I89: =IF(H89="","",H89/Treibhausgas_Kennzahlen!$B$5) ->  | J89: =IF(H89="","",H89*Treibhausgas_Kennzahlen!B$9) ->  | K89: =IF(H89="","",H89*Treibhausgas_Kennzahlen!C$9) ->  | L89: =IF(H89="","",H89*Treibhausgas_Kennzahlen!D$9) ->  | M89: =IF(H89="","",H89*Treibhausgas_Kennzahlen!E$9) ->  | N89: =IF(H89="","",H89*Treibhausgas_Kennzahlen!F$9) ->  | O89: =IF(H89="","",H89*Treibhausgas_Kennzahlen!G$9) -> 
F90: =IF(E90="","",VLOOKUP(INDEX(Binnenhäfen!$A$2:$A$501, MATCH(Berechnung!C90,Binnenhäfen!$B$2:$B$501,0))&"_"&INDEX(Binnenhäfen!$A$2:$A$501, MATCH(Berechnung!D90,Binnenhäfen!$B$2:$B$501,0)),Entfernung_Binnenhäfen!$C$2:$D$10001,2,FALSE)) ->  | G90: =IF(E90="","", VLOOKUP(INDEX(SchiffstypenID, MATCH(Berechnung!A90,Schiffstypen!$B$2:$B$4,0))&"_"&INDEX(FahrttypenID, MATCH(Berechnung!B90,Fahrttypen!$B$2:$B$5,0)),Energieverbrauch_Kennzahlen!$C$2:$D$10,2,FALSE)) ->  | I90: =IF(H90="","",H90/Treibhausgas_Kennzahlen!$B$5) ->  | J90: =IF(H90="","",H90*Treibhausgas_Kennzahlen!B$9) ->  | K90: =IF(H90="","",H90*Treibhausgas_Kennzahlen!C$9) ->  | L90: =IF(H90="","",H90*Treibhausgas_Kennzahlen!D$9) ->  | M90: =IF(H90="","",H90*Treibhausgas_Kennzahlen!E$9) ->  | N90: =IF(H90="","",H90*Treibhausgas_Kennzahlen!F$9) ->  | O90: =IF(H90="","",H90*Treibhausgas_Kennzahlen!G$9) -> 
F91: =IF(E91="","",VLOOKUP(INDEX(Binnenhäfen!$A$2:$A$501, MATCH(Berechnung!C91,Binnenhäfen!$B$2:$B$501,0))&"_"&INDEX(Binnenhäfen!$A$2:$A$501, MATCH(Berechnung!D91,Binnenhäfen!$B$2:$B$501,0)),Entfernung_Binnenhäfen!$C$2:$D$10001,2,FALSE)) ->  | G91: =IF(E91="","", VLOOKUP(INDEX(SchiffstypenID, MATCH(Berechnung!A91,Schiffstypen!$B$2:$B$4,0))&"_"&INDEX(FahrttypenID, MATCH(Berechnung!B91,Fahrttypen!$B$2:$B$5,0)),Energieverbrauch_Kennzahlen!$C$2:$D$10,2,FALSE)) ->  | I91: =IF(H91="","",H91/Treibhausgas_Kennzahlen!$B$5) ->  | J91: =IF(H91="","",H91*Treibhausgas_Kennzahlen!B$9) ->  | K91: =IF(H91="","",H91*Treibhausgas_Kennzahlen!C$9) ->  | L91: =IF(H91="","",H91*Treibhausgas_Kennzahlen!D$9) ->  | M91: =IF(H91="","",H91*Treibhausgas_Kennzahlen!E$9) ->  | N91: =IF(H91="","",H91*Treibhausgas_Kennzahlen!F$9) ->  | O91: =IF(H91="","",H91*Treibhausgas_Kennzahlen!G$9) -> 
F92: =IF(E92="","",VLOOKUP(INDEX(Binnenhäfen!$A$2:$A$501, MATCH(Berechnung!C92,Binnenhäfen!$B$2:$B$501,0))&"_"&INDEX(Binnenhäfen!$A$2:$A$501, MATCH(Berechnung!D92,Binnenhäfen!$B$2:$B$501,0)),Entfernung_Binnenhäfen!$C$2:$D$10001,2,FALSE)) ->  | G92: =IF(E92="","", VLOOKUP(INDEX(SchiffstypenID, MATCH(Berechnung!A92,Schiffstypen!$B$2:$B$4,0))&"_"&INDEX(FahrttypenID, MATCH(Berechnung!B92,Fahrttypen!$B$2:$B$5,0)),Energieverbrauch_Kennzahlen!$C$2:$D$10,2,FALSE)) ->  | I92: =IF(H92="","",H92/Treibhausgas_Kennzahlen!$B$5) ->  | J92: =IF(H92="","",H92*Treibhausgas_Kennzahlen!B$9) ->  | K92: =IF(H92="","",H92*Treibhausgas_Kennzahlen!C$9) ->  | L92: =IF(H92="","",H92*Treibhausgas_Kennzahlen!D$9) ->  | M92: =IF(H92="","",H92*Treibhausgas_Kennzahlen!E$9) ->  | N92: =IF(H92="","",H92*Treibhausgas_Kennzahlen!F$9) ->  | O92: =IF(H92="","",H92*Treibhausgas_Kennzahlen!G$9) -> 
F93: =IF(E93="","",VLOOKUP(INDEX(Binnenhäfen!$A$2:$A$501, MATCH(Berechnung!C93,Binnenhäfen!$B$2:$B$501,0))&"_"&INDEX(Binnenhäfen!$A$2:$A$501, MATCH(Berechnung!D93,Binnenhäfen!$B$2:$B$501,0)),Entfernung_Binnenhäfen!$C$2:$D$10001,2,FALSE)) ->  | G93: =IF(E93="","", VLOOKUP(INDEX(SchiffstypenID, MATCH(Berechnung!A93,Schiffstypen!$B$2:$B$4,0))&"_"&INDEX(FahrttypenID, MATCH(Berechnung!B93,Fahrttypen!$B$2:$B$5,0)),Energieverbrauch_Kennzahlen!$C$2:$D$10,2,FALSE)) ->  | I93: =IF(H93="","",H93/Treibhausgas_Kennzahlen!$B$5) ->  | J93: =IF(H93="","",H93*Treibhausgas_Kennzahlen!B$9) ->  | K93: =IF(H93="","",H93*Treibhausgas_Kennzahlen!C$9) ->  | L93: =IF(H93="","",H93*Treibhausgas_Kennzahlen!D$9) ->  | M93: =IF(H93="","",H93*Treibhausgas_Kennzahlen!E$9) ->  | N93: =IF(H93="","",H93*Treibhausgas_Kennzahlen!F$9) ->  | O93: =IF(H93="","",H93*Treibhausgas_Kennzahlen!G$9) -> 
F94: =IF(E94="","",VLOOKUP(INDEX(Binnenhäfen!$A$2:$A$501, MATCH(Berechnung!C94,Binnenhäfen!$B$2:$B$501,0))&"_"&INDEX(Binnenhäfen!$A$2:$A$501, MATCH(Berechnung!D94,Binnenhäfen!$B$2:$B$501,0)),Entfernung_Binnenhäfen!$C$2:$D$10001,2,FALSE)) ->  | G94: =IF(E94="","", VLOOKUP(INDEX(SchiffstypenID, MATCH(Berechnung!A94,Schiffstypen!$B$2:$B$4,0))&"_"&INDEX(FahrttypenID, MATCH(Berechnung!B94,Fahrttypen!$B$2:$B$5,0)),Energieverbrauch_Kennzahlen!$C$2:$D$10,2,FALSE)) ->  | I94: =IF(H94="","",H94/Treibhausgas_Kennzahlen!$B$5) ->  | J94: =IF(H94="","",H94*Treibhausgas_Kennzahlen!B$9) ->  | K94: =IF(H94="","",H94*Treibhausgas_Kennzahlen!C$9) ->  | L94: =IF(H94="","",H94*Treibhausgas_Kennzahlen!D$9) ->  | M94: =IF(H94="","",H94*Treibhausgas_Kennzahlen!E$9) ->  | N94: =IF(H94="","",H94*Treibhausgas_Kennzahlen!F$9) ->  | O94: =IF(H94="","",H94*Treibhausgas_Kennzahlen!G$9) -> 
F95: =IF(E95="","",VLOOKUP(INDEX(Binnenhäfen!$A$2:$A$501, MATCH(Berechnung!C95,Binnenhäfen!$B$2:$B$501,0))&"_"&INDEX(Binnenhäfen!$A$2:$A$501, MATCH(Berechnung!D95,Binnenhäfen!$B$2:$B$501,0)),Entfernung_Binnenhäfen!$C$2:$D$10001,2,FALSE)) ->  | G95: =IF(E95="","", VLOOKUP(INDEX(SchiffstypenID, MATCH(Berechnung!A95,Schiffstypen!$B$2:$B$4,0))&"_"&INDEX(FahrttypenID, MATCH(Berechnung!B95,Fahrttypen!$B$2:$B$5,0)),Energieverbrauch_Kennzahlen!$C$2:$D$10,2,FALSE)) ->  | I95: =IF(H95="","",H95/Treibhausgas_Kennzahlen!$B$5) ->  | J95: =IF(H95="","",H95*Treibhausgas_Kennzahlen!B$9) ->  | K95: =IF(H95="","",H95*Treibhausgas_Kennzahlen!C$9) ->  | L95: =IF(H95="","",H95*Treibhausgas_Kennzahlen!D$9) ->  | M95: =IF(H95="","",H95*Treibhausgas_Kennzahlen!E$9) ->  | N95: =IF(H95="","",H95*Treibhausgas_Kennzahlen!F$9) ->  | O95: =IF(H95="","",H95*Treibhausgas_Kennzahlen!G$9) -> 
F96: =IF(E96="","",VLOOKUP(INDEX(Binnenhäfen!$A$2:$A$501, MATCH(Berechnung!C96,Binnenhäfen!$B$2:$B$501,0))&"_"&INDEX(Binnenhäfen!$A$2:$A$501, MATCH(Berechnung!D96,Binnenhäfen!$B$2:$B$501,0)),Entfernung_Binnenhäfen!$C$2:$D$10001,2,FALSE)) ->  | G96: =IF(E96="","", VLOOKUP(INDEX(SchiffstypenID, MATCH(Berechnung!A96,Schiffstypen!$B$2:$B$4,0))&"_"&INDEX(FahrttypenID, MATCH(Berechnung!B96,Fahrttypen!$B$2:$B$5,0)),Energieverbrauch_Kennzahlen!$C$2:$D$10,2,FALSE)) ->  | I96: =IF(H96="","",H96/Treibhausgas_Kennzahlen!$B$5) ->  | J96: =IF(H96="","",H96*Treibhausgas_Kennzahlen!B$9) ->  | K96: =IF(H96="","",H96*Treibhausgas_Kennzahlen!C$9) ->  | L96: =IF(H96="","",H96*Treibhausgas_Kennzahlen!D$9) ->  | M96: =IF(H96="","",H96*Treibhausgas_Kennzahlen!E$9) ->  | N96: =IF(H96="","",H96*Treibhausgas_Kennzahlen!F$9) ->  | O96: =IF(H96="","",H96*Treibhausgas_Kennzahlen!G$9) -> 
F97: =IF(E97="","",VLOOKUP(INDEX(Binnenhäfen!$A$2:$A$501, MATCH(Berechnung!C97,Binnenhäfen!$B$2:$B$501,0))&"_"&INDEX(Binnenhäfen!$A$2:$A$501, MATCH(Berechnung!D97,Binnenhäfen!$B$2:$B$501,0)),Entfernung_Binnenhäfen!$C$2:$D$10001,2,FALSE)) ->  | G97: =IF(E97="","", VLOOKUP(INDEX(SchiffstypenID, MATCH(Berechnung!A97,Schiffstypen!$B$2:$B$4,0))&"_"&INDEX(FahrttypenID, MATCH(Berechnung!B97,Fahrttypen!$B$2:$B$5,0)),Energieverbrauch_Kennzahlen!$C$2:$D$10,2,FALSE)) ->  | I97: =IF(H97="","",H97/Treibhausgas_Kennzahlen!$B$5) ->  | J97: =IF(H97="","",H97*Treibhausgas_Kennzahlen!B$9) ->  | K97: =IF(H97="","",H97*Treibhausgas_Kennzahlen!C$9) ->  | L97: =IF(H97="","",H97*Treibhausgas_Kennzahlen!D$9) ->  | M97: =IF(H97="","",H97*Treibhausgas_Kennzahlen!E$9) ->  | N97: =IF(H97="","",H97*Treibhausgas_Kennzahlen!F$9) ->  | O97: =IF(H97="","",H97*Treibhausgas_Kennzahlen!G$9) -> 
F98: =IF(E98="","",VLOOKUP(INDEX(Binnenhäfen!$A$2:$A$501, MATCH(Berechnung!C98,Binnenhäfen!$B$2:$B$501,0))&"_"&INDEX(Binnenhäfen!$A$2:$A$501, MATCH(Berechnung!D98,Binnenhäfen!$B$2:$B$501,0)),Entfernung_Binnenhäfen!$C$2:$D$10001,2,FALSE)) ->  | G98: =IF(E98="","", VLOOKUP(INDEX(SchiffstypenID, MATCH(Berechnung!A98,Schiffstypen!$B$2:$B$4,0))&"_"&INDEX(FahrttypenID, MATCH(Berechnung!B98,Fahrttypen!$B$2:$B$5,0)),Energieverbrauch_Kennzahlen!$C$2:$D$10,2,FALSE)) ->  | I98: =IF(H98="","",H98/Treibhausgas_Kennzahlen!$B$5) ->  | J98: =IF(H98="","",H98*Treibhausgas_Kennzahlen!B$9) ->  | K98: =IF(H98="","",H98*Treibhausgas_Kennzahlen!C$9) ->  | L98: =IF(H98="","",H98*Treibhausgas_Kennzahlen!D$9) ->  | M98: =IF(H98="","",H98*Treibhausgas_Kennzahlen!E$9) ->  | N98: =IF(H98="","",H98*Treibhausgas_Kennzahlen!F$9) ->  | O98: =IF(H98="","",H98*Treibhausgas_Kennzahlen!G$9) -> 
F99: =IF(E99="","",VLOOKUP(INDEX(Binnenhäfen!$A$2:$A$501, MATCH(Berechnung!C99,Binnenhäfen!$B$2:$B$501,0))&"_"&INDEX(Binnenhäfen!$A$2:$A$501, MATCH(Berechnung!D99,Binnenhäfen!$B$2:$B$501,0)),Entfernung_Binnenhäfen!$C$2:$D$10001,2,FALSE)) ->  | G99: =IF(E99="","", VLOOKUP(INDEX(SchiffstypenID, MATCH(Berechnung!A99,Schiffstypen!$B$2:$B$4,0))&"_"&INDEX(FahrttypenID, MATCH(Berechnung!B99,Fahrttypen!$B$2:$B$5,0)),Energieverbrauch_Kennzahlen!$C$2:$D$10,2,FALSE)) ->  | I99: =IF(H99="","",H99/Treibhausgas_Kennzahlen!$B$5) ->  | J99: =IF(H99="","",H99*Treibhausgas_Kennzahlen!B$9) ->  | K99: =IF(H99="","",H99*Treibhausgas_Kennzahlen!C$9) ->  | L99: =IF(H99="","",H99*Treibhausgas_Kennzahlen!D$9) ->  | M99: =IF(H99="","",H99*Treibhausgas_Kennzahlen!E$9) ->  | N99: =IF(H99="","",H99*Treibhausgas_Kennzahlen!F$9) ->  | O99: =IF(H99="","",H99*Treibhausgas_Kennzahlen!G$9) -> 
F100: =IF(E100="","",VLOOKUP(INDEX(Binnenhäfen!$A$2:$A$501, MATCH(Berechnung!C100,Binnenhäfen!$B$2:$B$501,0))&"_"&INDEX(Binnenhäfen!$A$2:$A$501, MATCH(Berechnung!D100,Binnenhäfen!$B$2:$B$501,0)),Entfernung_Binnenhäfen!$C$2:$D$10001,2,FALSE)) ->  | G100: =IF(E100="","", VLOOKUP(INDEX(SchiffstypenID, MATCH(Berechnung!A100,Schiffstypen!$B$2:$B$4,0))&"_"&INDEX(FahrttypenID, MATCH(Berechnung!B100,Fahrttypen!$B$2:$B$5,0)),Energieverbrauch_Kennzahlen!$C$2:$D$10,2,FALSE)) ->  | I100: =IF(H100="","",H100/Treibhausgas_Kennzahlen!$B$5) ->  | J100: =IF(H100="","",H100*Treibhausgas_Kennzahlen!B$9) ->  | K100: =IF(H100="","",H100*Treibhausgas_Kennzahlen!C$9) ->  | L100: =IF(H100="","",H100*Treibhausgas_Kennzahlen!D$9) ->  | M100: =IF(H100="","",H100*Treibhausgas_Kennzahlen!E$9) ->  | N100: =IF(H100="","",H100*Treibhausgas_Kennzahlen!F$9) ->  | O100: =IF(H100="","",H100*Treibhausgas_Kennzahlen!G$9) -> 
F101: =IF(E101="","",VLOOKUP(INDEX(Binnenhäfen!$A$2:$A$501, MATCH(Berechnung!C101,Binnenhäfen!$B$2:$B$501,0))&"_"&INDEX(Binnenhäfen!$A$2:$A$501, MATCH(Berechnung!D101,Binnenhäfen!$B$2:$B$501,0)),Entfernung_Binnenhäfen!$C$2:$D$10001,2,FALSE)) ->  | G101: =IF(E101="","", VLOOKUP(INDEX(SchiffstypenID, MATCH(Berechnung!A101,Schiffstypen!$B$2:$B$4,0))&"_"&INDEX(FahrttypenID, MATCH(Berechnung!B101,Fahrttypen!$B$2:$B$5,0)),Energieverbrauch_Kennzahlen!$C$2:$D$10,2,FALSE)) ->  | I101: =IF(H101="","",H101/Treibhausgas_Kennzahlen!$B$5) ->  | J101: =IF(H101="","",H101*Treibhausgas_Kennzahlen!B$9) ->  | K101: =IF(H101="","",H101*Treibhausgas_Kennzahlen!C$9) ->  | L101: =IF(H101="","",H101*Treibhausgas_Kennzahlen!D$9) ->  | M101: =IF(H101="","",H101*Treibhausgas_Kennzahlen!E$9) ->  | N101: =IF(H101="","",H101*Treibhausgas_Kennzahlen!F$9) ->  | O101: =IF(H101="","",H101*Treibhausgas_Kennzahlen!G$9) -> 
F102: =IF(E102="","",VLOOKUP(INDEX(Binnenhäfen!$A$2:$A$501, MATCH(Berechnung!C102,Binnenhäfen!$B$2:$B$501,0))&"_"&INDEX(Binnenhäfen!$A$2:$A$501, MATCH(Berechnung!D102,Binnenhäfen!$B$2:$B$501,0)),Entfernung_Binnenhäfen!$C$2:$D$10001,2,FALSE)) ->  | G102: =IF(E102="","", VLOOKUP(INDEX(SchiffstypenID, MATCH(Berechnung!A102,Schiffstypen!$B$2:$B$4,0))&"_"&INDEX(FahrttypenID, MATCH(Berechnung!B102,Fahrttypen!$B$2:$B$5,0)),Energieverbrauch_Kennzahlen!$C$2:$D$10,2,FALSE)) ->  | I102: =IF(H102="","",H102/Treibhausgas_Kennzahlen!$B$5) ->  | J102: =IF(H102="","",H102*Treibhausgas_Kennzahlen!B$9) ->  | K102: =IF(H102="","",H102*Treibhausgas_Kennzahlen!C$9) ->  | L102: =IF(H102="","",H102*Treibhausgas_Kennzahlen!D$9) ->  | M102: =IF(H102="","",H102*Treibhausgas_Kennzahlen!E$9) ->  | N102: =IF(H102="","",H102*Treibhausgas_Kennzahlen!F$9) ->  | O102: =IF(H102="","",H102*Treibhausgas_Kennzahlen!G$9) -> 
F103: =IF(E103="","",VLOOKUP(INDEX(Binnenhäfen!$A$2:$A$501, MATCH(Berechnung!C103,Binnenhäfen!$B$2:$B$501,0))&"_"&INDEX(Binnenhäfen!$A$2:$A$501, MATCH(Berechnung!D103,Binnenhäfen!$B$2:$B$501,0)),Entfernung_Binnenhäfen!$C$2:$D$10001,2,FALSE)) ->  | G103: =IF(E103="","", VLOOKUP(INDEX(SchiffstypenID, MATCH(Berechnung!A103,Schiffstypen!$B$2:$B$4,0))&"_"&INDEX(FahrttypenID, MATCH(Berechnung!B103,Fahrttypen!$B$2:$B$5,0)),Energieverbrauch_Kennzahlen!$C$2:$D$10,2,FALSE)) ->  | I103: =IF(H103="","",H103/Treibhausgas_Kennzahlen!$B$5) ->  | J103: =IF(H103="","",H103*Treibhausgas_Kennzahlen!B$9) ->  | K103: =IF(H103="","",H103*Treibhausgas_Kennzahlen!C$9) ->  | L103: =IF(H103="","",H103*Treibhausgas_Kennzahlen!D$9) ->  | M103: =IF(H103="","",H103*Treibhausgas_Kennzahlen!E$9) ->  | N103: =IF(H103="","",H103*Treibhausgas_Kennzahlen!F$9) ->  | O103: =IF(H103="","",H103*Treibhausgas_Kennzahlen!G$9) -> 
F104: =IF(E104="","",VLOOKUP(INDEX(Binnenhäfen!$A$2:$A$501, MATCH(Berechnung!C104,Binnenhäfen!$B$2:$B$501,0))&"_"&INDEX(Binnenhäfen!$A$2:$A$501, MATCH(Berechnung!D104,Binnenhäfen!$B$2:$B$501,0)),Entfernung_Binnenhäfen!$C$2:$D$10001,2,FALSE)) ->  | G104: =IF(E104="","", VLOOKUP(INDEX(SchiffstypenID, MATCH(Berechnung!A104,Schiffstypen!$B$2:$B$4,0))&"_"&INDEX(FahrttypenID, MATCH(Berechnung!B104,Fahrttypen!$B$2:$B$5,0)),Energieverbrauch_Kennzahlen!$C$2:$D$10,2,FALSE)) ->  | I104: =IF(H104="","",H104/Treibhausgas_Kennzahlen!$B$5) ->  | J104: =IF(H104="","",H104*Treibhausgas_Kennzahlen!B$9) ->  | K104: =IF(H104="","",H104*Treibhausgas_Kennzahlen!C$9) ->  | L104: =IF(H104="","",H104*Treibhausgas_Kennzahlen!D$9) ->  | M104: =IF(H104="","",H104*Treibhausgas_Kennzahlen!E$9) ->  | N104: =IF(H104="","",H104*Treibhausgas_Kennzahlen!F$9) ->  | O104: =IF(H104="","",H104*Treibhausgas_Kennzahlen!G$9) -> 
F105: =IF(E105="","",VLOOKUP(INDEX(Binnenhäfen!$A$2:$A$501, MATCH(Berechnung!C105,Binnenhäfen!$B$2:$B$501,0))&"_"&INDEX(Binnenhäfen!$A$2:$A$501, MATCH(Berechnung!D105,Binnenhäfen!$B$2:$B$501,0)),Entfernung_Binnenhäfen!$C$2:$D$10001,2,FALSE)) ->  | G105: =IF(E105="","", VLOOKUP(INDEX(SchiffstypenID, MATCH(Berechnung!A105,Schiffstypen!$B$2:$B$4,0))&"_"&INDEX(FahrttypenID, MATCH(Berechnung!B105,Fahrttypen!$B$2:$B$5,0)),Energieverbrauch_Kennzahlen!$C$2:$D$10,2,FALSE)) ->  | I105: =IF(H105="","",H105/Treibhausgas_Kennzahlen!$B$5) ->  | J105: =IF(H105="","",H105*Treibhausgas_Kennzahlen!B$9) ->  | K105: =IF(H105="","",H105*Treibhausgas_Kennzahlen!C$9) ->  | L105: =IF(H105="","",H105*Treibhausgas_Kennzahlen!D$9) ->  | M105: =IF(H105="","",H105*Treibhausgas_Kennzahlen!E$9) ->  | N105: =IF(H105="","",H105*Treibhausgas_Kennzahlen!F$9) ->  | O105: =IF(H105="","",H105*Treibhausgas_Kennzahlen!G$9) -> 
F106: =IF(E106="","",VLOOKUP(INDEX(Binnenhäfen!$A$2:$A$501, MATCH(Berechnung!C106,Binnenhäfen!$B$2:$B$501,0))&"_"&INDEX(Binnenhäfen!$A$2:$A$501, MATCH(Berechnung!D106,Binnenhäfen!$B$2:$B$501,0)),Entfernung_Binnenhäfen!$C$2:$D$10001,2,FALSE)) ->  | G106: =IF(E106="","", VLOOKUP(INDEX(SchiffstypenID, MATCH(Berechnung!A106,Schiffstypen!$B$2:$B$4,0))&"_"&INDEX(FahrttypenID, MATCH(Berechnung!B106,Fahrttypen!$B$2:$B$5,0)),Energieverbrauch_Kennzahlen!$C$2:$D$10,2,FALSE)) ->  | I106: =IF(H106="","",H106/Treibhausgas_Kennzahlen!$B$5) ->  | J106: =IF(H106="","",H106*Treibhausgas_Kennzahlen!B$9) ->  | K106: =IF(H106="","",H106*Treibhausgas_Kennzahlen!C$9) ->  | L106: =IF(H106="","",H106*Treibhausgas_Kennzahlen!D$9) ->  | M106: =IF(H106="","",H106*Treibhausgas_Kennzahlen!E$9) ->  | N106: =IF(H106="","",H106*Treibhausgas_Kennzahlen!F$9) ->  | O106: =IF(H106="","",H106*Treibhausgas_Kennzahlen!G$9) -> 
F107: =IF(E107="","",VLOOKUP(INDEX(Binnenhäfen!$A$2:$A$501, MATCH(Berechnung!C107,Binnenhäfen!$B$2:$B$501,0))&"_"&INDEX(Binnenhäfen!$A$2:$A$501, MATCH(Berechnung!D107,Binnenhäfen!$B$2:$B$501,0)),Entfernung_Binnenhäfen!$C$2:$D$10001,2,FALSE)) ->  | G107: =IF(E107="","", VLOOKUP(INDEX(SchiffstypenID, MATCH(Berechnung!A107,Schiffstypen!$B$2:$B$4,0))&"_"&INDEX(FahrttypenID, MATCH(Berechnung!B107,Fahrttypen!$B$2:$B$5,0)),Energieverbrauch_Kennzahlen!$C$2:$D$10,2,FALSE)) ->  | I107: =IF(H107="","",H107/Treibhausgas_Kennzahlen!$B$5) ->  | J107: =IF(H107="","",H107*Treibhausgas_Kennzahlen!B$9) ->  | K107: =IF(H107="","",H107*Treibhausgas_Kennzahlen!C$9) ->  | L107: =IF(H107="","",H107*Treibhausgas_Kennzahlen!D$9) ->  | M107: =IF(H107="","",H107*Treibhausgas_Kennzahlen!E$9) ->  | N107: =IF(H107="","",H107*Treibhausgas_Kennzahlen!F$9) ->  | O107: =IF(H107="","",H107*Treibhausgas_Kennzahlen!G$9) -> 
F108: =IF(E108="","",VLOOKUP(INDEX(Binnenhäfen!$A$2:$A$501, MATCH(Berechnung!C108,Binnenhäfen!$B$2:$B$501,0))&"_"&INDEX(Binnenhäfen!$A$2:$A$501, MATCH(Berechnung!D108,Binnenhäfen!$B$2:$B$501,0)),Entfernung_Binnenhäfen!$C$2:$D$10001,2,FALSE)) ->  | G108: =IF(E108="","", VLOOKUP(INDEX(SchiffstypenID, MATCH(Berechnung!A108,Schiffstypen!$B$2:$B$4,0))&"_"&INDEX(FahrttypenID, MATCH(Berechnung!B108,Fahrttypen!$B$2:$B$5,0)),Energieverbrauch_Kennzahlen!$C$2:$D$10,2,FALSE)) ->  | I108: =IF(H108="","",H108/Treibhausgas_Kennzahlen!$B$5) ->  | J108: =IF(H108="","",H108*Treibhausgas_Kennzahlen!B$9) ->  | K108: =IF(H108="","",H108*Treibhausgas_Kennzahlen!C$9) ->  | L108: =IF(H108="","",H108*Treibhausgas_Kennzahlen!D$9) ->  | M108: =IF(H108="","",H108*Treibhausgas_Kennzahlen!E$9) ->  | N108: =IF(H108="","",H108*Treibhausgas_Kennzahlen!F$9) ->  | O108: =IF(H108="","",H108*Treibhausgas_Kennzahlen!G$9) -> 
F109: =IF(E109="","",VLOOKUP(INDEX(Binnenhäfen!$A$2:$A$501, MATCH(Berechnung!C109,Binnenhäfen!$B$2:$B$501,0))&"_"&INDEX(Binnenhäfen!$A$2:$A$501, MATCH(Berechnung!D109,Binnenhäfen!$B$2:$B$501,0)),Entfernung_Binnenhäfen!$C$2:$D$10001,2,FALSE)) ->  | G109: =IF(E109="","", VLOOKUP(INDEX(SchiffstypenID, MATCH(Berechnung!A109,Schiffstypen!$B$2:$B$4,0))&"_"&INDEX(FahrttypenID, MATCH(Berechnung!B109,Fahrttypen!$B$2:$B$5,0)),Energieverbrauch_Kennzahlen!$C$2:$D$10,2,FALSE)) ->  | I109: =IF(H109="","",H109/Treibhausgas_Kennzahlen!$B$5) ->  | J109: =IF(H109="","",H109*Treibhausgas_Kennzahlen!B$9) ->  | K109: =IF(H109="","",H109*Treibhausgas_Kennzahlen!C$9) ->  | L109: =IF(H109="","",H109*Treibhausgas_Kennzahlen!D$9) ->  | M109: =IF(H109="","",H109*Treibhausgas_Kennzahlen!E$9) ->  | N109: =IF(H109="","",H109*Treibhausgas_Kennzahlen!F$9) ->  | O109: =IF(H109="","",H109*Treibhausgas_Kennzahlen!G$9) -> 
F110: =IF(E110="","",VLOOKUP(INDEX(Binnenhäfen!$A$2:$A$501, MATCH(Berechnung!C110,Binnenhäfen!$B$2:$B$501,0))&"_"&INDEX(Binnenhäfen!$A$2:$A$501, MATCH(Berechnung!D110,Binnenhäfen!$B$2:$B$501,0)),Entfernung_Binnenhäfen!$C$2:$D$10001,2,FALSE)) ->  | G110: =IF(E110="","", VLOOKUP(INDEX(SchiffstypenID, MATCH(Berechnung!A110,Schiffstypen!$B$2:$B$4,0))&"_"&INDEX(FahrttypenID, MATCH(Berechnung!B110,Fahrttypen!$B$2:$B$5,0)),Energieverbrauch_Kennzahlen!$C$2:$D$10,2,FALSE)) ->  | I110: =IF(H110="","",H110/Treibhausgas_Kennzahlen!$B$5) ->  | J110: =IF(H110="","",H110*Treibhausgas_Kennzahlen!B$9) ->  | K110: =IF(H110="","",H110*Treibhausgas_Kennzahlen!C$9) ->  | L110: =IF(H110="","",H110*Treibhausgas_Kennzahlen!D$9) ->  | M110: =IF(H110="","",H110*Treibhausgas_Kennzahlen!E$9) ->  | N110: =IF(H110="","",H110*Treibhausgas_Kennzahlen!F$9) ->  | O110: =IF(H110="","",H110*Treibhausgas_Kennzahlen!G$9) -> 
F111: =IF(E111="","",VLOOKUP(INDEX(Binnenhäfen!$A$2:$A$501, MATCH(Berechnung!C111,Binnenhäfen!$B$2:$B$501,0))&"_"&INDEX(Binnenhäfen!$A$2:$A$501, MATCH(Berechnung!D111,Binnenhäfen!$B$2:$B$501,0)),Entfernung_Binnenhäfen!$C$2:$D$10001,2,FALSE)) ->  | G111: =IF(E111="","", VLOOKUP(INDEX(SchiffstypenID, MATCH(Berechnung!A111,Schiffstypen!$B$2:$B$4,0))&"_"&INDEX(FahrttypenID, MATCH(Berechnung!B111,Fahrttypen!$B$2:$B$5,0)),Energieverbrauch_Kennzahlen!$C$2:$D$10,2,FALSE)) ->  | I111: =IF(H111="","",H111/Treibhausgas_Kennzahlen!$B$5) ->  | J111: =IF(H111="","",H111*Treibhausgas_Kennzahlen!B$9) ->  | K111: =IF(H111="","",H111*Treibhausgas_Kennzahlen!C$9) ->  | L111: =IF(H111="","",H111*Treibhausgas_Kennzahlen!D$9) ->  | M111: =IF(H111="","",H111*Treibhausgas_Kennzahlen!E$9) ->  | N111: =IF(H111="","",H111*Treibhausgas_Kennzahlen!F$9) ->  | O111: =IF(H111="","",H111*Treibhausgas_Kennzahlen!G$9) -> 
F112: =IF(E112="","",VLOOKUP(INDEX(Binnenhäfen!$A$2:$A$501, MATCH(Berechnung!C112,Binnenhäfen!$B$2:$B$501,0))&"_"&INDEX(Binnenhäfen!$A$2:$A$501, MATCH(Berechnung!D112,Binnenhäfen!$B$2:$B$501,0)),Entfernung_Binnenhäfen!$C$2:$D$10001,2,FALSE)) ->  | G112: =IF(E112="","", VLOOKUP(INDEX(SchiffstypenID, MATCH(Berechnung!A112,Schiffstypen!$B$2:$B$4,0))&"_"&INDEX(FahrttypenID, MATCH(Berechnung!B112,Fahrttypen!$B$2:$B$5,0)),Energieverbrauch_Kennzahlen!$C$2:$D$10,2,FALSE)) ->  | I112: =IF(H112="","",H112/Treibhausgas_Kennzahlen!$B$5) ->  | J112: =IF(H112="","",H112*Treibhausgas_Kennzahlen!B$9) ->  | K112: =IF(H112="","",H112*Treibhausgas_Kennzahlen!C$9) ->  | L112: =IF(H112="","",H112*Treibhausgas_Kennzahlen!D$9) ->  | M112: =IF(H112="","",H112*Treibhausgas_Kennzahlen!E$9) ->  | N112: =IF(H112="","",H112*Treibhausgas_Kennzahlen!F$9) ->  | O112: =IF(H112="","",H112*Treibhausgas_Kennzahlen!G$9) -> 
F113: =IF(E113="","",VLOOKUP(INDEX(Binnenhäfen!$A$2:$A$501, MATCH(Berechnung!C113,Binnenhäfen!$B$2:$B$501,0))&"_"&INDEX(Binnenhäfen!$A$2:$A$501, MATCH(Berechnung!D113,Binnenhäfen!$B$2:$B$501,0)),Entfernung_Binnenhäfen!$C$2:$D$10001,2,FALSE)) ->  | G113: =IF(E113="","", VLOOKUP(INDEX(SchiffstypenID, MATCH(Berechnung!A113,Schiffstypen!$B$2:$B$4,0))&"_"&INDEX(FahrttypenID, MATCH(Berechnung!B113,Fahrttypen!$B$2:$B$5,0)),Energieverbrauch_Kennzahlen!$C$2:$D$10,2,FALSE)) ->  | I113: =IF(H113="","",H113/Treibhausgas_Kennzahlen!$B$5) ->  | J113: =IF(H113="","",H113*Treibhausgas_Kennzahlen!B$9) ->  | K113: =IF(H113="","",H113*Treibhausgas_Kennzahlen!C$9) ->  | L113: =IF(H113="","",H113*Treibhausgas_Kennzahlen!D$9) ->  | M113: =IF(H113="","",H113*Treibhausgas_Kennzahlen!E$9) ->  | N113: =IF(H113="","",H113*Treibhausgas_Kennzahlen!F$9) ->  | O113: =IF(H113="","",H113*Treibhausgas_Kennzahlen!G$9) -> 
F114: =IF(E114="","",VLOOKUP(INDEX(Binnenhäfen!$A$2:$A$501, MATCH(Berechnung!C114,Binnenhäfen!$B$2:$B$501,0))&"_"&INDEX(Binnenhäfen!$A$2:$A$501, MATCH(Berechnung!D114,Binnenhäfen!$B$2:$B$501,0)),Entfernung_Binnenhäfen!$C$2:$D$10001,2,FALSE)) ->  | G114: =IF(E114="","", VLOOKUP(INDEX(SchiffstypenID, MATCH(Berechnung!A114,Schiffstypen!$B$2:$B$4,0))&"_"&INDEX(FahrttypenID, MATCH(Berechnung!B114,Fahrttypen!$B$2:$B$5,0)),Energieverbrauch_Kennzahlen!$C$2:$D$10,2,FALSE)) ->  | I114: =IF(H114="","",H114/Treibhausgas_Kennzahlen!$B$5) ->  | J114: =IF(H114="","",H114*Treibhausgas_Kennzahlen!B$9) ->  | K114: =IF(H114="","",H114*Treibhausgas_Kennzahlen!C$9) ->  | L114: =IF(H114="","",H114*Treibhausgas_Kennzahlen!D$9) ->  | M114: =IF(H114="","",H114*Treibhausgas_Kennzahlen!E$9) ->  | N114: =IF(H114="","",H114*Treibhausgas_Kennzahlen!F$9) ->  | O114: =IF(H114="","",H114*Treibhausgas_Kennzahlen!G$9) -> 
F115: =IF(E115="","",VLOOKUP(INDEX(Binnenhäfen!$A$2:$A$501, MATCH(Berechnung!C115,Binnenhäfen!$B$2:$B$501,0))&"_"&INDEX(Binnenhäfen!$A$2:$A$501, MATCH(Berechnung!D115,Binnenhäfen!$B$2:$B$501,0)),Entfernung_Binnenhäfen!$C$2:$D$10001,2,FALSE)) ->  | G115: =IF(E115="","", VLOOKUP(INDEX(SchiffstypenID, MATCH(Berechnung!A115,Schiffstypen!$B$2:$B$4,0))&"_"&INDEX(FahrttypenID, MATCH(Berechnung!B115,Fahrttypen!$B$2:$B$5,0)),Energieverbrauch_Kennzahlen!$C$2:$D$10,2,FALSE)) ->  | I115: =IF(H115="","",H115/Treibhausgas_Kennzahlen!$B$5) ->  | J115: =IF(H115="","",H115*Treibhausgas_Kennzahlen!B$9) ->  | K115: =IF(H115="","",H115*Treibhausgas_Kennzahlen!C$9) ->  | L115: =IF(H115="","",H115*Treibhausgas_Kennzahlen!D$9) ->  | M115: =IF(H115="","",H115*Treibhausgas_Kennzahlen!E$9) ->  | N115: =IF(H115="","",H115*Treibhausgas_Kennzahlen!F$9) ->  | O115: =IF(H115="","",H115*Treibhausgas_Kennzahlen!G$9) -> 
F116: =IF(E116="","",VLOOKUP(INDEX(Binnenhäfen!$A$2:$A$501, MATCH(Berechnung!C116,Binnenhäfen!$B$2:$B$501,0))&"_"&INDEX(Binnenhäfen!$A$2:$A$501, MATCH(Berechnung!D116,Binnenhäfen!$B$2:$B$501,0)),Entfernung_Binnenhäfen!$C$2:$D$10001,2,FALSE)) ->  | G116: =IF(E116="","", VLOOKUP(INDEX(SchiffstypenID, MATCH(Berechnung!A116,Schiffstypen!$B$2:$B$4,0))&"_"&INDEX(FahrttypenID, MATCH(Berechnung!B116,Fahrttypen!$B$2:$B$5,0)),Energieverbrauch_Kennzahlen!$C$2:$D$10,2,FALSE)) ->  | I116: =IF(H116="","",H116/Treibhausgas_Kennzahlen!$B$5) ->  | J116: =IF(H116="","",H116*Treibhausgas_Kennzahlen!B$9) ->  | K116: =IF(H116="","",H116*Treibhausgas_Kennzahlen!C$9) ->  | L116: =IF(H116="","",H116*Treibhausgas_Kennzahlen!D$9) ->  | M116: =IF(H116="","",H116*Treibhausgas_Kennzahlen!E$9) ->  | N116: =IF(H116="","",H116*Treibhausgas_Kennzahlen!F$9) ->  | O116: =IF(H116="","",H116*Treibhausgas_Kennzahlen!G$9) -> 
F117: =IF(E117="","",VLOOKUP(INDEX(Binnenhäfen!$A$2:$A$501, MATCH(Berechnung!C117,Binnenhäfen!$B$2:$B$501,0))&"_"&INDEX(Binnenhäfen!$A$2:$A$501, MATCH(Berechnung!D117,Binnenhäfen!$B$2:$B$501,0)),Entfernung_Binnenhäfen!$C$2:$D$10001,2,FALSE)) ->  | G117: =IF(E117="","", VLOOKUP(INDEX(SchiffstypenID, MATCH(Berechnung!A117,Schiffstypen!$B$2:$B$4,0))&"_"&INDEX(FahrttypenID, MATCH(Berechnung!B117,Fahrttypen!$B$2:$B$5,0)),Energieverbrauch_Kennzahlen!$C$2:$D$10,2,FALSE)) ->  | I117: =IF(H117="","",H117/Treibhausgas_Kennzahlen!$B$5) ->  | J117: =IF(H117="","",H117*Treibhausgas_Kennzahlen!B$9) ->  | K117: =IF(H117="","",H117*Treibhausgas_Kennzahlen!C$9) ->  | L117: =IF(H117="","",H117*Treibhausgas_Kennzahlen!D$9) ->  | M117: =IF(H117="","",H117*Treibhausgas_Kennzahlen!E$9) ->  | N117: =IF(H117="","",H117*Treibhausgas_Kennzahlen!F$9) ->  | O117: =IF(H117="","",H117*Treibhausgas_Kennzahlen!G$9) -> 
F118: =IF(E118="","",VLOOKUP(INDEX(Binnenhäfen!$A$2:$A$501, MATCH(Berechnung!C118,Binnenhäfen!$B$2:$B$501,0))&"_"&INDEX(Binnenhäfen!$A$2:$A$501, MATCH(Berechnung!D118,Binnenhäfen!$B$2:$B$501,0)),Entfernung_Binnenhäfen!$C$2:$D$10001,2,FALSE)) ->  | G118: =IF(E118="","", VLOOKUP(INDEX(SchiffstypenID, MATCH(Berechnung!A118,Schiffstypen!$B$2:$B$4,0))&"_"&INDEX(FahrttypenID, MATCH(Berechnung!B118,Fahrttypen!$B$2:$B$5,0)),Energieverbrauch_Kennzahlen!$C$2:$D$10,2,FALSE)) ->  | I118: =IF(H118="","",H118/Treibhausgas_Kennzahlen!$B$5) ->  | J118: =IF(H118="","",H118*Treibhausgas_Kennzahlen!B$9) ->  | K118: =IF(H118="","",H118*Treibhausgas_Kennzahlen!C$9) ->  | L118: =IF(H118="","",H118*Treibhausgas_Kennzahlen!D$9) ->  | M118: =IF(H118="","",H118*Treibhausgas_Kennzahlen!E$9) ->  | N118: =IF(H118="","",H118*Treibhausgas_Kennzahlen!F$9) ->  | O118: =IF(H118="","",H118*Treibhausgas_Kennzahlen!G$9) -> 
F119: =IF(E119="","",VLOOKUP(INDEX(Binnenhäfen!$A$2:$A$501, MATCH(Berechnung!C119,Binnenhäfen!$B$2:$B$501,0))&"_"&INDEX(Binnenhäfen!$A$2:$A$501, MATCH(Berechnung!D119,Binnenhäfen!$B$2:$B$501,0)),Entfernung_Binnenhäfen!$C$2:$D$10001,2,FALSE)) ->  | G119: =IF(E119="","", VLOOKUP(INDEX(SchiffstypenID, MATCH(Berechnung!A119,Schiffstypen!$B$2:$B$4,0))&"_"&INDEX(FahrttypenID, MATCH(Berechnung!B119,Fahrttypen!$B$2:$B$5,0)),Energieverbrauch_Kennzahlen!$C$2:$D$10,2,FALSE)) ->  | I119: =IF(H119="","",H119/Treibhausgas_Kennzahlen!$B$5) ->  | J119: =IF(H119="","",H119*Treibhausgas_Kennzahlen!B$9) ->  | K119: =IF(H119="","",H119*Treibhausgas_Kennzahlen!C$9) ->  | L119: =IF(H119="","",H119*Treibhausgas_Kennzahlen!D$9) ->  | M119: =IF(H119="","",H119*Treibhausgas_Kennzahlen!E$9) ->  | N119: =IF(H119="","",H119*Treibhausgas_Kennzahlen!F$9) ->  | O119: =IF(H119="","",H119*Treibhausgas_Kennzahlen!G$9) -> 
F120: =IF(E120="","",VLOOKUP(INDEX(Binnenhäfen!$A$2:$A$501, MATCH(Berechnung!C120,Binnenhäfen!$B$2:$B$501,0))&"_"&INDEX(Binnenhäfen!$A$2:$A$501, MATCH(Berechnung!D120,Binnenhäfen!$B$2:$B$501,0)),Entfernung_Binnenhäfen!$C$2:$D$10001,2,FALSE)) ->  | G120: =IF(E120="","", VLOOKUP(INDEX(SchiffstypenID, MATCH(Berechnung!A120,Schiffstypen!$B$2:$B$4,0))&"_"&INDEX(FahrttypenID, MATCH(Berechnung!B120,Fahrttypen!$B$2:$B$5,0)),Energieverbrauch_Kennzahlen!$C$2:$D$10,2,FALSE)) ->  | I120: =IF(H120="","",H120/Treibhausgas_Kennzahlen!$B$5) ->  | J120: =IF(H120="","",H120*Treibhausgas_Kennzahlen!B$9) ->  | K120: =IF(H120="","",H120*Treibhausgas_Kennzahlen!C$9) ->  | L120: =IF(H120="","",H120*Treibhausgas_Kennzahlen!D$9) ->  | M120: =IF(H120="","",H120*Treibhausgas_Kennzahlen!E$9) ->  | N120: =IF(H120="","",H120*Treibhausgas_Kennzahlen!F$9) ->  | O120: =IF(H120="","",H120*Treibhausgas_Kennzahlen!G$9) -> 
F121: =IF(E121="","",VLOOKUP(INDEX(Binnenhäfen!$A$2:$A$501, MATCH(Berechnung!C121,Binnenhäfen!$B$2:$B$501,0))&"_"&INDEX(Binnenhäfen!$A$2:$A$501, MATCH(Berechnung!D121,Binnenhäfen!$B$2:$B$501,0)),Entfernung_Binnenhäfen!$C$2:$D$10001,2,FALSE)) ->  | G121: =IF(E121="","", VLOOKUP(INDEX(SchiffstypenID, MATCH(Berechnung!A121,Schiffstypen!$B$2:$B$4,0))&"_"&INDEX(FahrttypenID, MATCH(Berechnung!B121,Fahrttypen!$B$2:$B$5,0)),Energieverbrauch_Kennzahlen!$C$2:$D$10,2,FALSE)) ->  | I121: =IF(H121="","",H121/Treibhausgas_Kennzahlen!$B$5) ->  | J121: =IF(H121="","",H121*Treibhausgas_Kennzahlen!B$9) ->  | K121: =IF(H121="","",H121*Treibhausgas_Kennzahlen!C$9) ->  | L121: =IF(H121="","",H121*Treibhausgas_Kennzahlen!D$9) ->  | M121: =IF(H121="","",H121*Treibhausgas_Kennzahlen!E$9) ->  | N121: =IF(H121="","",H121*Treibhausgas_Kennzahlen!F$9) ->  | O121: =IF(H121="","",H121*Treibhausgas_Kennzahlen!G$9) -> 
F122: =IF(E122="","",VLOOKUP(INDEX(Binnenhäfen!$A$2:$A$501, MATCH(Berechnung!C122,Binnenhäfen!$B$2:$B$501,0))&"_"&INDEX(Binnenhäfen!$A$2:$A$501, MATCH(Berechnung!D122,Binnenhäfen!$B$2:$B$501,0)),Entfernung_Binnenhäfen!$C$2:$D$10001,2,FALSE)) ->  | G122: =IF(E122="","", VLOOKUP(INDEX(SchiffstypenID, MATCH(Berechnung!A122,Schiffstypen!$B$2:$B$4,0))&"_"&INDEX(FahrttypenID, MATCH(Berechnung!B122,Fahrttypen!$B$2:$B$5,0)),Energieverbrauch_Kennzahlen!$C$2:$D$10,2,FALSE)) ->  | I122: =IF(H122="","",H122/Treibhausgas_Kennzahlen!$B$5) ->  | J122: =IF(H122="","",H122*Treibhausgas_Kennzahlen!B$9) ->  | K122: =IF(H122="","",H122*Treibhausgas_Kennzahlen!C$9) ->  | L122: =IF(H122="","",H122*Treibhausgas_Kennzahlen!D$9) ->  | M122: =IF(H122="","",H122*Treibhausgas_Kennzahlen!E$9) ->  | N122: =IF(H122="","",H122*Treibhausgas_Kennzahlen!F$9) ->  | O122: =IF(H122="","",H122*Treibhausgas_Kennzahlen!G$9) -> 
F123: =IF(E123="","",VLOOKUP(INDEX(Binnenhäfen!$A$2:$A$501, MATCH(Berechnung!C123,Binnenhäfen!$B$2:$B$501,0))&"_"&INDEX(Binnenhäfen!$A$2:$A$501, MATCH(Berechnung!D123,Binnenhäfen!$B$2:$B$501,0)),Entfernung_Binnenhäfen!$C$2:$D$10001,2,FALSE)) ->  | G123: =IF(E123="","", VLOOKUP(INDEX(SchiffstypenID, MATCH(Berechnung!A123,Schiffstypen!$B$2:$B$4,0))&"_"&INDEX(FahrttypenID, MATCH(Berechnung!B123,Fahrttypen!$B$2:$B$5,0)),Energieverbrauch_Kennzahlen!$C$2:$D$10,2,FALSE)) ->  | I123: =IF(H123="","",H123/Treibhausgas_Kennzahlen!$B$5) ->  | J123: =IF(H123="","",H123*Treibhausgas_Kennzahlen!B$9) ->  | K123: =IF(H123="","",H123*Treibhausgas_Kennzahlen!C$9) ->  | L123: =IF(H123="","",H123*Treibhausgas_Kennzahlen!D$9) ->  | M123: =IF(H123="","",H123*Treibhausgas_Kennzahlen!E$9) ->  | N123: =IF(H123="","",H123*Treibhausgas_Kennzahlen!F$9) ->  | O123: =IF(H123="","",H123*Treibhausgas_Kennzahlen!G$9) -> 
F124: =IF(E124="","",VLOOKUP(INDEX(Binnenhäfen!$A$2:$A$501, MATCH(Berechnung!C124,Binnenhäfen!$B$2:$B$501,0))&"_"&INDEX(Binnenhäfen!$A$2:$A$501, MATCH(Berechnung!D124,Binnenhäfen!$B$2:$B$501,0)),Entfernung_Binnenhäfen!$C$2:$D$10001,2,FALSE)) ->  | G124: =IF(E124="","", VLOOKUP(INDEX(SchiffstypenID, MATCH(Berechnung!A124,Schiffstypen!$B$2:$B$4,0))&"_"&INDEX(FahrttypenID, MATCH(Berechnung!B124,Fahrttypen!$B$2:$B$5,0)),Energieverbrauch_Kennzahlen!$C$2:$D$10,2,FALSE)) ->  | I124: =IF(H124="","",H124/Treibhausgas_Kennzahlen!$B$5) ->  | J124: =IF(H124="","",H124*Treibhausgas_Kennzahlen!B$9) ->  | K124: =IF(H124="","",H124*Treibhausgas_Kennzahlen!C$9) ->  | L124: =IF(H124="","",H124*Treibhausgas_Kennzahlen!D$9) ->  | M124: =IF(H124="","",H124*Treibhausgas_Kennzahlen!E$9) ->  | N124: =IF(H124="","",H124*Treibhausgas_Kennzahlen!F$9) ->  | O124: =IF(H124="","",H124*Treibhausgas_Kennzahlen!G$9) -> 
F125: =IF(E125="","",VLOOKUP(INDEX(Binnenhäfen!$A$2:$A$501, MATCH(Berechnung!C125,Binnenhäfen!$B$2:$B$501,0))&"_"&INDEX(Binnenhäfen!$A$2:$A$501, MATCH(Berechnung!D125,Binnenhäfen!$B$2:$B$501,0)),Entfernung_Binnenhäfen!$C$2:$D$10001,2,FALSE)) ->  | G125: =IF(E125="","", VLOOKUP(INDEX(SchiffstypenID, MATCH(Berechnung!A125,Schiffstypen!$B$2:$B$4,0))&"_"&INDEX(FahrttypenID, MATCH(Berechnung!B125,Fahrttypen!$B$2:$B$5,0)),Energieverbrauch_Kennzahlen!$C$2:$D$10,2,FALSE)) ->  | I125: =IF(H125="","",H125/Treibhausgas_Kennzahlen!$B$5) ->  | J125: =IF(H125="","",H125*Treibhausgas_Kennzahlen!B$9) ->  | K125: =IF(H125="","",H125*Treibhausgas_Kennzahlen!C$9) ->  | L125: =IF(H125="","",H125*Treibhausgas_Kennzahlen!D$9) ->  | M125: =IF(H125="","",H125*Treibhausgas_Kennzahlen!E$9) ->  | N125: =IF(H125="","",H125*Treibhausgas_Kennzahlen!F$9) ->  | O125: =IF(H125="","",H125*Treibhausgas_Kennzahlen!G$9) -> 
F126: =IF(E126="","",VLOOKUP(INDEX(Binnenhäfen!$A$2:$A$501, MATCH(Berechnung!C126,Binnenhäfen!$B$2:$B$501,0))&"_"&INDEX(Binnenhäfen!$A$2:$A$501, MATCH(Berechnung!D126,Binnenhäfen!$B$2:$B$501,0)),Entfernung_Binnenhäfen!$C$2:$D$10001,2,FALSE)) ->  | G126: =IF(E126="","", VLOOKUP(INDEX(SchiffstypenID, MATCH(Berechnung!A126,Schiffstypen!$B$2:$B$4,0))&"_"&INDEX(FahrttypenID, MATCH(Berechnung!B126,Fahrttypen!$B$2:$B$5,0)),Energieverbrauch_Kennzahlen!$C$2:$D$10,2,FALSE)) ->  | I126: =IF(H126="","",H126/Treibhausgas_Kennzahlen!$B$5) ->  | J126: =IF(H126="","",H126*Treibhausgas_Kennzahlen!B$9) ->  | K126: =IF(H126="","",H126*Treibhausgas_Kennzahlen!C$9) ->  | L126: =IF(H126="","",H126*Treibhausgas_Kennzahlen!D$9) ->  | M126: =IF(H126="","",H126*Treibhausgas_Kennzahlen!E$9) ->  | N126: =IF(H126="","",H126*Treibhausgas_Kennzahlen!F$9) ->  | O126: =IF(H126="","",H126*Treibhausgas_Kennzahlen!G$9) -> 
F127: =IF(E127="","",VLOOKUP(INDEX(Binnenhäfen!$A$2:$A$501, MATCH(Berechnung!C127,Binnenhäfen!$B$2:$B$501,0))&"_"&INDEX(Binnenhäfen!$A$2:$A$501, MATCH(Berechnung!D127,Binnenhäfen!$B$2:$B$501,0)),Entfernung_Binnenhäfen!$C$2:$D$10001,2,FALSE)) ->  | G127: =IF(E127="","", VLOOKUP(INDEX(SchiffstypenID, MATCH(Berechnung!A127,Schiffstypen!$B$2:$B$4,0))&"_"&INDEX(FahrttypenID, MATCH(Berechnung!B127,Fahrttypen!$B$2:$B$5,0)),Energieverbrauch_Kennzahlen!$C$2:$D$10,2,FALSE)) ->  | I127: =IF(H127="","",H127/Treibhausgas_Kennzahlen!$B$5) ->  | J127: =IF(H127="","",H127*Treibhausgas_Kennzahlen!B$9) ->  | K127: =IF(H127="","",H127*Treibhausgas_Kennzahlen!C$9) ->  | L127: =IF(H127="","",H127*Treibhausgas_Kennzahlen!D$9) ->  | M127: =IF(H127="","",H127*Treibhausgas_Kennzahlen!E$9) ->  | N127: =IF(H127="","",H127*Treibhausgas_Kennzahlen!F$9) ->  | O127: =IF(H127="","",H127*Treibhausgas_Kennzahlen!G$9) -> 
F128: =IF(E128="","",VLOOKUP(INDEX(Binnenhäfen!$A$2:$A$501, MATCH(Berechnung!C128,Binnenhäfen!$B$2:$B$501,0))&"_"&INDEX(Binnenhäfen!$A$2:$A$501, MATCH(Berechnung!D128,Binnenhäfen!$B$2:$B$501,0)),Entfernung_Binnenhäfen!$C$2:$D$10001,2,FALSE)) ->  | G128: =IF(E128="","", VLOOKUP(INDEX(SchiffstypenID, MATCH(Berechnung!A128,Schiffstypen!$B$2:$B$4,0))&"_"&INDEX(FahrttypenID, MATCH(Berechnung!B128,Fahrttypen!$B$2:$B$5,0)),Energieverbrauch_Kennzahlen!$C$2:$D$10,2,FALSE)) ->  | I128: =IF(H128="","",H128/Treibhausgas_Kennzahlen!$B$5) ->  | J128: =IF(H128="","",H128*Treibhausgas_Kennzahlen!B$9) ->  | K128: =IF(H128="","",H128*Treibhausgas_Kennzahlen!C$9) ->  | L128: =IF(H128="","",H128*Treibhausgas_Kennzahlen!D$9) ->  | M128: =IF(H128="","",H128*Treibhausgas_Kennzahlen!E$9) ->  | N128: =IF(H128="","",H128*Treibhausgas_Kennzahlen!F$9) ->  | O128: =IF(H128="","",H128*Treibhausgas_Kennzahlen!G$9) -> 
F129: =IF(E129="","",VLOOKUP(INDEX(Binnenhäfen!$A$2:$A$501, MATCH(Berechnung!C129,Binnenhäfen!$B$2:$B$501,0))&"_"&INDEX(Binnenhäfen!$A$2:$A$501, MATCH(Berechnung!D129,Binnenhäfen!$B$2:$B$501,0)),Entfernung_Binnenhäfen!$C$2:$D$10001,2,FALSE)) ->  | G129: =IF(E129="","", VLOOKUP(INDEX(SchiffstypenID, MATCH(Berechnung!A129,Schiffstypen!$B$2:$B$4,0))&"_"&INDEX(FahrttypenID, MATCH(Berechnung!B129,Fahrttypen!$B$2:$B$5,0)),Energieverbrauch_Kennzahlen!$C$2:$D$10,2,FALSE)) ->  | I129: =IF(H129="","",H129/Treibhausgas_Kennzahlen!$B$5) ->  | J129: =IF(H129="","",H129*Treibhausgas_Kennzahlen!B$9) ->  | K129: =IF(H129="","",H129*Treibhausgas_Kennzahlen!C$9) ->  | L129: =IF(H129="","",H129*Treibhausgas_Kennzahlen!D$9) ->  | M129: =IF(H129="","",H129*Treibhausgas_Kennzahlen!E$9) ->  | N129: =IF(H129="","",H129*Treibhausgas_Kennzahlen!F$9) ->  | O129: =IF(H129="","",H129*Treibhausgas_Kennzahlen!G$9) -> 
F130: =IF(E130="","",VLOOKUP(INDEX(Binnenhäfen!$A$2:$A$501, MATCH(Berechnung!C130,Binnenhäfen!$B$2:$B$501,0))&"_"&INDEX(Binnenhäfen!$A$2:$A$501, MATCH(Berechnung!D130,Binnenhäfen!$B$2:$B$501,0)),Entfernung_Binnenhäfen!$C$2:$D$10001,2,FALSE)) ->  | G130: =IF(E130="","", VLOOKUP(INDEX(SchiffstypenID, MATCH(Berechnung!A130,Schiffstypen!$B$2:$B$4,0))&"_"&INDEX(FahrttypenID, MATCH(Berechnung!B130,Fahrttypen!$B$2:$B$5,0)),Energieverbrauch_Kennzahlen!$C$2:$D$10,2,FALSE)) ->  | I130: =IF(H130="","",H130/Treibhausgas_Kennzahlen!$B$5) ->  | J130: =IF(H130="","",H130*Treibhausgas_Kennzahlen!B$9) ->  | K130: =IF(H130="","",H130*Treibhausgas_Kennzahlen!C$9) ->  | L130: =IF(H130="","",H130*Treibhausgas_Kennzahlen!D$9) ->  | M130: =IF(H130="","",H130*Treibhausgas_Kennzahlen!E$9) ->  | N130: =IF(H130="","",H130*Treibhausgas_Kennzahlen!F$9) ->  | O130: =IF(H130="","",H130*Treibhausgas_Kennzahlen!G$9) -> 
F131: =IF(E131="","",VLOOKUP(INDEX(Binnenhäfen!$A$2:$A$501, MATCH(Berechnung!C131,Binnenhäfen!$B$2:$B$501,0))&"_"&INDEX(Binnenhäfen!$A$2:$A$501, MATCH(Berechnung!D131,Binnenhäfen!$B$2:$B$501,0)),Entfernung_Binnenhäfen!$C$2:$D$10001,2,FALSE)) ->  | G131: =IF(E131="","", VLOOKUP(INDEX(SchiffstypenID, MATCH(Berechnung!A131,Schiffstypen!$B$2:$B$4,0))&"_"&INDEX(FahrttypenID, MATCH(Berechnung!B131,Fahrttypen!$B$2:$B$5,0)),Energieverbrauch_Kennzahlen!$C$2:$D$10,2,FALSE)) ->  | I131: =IF(H131="","",H131/Treibhausgas_Kennzahlen!$B$5) ->  | J131: =IF(H131="","",H131*Treibhausgas_Kennzahlen!B$9) ->  | K131: =IF(H131="","",H131*Treibhausgas_Kennzahlen!C$9) ->  | L131: =IF(H131="","",H131*Treibhausgas_Kennzahlen!D$9) ->  | M131: =IF(H131="","",H131*Treibhausgas_Kennzahlen!E$9) ->  | N131: =IF(H131="","",H131*Treibhausgas_Kennzahlen!F$9) ->  | O131: =IF(H131="","",H131*Treibhausgas_Kennzahlen!G$9) -> 
F132: =IF(E132="","",VLOOKUP(INDEX(Binnenhäfen!$A$2:$A$501, MATCH(Berechnung!C132,Binnenhäfen!$B$2:$B$501,0))&"_"&INDEX(Binnenhäfen!$A$2:$A$501, MATCH(Berechnung!D132,Binnenhäfen!$B$2:$B$501,0)),Entfernung_Binnenhäfen!$C$2:$D$10001,2,FALSE)) ->  | G132: =IF(E132="","", VLOOKUP(INDEX(SchiffstypenID, MATCH(Berechnung!A132,Schiffstypen!$B$2:$B$4,0))&"_"&INDEX(FahrttypenID, MATCH(Berechnung!B132,Fahrttypen!$B$2:$B$5,0)),Energieverbrauch_Kennzahlen!$C$2:$D$10,2,FALSE)) ->  | I132: =IF(H132="","",H132/Treibhausgas_Kennzahlen!$B$5) ->  | J132: =IF(H132="","",H132*Treibhausgas_Kennzahlen!B$9) ->  | K132: =IF(H132="","",H132*Treibhausgas_Kennzahlen!C$9) ->  | L132: =IF(H132="","",H132*Treibhausgas_Kennzahlen!D$9) ->  | M132: =IF(H132="","",H132*Treibhausgas_Kennzahlen!E$9) ->  | N132: =IF(H132="","",H132*Treibhausgas_Kennzahlen!F$9) ->  | O132: =IF(H132="","",H132*Treibhausgas_Kennzahlen!G$9) -> 
F133: =IF(E133="","",VLOOKUP(INDEX(Binnenhäfen!$A$2:$A$501, MATCH(Berechnung!C133,Binnenhäfen!$B$2:$B$501,0))&"_"&INDEX(Binnenhäfen!$A$2:$A$501, MATCH(Berechnung!D133,Binnenhäfen!$B$2:$B$501,0)),Entfernung_Binnenhäfen!$C$2:$D$10001,2,FALSE)) ->  | G133: =IF(E133="","", VLOOKUP(INDEX(SchiffstypenID, MATCH(Berechnung!A133,Schiffstypen!$B$2:$B$4,0))&"_"&INDEX(FahrttypenID, MATCH(Berechnung!B133,Fahrttypen!$B$2:$B$5,0)),Energieverbrauch_Kennzahlen!$C$2:$D$10,2,FALSE)) ->  | I133: =IF(H133="","",H133/Treibhausgas_Kennzahlen!$B$5) ->  | J133: =IF(H133="","",H133*Treibhausgas_Kennzahlen!B$9) ->  | K133: =IF(H133="","",H133*Treibhausgas_Kennzahlen!C$9) ->  | L133: =IF(H133="","",H133*Treibhausgas_Kennzahlen!D$9) ->  | M133: =IF(H133="","",H133*Treibhausgas_Kennzahlen!E$9) ->  | N133: =IF(H133="","",H133*Treibhausgas_Kennzahlen!F$9) ->  | O133: =IF(H133="","",H133*Treibhausgas_Kennzahlen!G$9) -> 
F134: =IF(E134="","",VLOOKUP(INDEX(Binnenhäfen!$A$2:$A$501, MATCH(Berechnung!C134,Binnenhäfen!$B$2:$B$501,0))&"_"&INDEX(Binnenhäfen!$A$2:$A$501, MATCH(Berechnung!D134,Binnenhäfen!$B$2:$B$501,0)),Entfernung_Binnenhäfen!$C$2:$D$10001,2,FALSE)) ->  | G134: =IF(E134="","", VLOOKUP(INDEX(SchiffstypenID, MATCH(Berechnung!A134,Schiffstypen!$B$2:$B$4,0))&"_"&INDEX(FahrttypenID, MATCH(Berechnung!B134,Fahrttypen!$B$2:$B$5,0)),Energieverbrauch_Kennzahlen!$C$2:$D$10,2,FALSE)) ->  | I134: =IF(H134="","",H134/Treibhausgas_Kennzahlen!$B$5) ->  | J134: =IF(H134="","",H134*Treibhausgas_Kennzahlen!B$9) ->  | K134: =IF(H134="","",H134*Treibhausgas_Kennzahlen!C$9) ->  | L134: =IF(H134="","",H134*Treibhausgas_Kennzahlen!D$9) ->  | M134: =IF(H134="","",H134*Treibhausgas_Kennzahlen!E$9) ->  | N134: =IF(H134="","",H134*Treibhausgas_Kennzahlen!F$9) ->  | O134: =IF(H134="","",H134*Treibhausgas_Kennzahlen!G$9) -> 
F135: =IF(E135="","",VLOOKUP(INDEX(Binnenhäfen!$A$2:$A$501, MATCH(Berechnung!C135,Binnenhäfen!$B$2:$B$501,0))&"_"&INDEX(Binnenhäfen!$A$2:$A$501, MATCH(Berechnung!D135,Binnenhäfen!$B$2:$B$501,0)),Entfernung_Binnenhäfen!$C$2:$D$10001,2,FALSE)) ->  | G135: =IF(E135="","", VLOOKUP(INDEX(SchiffstypenID, MATCH(Berechnung!A135,Schiffstypen!$B$2:$B$4,0))&"_"&INDEX(FahrttypenID, MATCH(Berechnung!B135,Fahrttypen!$B$2:$B$5,0)),Energieverbrauch_Kennzahlen!$C$2:$D$10,2,FALSE)) ->  | H135: =IF(G135="","",PRODUCT(G135,F135,E135)/1000) ->  | I135: =IF(H135="","",H135/Treibhausgas_Kennzahlen!$B$5) ->  | J135: =IF(H135="","",H135*Treibhausgas_Kennzahlen!B$9) ->  | K135: =IF(H135="","",H135*Treibhausgas_Kennzahlen!C$9) ->  | L135: =IF(H135="","",H135*Treibhausgas_Kennzahlen!D$9) ->  | M135: =IF(H135="","",H135*Treibhausgas_Kennzahlen!E$9) ->  | N135: =IF(H135="","",H135*Treibhausgas_Kennzahlen!F$9) ->  | O135: =IF(H135="","",H135*Treibhausgas_Kennzahlen!G$9) -> 
F136: =IF(E136="","",VLOOKUP(INDEX(Binnenhäfen!$A$2:$A$501, MATCH(Berechnung!C136,Binnenhäfen!$B$2:$B$501,0))&"_"&INDEX(Binnenhäfen!$A$2:$A$501, MATCH(Berechnung!D136,Binnenhäfen!$B$2:$B$501,0)),Entfernung_Binnenhäfen!$C$2:$D$10001,2,FALSE)) ->  | G136: =IF(E136="","", VLOOKUP(INDEX(SchiffstypenID, MATCH(Berechnung!A136,Schiffstypen!$B$2:$B$4,0))&"_"&INDEX(FahrttypenID, MATCH(Berechnung!B136,Fahrttypen!$B$2:$B$5,0)),Energieverbrauch_Kennzahlen!$C$2:$D$10,2,FALSE)) ->  | I136: =IF(H136="","",H136/Treibhausgas_Kennzahlen!$B$5) ->  | J136: =IF(H136="","",H136*Treibhausgas_Kennzahlen!B$9) ->  | K136: =IF(H136="","",H136*Treibhausgas_Kennzahlen!C$9) ->  | L136: =IF(H136="","",H136*Treibhausgas_Kennzahlen!D$9) ->  | M136: =IF(H136="","",H136*Treibhausgas_Kennzahlen!E$9) ->  | N136: =IF(H136="","",H136*Treibhausgas_Kennzahlen!F$9) ->  | O136: =IF(H136="","",H136*Treibhausgas_Kennzahlen!G$9) -> 
F137: =IF(E137="","",VLOOKUP(INDEX(Binnenhäfen!$A$2:$A$501, MATCH(Berechnung!C137,Binnenhäfen!$B$2:$B$501,0))&"_"&INDEX(Binnenhäfen!$A$2:$A$501, MATCH(Berechnung!D137,Binnenhäfen!$B$2:$B$501,0)),Entfernung_Binnenhäfen!$C$2:$D$10001,2,FALSE)) ->  | G137: =IF(E137="","", VLOOKUP(INDEX(SchiffstypenID, MATCH(Berechnung!A137,Schiffstypen!$B$2:$B$4,0))&"_"&INDEX(FahrttypenID, MATCH(Berechnung!B137,Fahrttypen!$B$2:$B$5,0)),Energieverbrauch_Kennzahlen!$C$2:$D$10,2,FALSE)) ->  | I137: =IF(H137="","",H137/Treibhausgas_Kennzahlen!$B$5) ->  | J137: =IF(H137="","",H137*Treibhausgas_Kennzahlen!B$9) ->  | K137: =IF(H137="","",H137*Treibhausgas_Kennzahlen!C$9) ->  | L137: =IF(H137="","",H137*Treibhausgas_Kennzahlen!D$9) ->  | M137: =IF(H137="","",H137*Treibhausgas_Kennzahlen!E$9) ->  | N137: =IF(H137="","",H137*Treibhausgas_Kennzahlen!F$9) ->  | O137: =IF(H137="","",H137*Treibhausgas_Kennzahlen!G$9) -> 
F138: =IF(E138="","",VLOOKUP(INDEX(Binnenhäfen!$A$2:$A$501, MATCH(Berechnung!C138,Binnenhäfen!$B$2:$B$501,0))&"_"&INDEX(Binnenhäfen!$A$2:$A$501, MATCH(Berechnung!D138,Binnenhäfen!$B$2:$B$501,0)),Entfernung_Binnenhäfen!$C$2:$D$10001,2,FALSE)) ->  | G138: =IF(E138="","", VLOOKUP(INDEX(SchiffstypenID, MATCH(Berechnung!A138,Schiffstypen!$B$2:$B$4,0))&"_"&INDEX(FahrttypenID, MATCH(Berechnung!B138,Fahrttypen!$B$2:$B$5,0)),Energieverbrauch_Kennzahlen!$C$2:$D$10,2,FALSE)) ->  | I138: =IF(H138="","",H138/Treibhausgas_Kennzahlen!$B$5) ->  | J138: =IF(H138="","",H138*Treibhausgas_Kennzahlen!B$9) ->  | K138: =IF(H138="","",H138*Treibhausgas_Kennzahlen!C$9) ->  | L138: =IF(H138="","",H138*Treibhausgas_Kennzahlen!D$9) ->  | M138: =IF(H138="","",H138*Treibhausgas_Kennzahlen!E$9) ->  | N138: =IF(H138="","",H138*Treibhausgas_Kennzahlen!F$9) ->  | O138: =IF(H138="","",H138*Treibhausgas_Kennzahlen!G$9) -> 
F139: =IF(E139="","",VLOOKUP(INDEX(Binnenhäfen!$A$2:$A$501, MATCH(Berechnung!C139,Binnenhäfen!$B$2:$B$501,0))&"_"&INDEX(Binnenhäfen!$A$2:$A$501, MATCH(Berechnung!D139,Binnenhäfen!$B$2:$B$501,0)),Entfernung_Binnenhäfen!$C$2:$D$10001,2,FALSE)) ->  | G139: =IF(E139="","", VLOOKUP(INDEX(SchiffstypenID, MATCH(Berechnung!A139,Schiffstypen!$B$2:$B$4,0))&"_"&INDEX(FahrttypenID, MATCH(Berechnung!B139,Fahrttypen!$B$2:$B$5,0)),Energieverbrauch_Kennzahlen!$C$2:$D$10,2,FALSE)) ->  | I139: =IF(H139="","",H139/Treibhausgas_Kennzahlen!$B$5) ->  | J139: =IF(H139="","",H139*Treibhausgas_Kennzahlen!B$9) ->  | K139: =IF(H139="","",H139*Treibhausgas_Kennzahlen!C$9) ->  | L139: =IF(H139="","",H139*Treibhausgas_Kennzahlen!D$9) ->  | M139: =IF(H139="","",H139*Treibhausgas_Kennzahlen!E$9) ->  | N139: =IF(H139="","",H139*Treibhausgas_Kennzahlen!F$9) ->  | O139: =IF(H139="","",H139*Treibhausgas_Kennzahlen!G$9) -> 
F140: =IF(E140="","",VLOOKUP(INDEX(Binnenhäfen!$A$2:$A$501, MATCH(Berechnung!C140,Binnenhäfen!$B$2:$B$501,0))&"_"&INDEX(Binnenhäfen!$A$2:$A$501, MATCH(Berechnung!D140,Binnenhäfen!$B$2:$B$501,0)),Entfernung_Binnenhäfen!$C$2:$D$10001,2,FALSE)) ->  | G140: =IF(E140="","", VLOOKUP(INDEX(SchiffstypenID, MATCH(Berechnung!A140,Schiffstypen!$B$2:$B$4,0))&"_"&INDEX(FahrttypenID, MATCH(Berechnung!B140,Fahrttypen!$B$2:$B$5,0)),Energieverbrauch_Kennzahlen!$C$2:$D$10,2,FALSE)) ->  | I140: =IF(H140="","",H140/Treibhausgas_Kennzahlen!$B$5) ->  | J140: =IF(H140="","",H140*Treibhausgas_Kennzahlen!B$9) ->  | K140: =IF(H140="","",H140*Treibhausgas_Kennzahlen!C$9) ->  | L140: =IF(H140="","",H140*Treibhausgas_Kennzahlen!D$9) ->  | M140: =IF(H140="","",H140*Treibhausgas_Kennzahlen!E$9) ->  | N140: =IF(H140="","",H140*Treibhausgas_Kennzahlen!F$9) ->  | O140: =IF(H140="","",H140*Treibhausgas_Kennzahlen!G$9) -> 
F141: =IF(E141="","",VLOOKUP(INDEX(Binnenhäfen!$A$2:$A$501, MATCH(Berechnung!C141,Binnenhäfen!$B$2:$B$501,0))&"_"&INDEX(Binnenhäfen!$A$2:$A$501, MATCH(Berechnung!D141,Binnenhäfen!$B$2:$B$501,0)),Entfernung_Binnenhäfen!$C$2:$D$10001,2,FALSE)) ->  | G141: =IF(E141="","", VLOOKUP(INDEX(SchiffstypenID, MATCH(Berechnung!A141,Schiffstypen!$B$2:$B$4,0))&"_"&INDEX(FahrttypenID, MATCH(Berechnung!B141,Fahrttypen!$B$2:$B$5,0)),Energieverbrauch_Kennzahlen!$C$2:$D$10,2,FALSE)) ->  | I141: =IF(H141="","",H141/Treibhausgas_Kennzahlen!$B$5) ->  | J141: =IF(H141="","",H141*Treibhausgas_Kennzahlen!B$9) ->  | K141: =IF(H141="","",H141*Treibhausgas_Kennzahlen!C$9) ->  | L141: =IF(H141="","",H141*Treibhausgas_Kennzahlen!D$9) ->  | M141: =IF(H141="","",H141*Treibhausgas_Kennzahlen!E$9) ->  | N141: =IF(H141="","",H141*Treibhausgas_Kennzahlen!F$9) ->  | O141: =IF(H141="","",H141*Treibhausgas_Kennzahlen!G$9) -> 
F142: =IF(E142="","",VLOOKUP(INDEX(Binnenhäfen!$A$2:$A$501, MATCH(Berechnung!C142,Binnenhäfen!$B$2:$B$501,0))&"_"&INDEX(Binnenhäfen!$A$2:$A$501, MATCH(Berechnung!D142,Binnenhäfen!$B$2:$B$501,0)),Entfernung_Binnenhäfen!$C$2:$D$10001,2,FALSE)) ->  | G142: =IF(E142="","", VLOOKUP(INDEX(SchiffstypenID, MATCH(Berechnung!A142,Schiffstypen!$B$2:$B$4,0))&"_"&INDEX(FahrttypenID, MATCH(Berechnung!B142,Fahrttypen!$B$2:$B$5,0)),Energieverbrauch_Kennzahlen!$C$2:$D$10,2,FALSE)) ->  | I142: =IF(H142="","",H142/Treibhausgas_Kennzahlen!$B$5) ->  | J142: =IF(H142="","",H142*Treibhausgas_Kennzahlen!B$9) ->  | K142: =IF(H142="","",H142*Treibhausgas_Kennzahlen!C$9) ->  | L142: =IF(H142="","",H142*Treibhausgas_Kennzahlen!D$9) ->  | M142: =IF(H142="","",H142*Treibhausgas_Kennzahlen!E$9) ->  | N142: =IF(H142="","",H142*Treibhausgas_Kennzahlen!F$9) ->  | O142: =IF(H142="","",H142*Treibhausgas_Kennzahlen!G$9) -> 
F143: =IF(E143="","",VLOOKUP(INDEX(Binnenhäfen!$A$2:$A$501, MATCH(Berechnung!C143,Binnenhäfen!$B$2:$B$501,0))&"_"&INDEX(Binnenhäfen!$A$2:$A$501, MATCH(Berechnung!D143,Binnenhäfen!$B$2:$B$501,0)),Entfernung_Binnenhäfen!$C$2:$D$10001,2,FALSE)) ->  | G143: =IF(E143="","", VLOOKUP(INDEX(SchiffstypenID, MATCH(Berechnung!A143,Schiffstypen!$B$2:$B$4,0))&"_"&INDEX(FahrttypenID, MATCH(Berechnung!B143,Fahrttypen!$B$2:$B$5,0)),Energieverbrauch_Kennzahlen!$C$2:$D$10,2,FALSE)) ->  | I143: =IF(H143="","",H143/Treibhausgas_Kennzahlen!$B$5) ->  | J143: =IF(H143="","",H143*Treibhausgas_Kennzahlen!B$9) ->  | K143: =IF(H143="","",H143*Treibhausgas_Kennzahlen!C$9) ->  | L143: =IF(H143="","",H143*Treibhausgas_Kennzahlen!D$9) ->  | M143: =IF(H143="","",H143*Treibhausgas_Kennzahlen!E$9) ->  | N143: =IF(H143="","",H143*Treibhausgas_Kennzahlen!F$9) ->  | O143: =IF(H143="","",H143*Treibhausgas_Kennzahlen!G$9) -> 
F144: =IF(E144="","",VLOOKUP(INDEX(Binnenhäfen!$A$2:$A$501, MATCH(Berechnung!C144,Binnenhäfen!$B$2:$B$501,0))&"_"&INDEX(Binnenhäfen!$A$2:$A$501, MATCH(Berechnung!D144,Binnenhäfen!$B$2:$B$501,0)),Entfernung_Binnenhäfen!$C$2:$D$10001,2,FALSE)) ->  | G144: =IF(E144="","", VLOOKUP(INDEX(SchiffstypenID, MATCH(Berechnung!A144,Schiffstypen!$B$2:$B$4,0))&"_"&INDEX(FahrttypenID, MATCH(Berechnung!B144,Fahrttypen!$B$2:$B$5,0)),Energieverbrauch_Kennzahlen!$C$2:$D$10,2,FALSE)) ->  | I144: =IF(H144="","",H144/Treibhausgas_Kennzahlen!$B$5) ->  | J144: =IF(H144="","",H144*Treibhausgas_Kennzahlen!B$9) ->  | K144: =IF(H144="","",H144*Treibhausgas_Kennzahlen!C$9) ->  | L144: =IF(H144="","",H144*Treibhausgas_Kennzahlen!D$9) ->  | M144: =IF(H144="","",H144*Treibhausgas_Kennzahlen!E$9) ->  | N144: =IF(H144="","",H144*Treibhausgas_Kennzahlen!F$9) ->  | O144: =IF(H144="","",H144*Treibhausgas_Kennzahlen!G$9) -> 
F145: =IF(E145="","",VLOOKUP(INDEX(Binnenhäfen!$A$2:$A$501, MATCH(Berechnung!C145,Binnenhäfen!$B$2:$B$501,0))&"_"&INDEX(Binnenhäfen!$A$2:$A$501, MATCH(Berechnung!D145,Binnenhäfen!$B$2:$B$501,0)),Entfernung_Binnenhäfen!$C$2:$D$10001,2,FALSE)) ->  | G145: =IF(E145="","", VLOOKUP(INDEX(SchiffstypenID, MATCH(Berechnung!A145,Schiffstypen!$B$2:$B$4,0))&"_"&INDEX(FahrttypenID, MATCH(Berechnung!B145,Fahrttypen!$B$2:$B$5,0)),Energieverbrauch_Kennzahlen!$C$2:$D$10,2,FALSE)) ->  | I145: =IF(H145="","",H145/Treibhausgas_Kennzahlen!$B$5) ->  | J145: =IF(H145="","",H145*Treibhausgas_Kennzahlen!B$9) ->  | K145: =IF(H145="","",H145*Treibhausgas_Kennzahlen!C$9) ->  | L145: =IF(H145="","",H145*Treibhausgas_Kennzahlen!D$9) ->  | M145: =IF(H145="","",H145*Treibhausgas_Kennzahlen!E$9) ->  | N145: =IF(H145="","",H145*Treibhausgas_Kennzahlen!F$9) ->  | O145: =IF(H145="","",H145*Treibhausgas_Kennzahlen!G$9) -> 
F146: =IF(E146="","",VLOOKUP(INDEX(Binnenhäfen!$A$2:$A$501, MATCH(Berechnung!C146,Binnenhäfen!$B$2:$B$501,0))&"_"&INDEX(Binnenhäfen!$A$2:$A$501, MATCH(Berechnung!D146,Binnenhäfen!$B$2:$B$501,0)),Entfernung_Binnenhäfen!$C$2:$D$10001,2,FALSE)) ->  | G146: =IF(E146="","", VLOOKUP(INDEX(SchiffstypenID, MATCH(Berechnung!A146,Schiffstypen!$B$2:$B$4,0))&"_"&INDEX(FahrttypenID, MATCH(Berechnung!B146,Fahrttypen!$B$2:$B$5,0)),Energieverbrauch_Kennzahlen!$C$2:$D$10,2,FALSE)) ->  | I146: =IF(H146="","",H146/Treibhausgas_Kennzahlen!$B$5) ->  | J146: =IF(H146="","",H146*Treibhausgas_Kennzahlen!B$9) ->  | K146: =IF(H146="","",H146*Treibhausgas_Kennzahlen!C$9) ->  | L146: =IF(H146="","",H146*Treibhausgas_Kennzahlen!D$9) ->  | M146: =IF(H146="","",H146*Treibhausgas_Kennzahlen!E$9) ->  | N146: =IF(H146="","",H146*Treibhausgas_Kennzahlen!F$9) ->  | O146: =IF(H146="","",H146*Treibhausgas_Kennzahlen!G$9) -> 
F147: =IF(E147="","",VLOOKUP(INDEX(Binnenhäfen!$A$2:$A$501, MATCH(Berechnung!C147,Binnenhäfen!$B$2:$B$501,0))&"_"&INDEX(Binnenhäfen!$A$2:$A$501, MATCH(Berechnung!D147,Binnenhäfen!$B$2:$B$501,0)),Entfernung_Binnenhäfen!$C$2:$D$10001,2,FALSE)) ->  | G147: =IF(E147="","", VLOOKUP(INDEX(SchiffstypenID, MATCH(Berechnung!A147,Schiffstypen!$B$2:$B$4,0))&"_"&INDEX(FahrttypenID, MATCH(Berechnung!B147,Fahrttypen!$B$2:$B$5,0)),Energieverbrauch_Kennzahlen!$C$2:$D$10,2,FALSE)) ->  | I147: =IF(H147="","",H147/Treibhausgas_Kennzahlen!$B$5) ->  | J147: =IF(H147="","",H147*Treibhausgas_Kennzahlen!B$9) ->  | K147: =IF(H147="","",H147*Treibhausgas_Kennzahlen!C$9) ->  | L147: =IF(H147="","",H147*Treibhausgas_Kennzahlen!D$9) ->  | M147: =IF(H147="","",H147*Treibhausgas_Kennzahlen!E$9) ->  | N147: =IF(H147="","",H147*Treibhausgas_Kennzahlen!F$9) ->  | O147: =IF(H147="","",H147*Treibhausgas_Kennzahlen!G$9) -> 
F148: =IF(E148="","",VLOOKUP(INDEX(Binnenhäfen!$A$2:$A$501, MATCH(Berechnung!C148,Binnenhäfen!$B$2:$B$501,0))&"_"&INDEX(Binnenhäfen!$A$2:$A$501, MATCH(Berechnung!D148,Binnenhäfen!$B$2:$B$501,0)),Entfernung_Binnenhäfen!$C$2:$D$10001,2,FALSE)) ->  | G148: =IF(E148="","", VLOOKUP(INDEX(SchiffstypenID, MATCH(Berechnung!A148,Schiffstypen!$B$2:$B$4,0))&"_"&INDEX(FahrttypenID, MATCH(Berechnung!B148,Fahrttypen!$B$2:$B$5,0)),Energieverbrauch_Kennzahlen!$C$2:$D$10,2,FALSE)) ->  | I148: =IF(H148="","",H148/Treibhausgas_Kennzahlen!$B$5) ->  | J148: =IF(H148="","",H148*Treibhausgas_Kennzahlen!B$9) ->  | K148: =IF(H148="","",H148*Treibhausgas_Kennzahlen!C$9) ->  | L148: =IF(H148="","",H148*Treibhausgas_Kennzahlen!D$9) ->  | M148: =IF(H148="","",H148*Treibhausgas_Kennzahlen!E$9) ->  | N148: =IF(H148="","",H148*Treibhausgas_Kennzahlen!F$9) ->  | O148: =IF(H148="","",H148*Treibhausgas_Kennzahlen!G$9) -> 
F149: =IF(E149="","",VLOOKUP(INDEX(Binnenhäfen!$A$2:$A$501, MATCH(Berechnung!C149,Binnenhäfen!$B$2:$B$501,0))&"_"&INDEX(Binnenhäfen!$A$2:$A$501, MATCH(Berechnung!D149,Binnenhäfen!$B$2:$B$501,0)),Entfernung_Binnenhäfen!$C$2:$D$10001,2,FALSE)) ->  | G149: =IF(E149="","", VLOOKUP(INDEX(SchiffstypenID, MATCH(Berechnung!A149,Schiffstypen!$B$2:$B$4,0))&"_"&INDEX(FahrttypenID, MATCH(Berechnung!B149,Fahrttypen!$B$2:$B$5,0)),Energieverbrauch_Kennzahlen!$C$2:$D$10,2,FALSE)) ->  | I149: =IF(H149="","",H149/Treibhausgas_Kennzahlen!$B$5) ->  | J149: =IF(H149="","",H149*Treibhausgas_Kennzahlen!B$9) ->  | K149: =IF(H149="","",H149*Treibhausgas_Kennzahlen!C$9) ->  | L149: =IF(H149="","",H149*Treibhausgas_Kennzahlen!D$9) ->  | M149: =IF(H149="","",H149*Treibhausgas_Kennzahlen!E$9) ->  | N149: =IF(H149="","",H149*Treibhausgas_Kennzahlen!F$9) ->  | O149: =IF(H149="","",H149*Treibhausgas_Kennzahlen!G$9) -> 
F150: =IF(E150="","",VLOOKUP(INDEX(Binnenhäfen!$A$2:$A$501, MATCH(Berechnung!C150,Binnenhäfen!$B$2:$B$501,0))&"_"&INDEX(Binnenhäfen!$A$2:$A$501, MATCH(Berechnung!D150,Binnenhäfen!$B$2:$B$501,0)),Entfernung_Binnenhäfen!$C$2:$D$10001,2,FALSE)) ->  | G150: =IF(E150="","", VLOOKUP(INDEX(SchiffstypenID, MATCH(Berechnung!A150,Schiffstypen!$B$2:$B$4,0))&"_"&INDEX(FahrttypenID, MATCH(Berechnung!B150,Fahrttypen!$B$2:$B$5,0)),Energieverbrauch_Kennzahlen!$C$2:$D$10,2,FALSE)) ->  | I150: =IF(H150="","",H150/Treibhausgas_Kennzahlen!$B$5) ->  | J150: =IF(H150="","",H150*Treibhausgas_Kennzahlen!B$9) ->  | K150: =IF(H150="","",H150*Treibhausgas_Kennzahlen!C$9) ->  | L150: =IF(H150="","",H150*Treibhausgas_Kennzahlen!D$9) ->  | M150: =IF(H150="","",H150*Treibhausgas_Kennzahlen!E$9) ->  | N150: =IF(H150="","",H150*Treibhausgas_Kennzahlen!F$9) ->  | O150: =IF(H150="","",H150*Treibhausgas_Kennzahlen!G$9) -> 
F151: =IF(E151="","",VLOOKUP(INDEX(Binnenhäfen!$A$2:$A$501, MATCH(Berechnung!C151,Binnenhäfen!$B$2:$B$501,0))&"_"&INDEX(Binnenhäfen!$A$2:$A$501, MATCH(Berechnung!D151,Binnenhäfen!$B$2:$B$501,0)),Entfernung_Binnenhäfen!$C$2:$D$10001,2,FALSE)) ->  | G151: =IF(E151="","", VLOOKUP(INDEX(SchiffstypenID, MATCH(Berechnung!A151,Schiffstypen!$B$2:$B$4,0))&"_"&INDEX(FahrttypenID, MATCH(Berechnung!B151,Fahrttypen!$B$2:$B$5,0)),Energieverbrauch_Kennzahlen!$C$2:$D$10,2,FALSE)) ->  | I151: =IF(H151="","",H151/Treibhausgas_Kennzahlen!$B$5) ->  | J151: =IF(H151="","",H151*Treibhausgas_Kennzahlen!B$9) ->  | K151: =IF(H151="","",H151*Treibhausgas_Kennzahlen!C$9) ->  | L151: =IF(H151="","",H151*Treibhausgas_Kennzahlen!D$9) ->  | M151: =IF(H151="","",H151*Treibhausgas_Kennzahlen!E$9) ->  | N151: =IF(H151="","",H151*Treibhausgas_Kennzahlen!F$9) ->  | O151: =IF(H151="","",H151*Treibhausgas_Kennzahlen!G$9) -> 
F152: =IF(E152="","",VLOOKUP(INDEX(Binnenhäfen!$A$2:$A$501, MATCH(Berechnung!C152,Binnenhäfen!$B$2:$B$501,0))&"_"&INDEX(Binnenhäfen!$A$2:$A$501, MATCH(Berechnung!D152,Binnenhäfen!$B$2:$B$501,0)),Entfernung_Binnenhäfen!$C$2:$D$10001,2,FALSE)) ->  | G152: =IF(E152="","", VLOOKUP(INDEX(SchiffstypenID, MATCH(Berechnung!A152,Schiffstypen!$B$2:$B$4,0))&"_"&INDEX(FahrttypenID, MATCH(Berechnung!B152,Fahrttypen!$B$2:$B$5,0)),Energieverbrauch_Kennzahlen!$C$2:$D$10,2,FALSE)) ->  | I152: =IF(H152="","",H152/Treibhausgas_Kennzahlen!$B$5) ->  | J152: =IF(H152="","",H152*Treibhausgas_Kennzahlen!B$9) ->  | K152: =IF(H152="","",H152*Treibhausgas_Kennzahlen!C$9) ->  | L152: =IF(H152="","",H152*Treibhausgas_Kennzahlen!D$9) ->  | M152: =IF(H152="","",H152*Treibhausgas_Kennzahlen!E$9) ->  | N152: =IF(H152="","",H152*Treibhausgas_Kennzahlen!F$9) ->  | O152: =IF(H152="","",H152*Treibhausgas_Kennzahlen!G$9) -> 
F153: =IF(E153="","",VLOOKUP(INDEX(Binnenhäfen!$A$2:$A$501, MATCH(Berechnung!C153,Binnenhäfen!$B$2:$B$501,0))&"_"&INDEX(Binnenhäfen!$A$2:$A$501, MATCH(Berechnung!D153,Binnenhäfen!$B$2:$B$501,0)),Entfernung_Binnenhäfen!$C$2:$D$10001,2,FALSE)) ->  | G153: =IF(E153="","", VLOOKUP(INDEX(SchiffstypenID, MATCH(Berechnung!A153,Schiffstypen!$B$2:$B$4,0))&"_"&INDEX(FahrttypenID, MATCH(Berechnung!B153,Fahrttypen!$B$2:$B$5,0)),Energieverbrauch_Kennzahlen!$C$2:$D$10,2,FALSE)) ->  | I153: =IF(H153="","",H153/Treibhausgas_Kennzahlen!$B$5) ->  | J153: =IF(H153="","",H153*Treibhausgas_Kennzahlen!B$9) ->  | K153: =IF(H153="","",H153*Treibhausgas_Kennzahlen!C$9) ->  | L153: =IF(H153="","",H153*Treibhausgas_Kennzahlen!D$9) ->  | M153: =IF(H153="","",H153*Treibhausgas_Kennzahlen!E$9) ->  | N153: =IF(H153="","",H153*Treibhausgas_Kennzahlen!F$9) ->  | O153: =IF(H153="","",H153*Treibhausgas_Kennzahlen!G$9) -> 
F154: =IF(E154="","",VLOOKUP(INDEX(Binnenhäfen!$A$2:$A$501, MATCH(Berechnung!C154,Binnenhäfen!$B$2:$B$501,0))&"_"&INDEX(Binnenhäfen!$A$2:$A$501, MATCH(Berechnung!D154,Binnenhäfen!$B$2:$B$501,0)),Entfernung_Binnenhäfen!$C$2:$D$10001,2,FALSE)) ->  | G154: =IF(E154="","", VLOOKUP(INDEX(SchiffstypenID, MATCH(Berechnung!A154,Schiffstypen!$B$2:$B$4,0))&"_"&INDEX(FahrttypenID, MATCH(Berechnung!B154,Fahrttypen!$B$2:$B$5,0)),Energieverbrauch_Kennzahlen!$C$2:$D$10,2,FALSE)) ->  | I154: =IF(H154="","",H154/Treibhausgas_Kennzahlen!$B$5) ->  | J154: =IF(H154="","",H154*Treibhausgas_Kennzahlen!B$9) ->  | K154: =IF(H154="","",H154*Treibhausgas_Kennzahlen!C$9) ->  | L154: =IF(H154="","",H154*Treibhausgas_Kennzahlen!D$9) ->  | M154: =IF(H154="","",H154*Treibhausgas_Kennzahlen!E$9) ->  | N154: =IF(H154="","",H154*Treibhausgas_Kennzahlen!F$9) ->  | O154: =IF(H154="","",H154*Treibhausgas_Kennzahlen!G$9) -> 
F155: =IF(E155="","",VLOOKUP(INDEX(Binnenhäfen!$A$2:$A$501, MATCH(Berechnung!C155,Binnenhäfen!$B$2:$B$501,0))&"_"&INDEX(Binnenhäfen!$A$2:$A$501, MATCH(Berechnung!D155,Binnenhäfen!$B$2:$B$501,0)),Entfernung_Binnenhäfen!$C$2:$D$10001,2,FALSE)) ->  | G155: =IF(E155="","", VLOOKUP(INDEX(SchiffstypenID, MATCH(Berechnung!A155,Schiffstypen!$B$2:$B$4,0))&"_"&INDEX(FahrttypenID, MATCH(Berechnung!B155,Fahrttypen!$B$2:$B$5,0)),Energieverbrauch_Kennzahlen!$C$2:$D$10,2,FALSE)) ->  | I155: =IF(H155="","",H155/Treibhausgas_Kennzahlen!$B$5) ->  | J155: =IF(H155="","",H155*Treibhausgas_Kennzahlen!B$9) ->  | K155: =IF(H155="","",H155*Treibhausgas_Kennzahlen!C$9) ->  | L155: =IF(H155="","",H155*Treibhausgas_Kennzahlen!D$9) ->  | M155: =IF(H155="","",H155*Treibhausgas_Kennzahlen!E$9) ->  | N155: =IF(H155="","",H155*Treibhausgas_Kennzahlen!F$9) ->  | O155: =IF(H155="","",H155*Treibhausgas_Kennzahlen!G$9) -> 
F156: =IF(E156="","",VLOOKUP(INDEX(Binnenhäfen!$A$2:$A$501, MATCH(Berechnung!C156,Binnenhäfen!$B$2:$B$501,0))&"_"&INDEX(Binnenhäfen!$A$2:$A$501, MATCH(Berechnung!D156,Binnenhäfen!$B$2:$B$501,0)),Entfernung_Binnenhäfen!$C$2:$D$10001,2,FALSE)) ->  | G156: =IF(E156="","", VLOOKUP(INDEX(SchiffstypenID, MATCH(Berechnung!A156,Schiffstypen!$B$2:$B$4,0))&"_"&INDEX(FahrttypenID, MATCH(Berechnung!B156,Fahrttypen!$B$2:$B$5,0)),Energieverbrauch_Kennzahlen!$C$2:$D$10,2,FALSE)) ->  | I156: =IF(H156="","",H156/Treibhausgas_Kennzahlen!$B$5) ->  | J156: =IF(H156="","",H156*Treibhausgas_Kennzahlen!B$9) ->  | K156: =IF(H156="","",H156*Treibhausgas_Kennzahlen!C$9) ->  | L156: =IF(H156="","",H156*Treibhausgas_Kennzahlen!D$9) ->  | M156: =IF(H156="","",H156*Treibhausgas_Kennzahlen!E$9) ->  | N156: =IF(H156="","",H156*Treibhausgas_Kennzahlen!F$9) ->  | O156: =IF(H156="","",H156*Treibhausgas_Kennzahlen!G$9) -> 
F157: =IF(E157="","",VLOOKUP(INDEX(Binnenhäfen!$A$2:$A$501, MATCH(Berechnung!C157,Binnenhäfen!$B$2:$B$501,0))&"_"&INDEX(Binnenhäfen!$A$2:$A$501, MATCH(Berechnung!D157,Binnenhäfen!$B$2:$B$501,0)),Entfernung_Binnenhäfen!$C$2:$D$10001,2,FALSE)) ->  | G157: =IF(E157="","", VLOOKUP(INDEX(SchiffstypenID, MATCH(Berechnung!A157,Schiffstypen!$B$2:$B$4,0))&"_"&INDEX(FahrttypenID, MATCH(Berechnung!B157,Fahrttypen!$B$2:$B$5,0)),Energieverbrauch_Kennzahlen!$C$2:$D$10,2,FALSE)) ->  | I157: =IF(H157="","",H157/Treibhausgas_Kennzahlen!$B$5) ->  | J157: =IF(H157="","",H157*Treibhausgas_Kennzahlen!B$9) ->  | K157: =IF(H157="","",H157*Treibhausgas_Kennzahlen!C$9) ->  | L157: =IF(H157="","",H157*Treibhausgas_Kennzahlen!D$9) ->  | M157: =IF(H157="","",H157*Treibhausgas_Kennzahlen!E$9) ->  | N157: =IF(H157="","",H157*Treibhausgas_Kennzahlen!F$9) ->  | O157: =IF(H157="","",H157*Treibhausgas_Kennzahlen!G$9) -> 
F158: =IF(E158="","",VLOOKUP(INDEX(Binnenhäfen!$A$2:$A$501, MATCH(Berechnung!C158,Binnenhäfen!$B$2:$B$501,0))&"_"&INDEX(Binnenhäfen!$A$2:$A$501, MATCH(Berechnung!D158,Binnenhäfen!$B$2:$B$501,0)),Entfernung_Binnenhäfen!$C$2:$D$10001,2,FALSE)) ->  | G158: =IF(E158="","", VLOOKUP(INDEX(SchiffstypenID, MATCH(Berechnung!A158,Schiffstypen!$B$2:$B$4,0))&"_"&INDEX(FahrttypenID, MATCH(Berechnung!B158,Fahrttypen!$B$2:$B$5,0)),Energieverbrauch_Kennzahlen!$C$2:$D$10,2,FALSE)) ->  | I158: =IF(H158="","",H158/Treibhausgas_Kennzahlen!$B$5) ->  | J158: =IF(H158="","",H158*Treibhausgas_Kennzahlen!B$9) ->  | K158: =IF(H158="","",H158*Treibhausgas_Kennzahlen!C$9) ->  | L158: =IF(H158="","",H158*Treibhausgas_Kennzahlen!D$9) ->  | M158: =IF(H158="","",H158*Treibhausgas_Kennzahlen!E$9) ->  | N158: =IF(H158="","",H158*Treibhausgas_Kennzahlen!F$9) ->  | O158: =IF(H158="","",H158*Treibhausgas_Kennzahlen!G$9) -> 
F159: =IF(E159="","",VLOOKUP(INDEX(Binnenhäfen!$A$2:$A$501, MATCH(Berechnung!C159,Binnenhäfen!$B$2:$B$501,0))&"_"&INDEX(Binnenhäfen!$A$2:$A$501, MATCH(Berechnung!D159,Binnenhäfen!$B$2:$B$501,0)),Entfernung_Binnenhäfen!$C$2:$D$10001,2,FALSE)) ->  | G159: =IF(E159="","", VLOOKUP(INDEX(SchiffstypenID, MATCH(Berechnung!A159,Schiffstypen!$B$2:$B$4,0))&"_"&INDEX(FahrttypenID, MATCH(Berechnung!B159,Fahrttypen!$B$2:$B$5,0)),Energieverbrauch_Kennzahlen!$C$2:$D$10,2,FALSE)) ->  | I159: =IF(H159="","",H159/Treibhausgas_Kennzahlen!$B$5) ->  | J159: =IF(H159="","",H159*Treibhausgas_Kennzahlen!B$9) ->  | K159: =IF(H159="","",H159*Treibhausgas_Kennzahlen!C$9) ->  | L159: =IF(H159="","",H159*Treibhausgas_Kennzahlen!D$9) ->  | M159: =IF(H159="","",H159*Treibhausgas_Kennzahlen!E$9) ->  | N159: =IF(H159="","",H159*Treibhausgas_Kennzahlen!F$9) ->  | O159: =IF(H159="","",H159*Treibhausgas_Kennzahlen!G$9) -> 
F160: =IF(E160="","",VLOOKUP(INDEX(Binnenhäfen!$A$2:$A$501, MATCH(Berechnung!C160,Binnenhäfen!$B$2:$B$501,0))&"_"&INDEX(Binnenhäfen!$A$2:$A$501, MATCH(Berechnung!D160,Binnenhäfen!$B$2:$B$501,0)),Entfernung_Binnenhäfen!$C$2:$D$10001,2,FALSE)) ->  | G160: =IF(E160="","", VLOOKUP(INDEX(SchiffstypenID, MATCH(Berechnung!A160,Schiffstypen!$B$2:$B$4,0))&"_"&INDEX(FahrttypenID, MATCH(Berechnung!B160,Fahrttypen!$B$2:$B$5,0)),Energieverbrauch_Kennzahlen!$C$2:$D$10,2,FALSE)) ->  | I160: =IF(H160="","",H160/Treibhausgas_Kennzahlen!$B$5) ->  | J160: =IF(H160="","",H160*Treibhausgas_Kennzahlen!B$9) ->  | K160: =IF(H160="","",H160*Treibhausgas_Kennzahlen!C$9) ->  | L160: =IF(H160="","",H160*Treibhausgas_Kennzahlen!D$9) ->  | M160: =IF(H160="","",H160*Treibhausgas_Kennzahlen!E$9) ->  | N160: =IF(H160="","",H160*Treibhausgas_Kennzahlen!F$9) ->  | O160: =IF(H160="","",H160*Treibhausgas_Kennzahlen!G$9) -> 
F161: =IF(E161="","",VLOOKUP(INDEX(Binnenhäfen!$A$2:$A$501, MATCH(Berechnung!C161,Binnenhäfen!$B$2:$B$501,0))&"_"&INDEX(Binnenhäfen!$A$2:$A$501, MATCH(Berechnung!D161,Binnenhäfen!$B$2:$B$501,0)),Entfernung_Binnenhäfen!$C$2:$D$10001,2,FALSE)) ->  | G161: =IF(E161="","", VLOOKUP(INDEX(SchiffstypenID, MATCH(Berechnung!A161,Schiffstypen!$B$2:$B$4,0))&"_"&INDEX(FahrttypenID, MATCH(Berechnung!B161,Fahrttypen!$B$2:$B$5,0)),Energieverbrauch_Kennzahlen!$C$2:$D$10,2,FALSE)) ->  | I161: =IF(H161="","",H161/Treibhausgas_Kennzahlen!$B$5) ->  | J161: =IF(H161="","",H161*Treibhausgas_Kennzahlen!B$9) ->  | K161: =IF(H161="","",H161*Treibhausgas_Kennzahlen!C$9) ->  | L161: =IF(H161="","",H161*Treibhausgas_Kennzahlen!D$9) ->  | M161: =IF(H161="","",H161*Treibhausgas_Kennzahlen!E$9) ->  | N161: =IF(H161="","",H161*Treibhausgas_Kennzahlen!F$9) ->  | O161: =IF(H161="","",H161*Treibhausgas_Kennzahlen!G$9) -> 
F162: =IF(E162="","",VLOOKUP(INDEX(Binnenhäfen!$A$2:$A$501, MATCH(Berechnung!C162,Binnenhäfen!$B$2:$B$501,0))&"_"&INDEX(Binnenhäfen!$A$2:$A$501, MATCH(Berechnung!D162,Binnenhäfen!$B$2:$B$501,0)),Entfernung_Binnenhäfen!$C$2:$D$10001,2,FALSE)) ->  | G162: =IF(E162="","", VLOOKUP(INDEX(SchiffstypenID, MATCH(Berechnung!A162,Schiffstypen!$B$2:$B$4,0))&"_"&INDEX(FahrttypenID, MATCH(Berechnung!B162,Fahrttypen!$B$2:$B$5,0)),Energieverbrauch_Kennzahlen!$C$2:$D$10,2,FALSE)) ->  | I162: =IF(H162="","",H162/Treibhausgas_Kennzahlen!$B$5) ->  | J162: =IF(H162="","",H162*Treibhausgas_Kennzahlen!B$9) ->  | K162: =IF(H162="","",H162*Treibhausgas_Kennzahlen!C$9) ->  | L162: =IF(H162="","",H162*Treibhausgas_Kennzahlen!D$9) ->  | M162: =IF(H162="","",H162*Treibhausgas_Kennzahlen!E$9) ->  | N162: =IF(H162="","",H162*Treibhausgas_Kennzahlen!F$9) ->  | O162: =IF(H162="","",H162*Treibhausgas_Kennzahlen!G$9) -> 
F163: =IF(E163="","",VLOOKUP(INDEX(Binnenhäfen!$A$2:$A$501, MATCH(Berechnung!C163,Binnenhäfen!$B$2:$B$501,0))&"_"&INDEX(Binnenhäfen!$A$2:$A$501, MATCH(Berechnung!D163,Binnenhäfen!$B$2:$B$501,0)),Entfernung_Binnenhäfen!$C$2:$D$10001,2,FALSE)) ->  | G163: =IF(E163="","", VLOOKUP(INDEX(SchiffstypenID, MATCH(Berechnung!A163,Schiffstypen!$B$2:$B$4,0))&"_"&INDEX(FahrttypenID, MATCH(Berechnung!B163,Fahrttypen!$B$2:$B$5,0)),Energieverbrauch_Kennzahlen!$C$2:$D$10,2,FALSE)) ->  | I163: =IF(H163="","",H163/Treibhausgas_Kennzahlen!$B$5) ->  | J163: =IF(H163="","",H163*Treibhausgas_Kennzahlen!B$9) ->  | K163: =IF(H163="","",H163*Treibhausgas_Kennzahlen!C$9) ->  | L163: =IF(H163="","",H163*Treibhausgas_Kennzahlen!D$9) ->  | M163: =IF(H163="","",H163*Treibhausgas_Kennzahlen!E$9) ->  | N163: =IF(H163="","",H163*Treibhausgas_Kennzahlen!F$9) ->  | O163: =IF(H163="","",H163*Treibhausgas_Kennzahlen!G$9) -> 
F164: =IF(E164="","",VLOOKUP(INDEX(Binnenhäfen!$A$2:$A$501, MATCH(Berechnung!C164,Binnenhäfen!$B$2:$B$501,0))&"_"&INDEX(Binnenhäfen!$A$2:$A$501, MATCH(Berechnung!D164,Binnenhäfen!$B$2:$B$501,0)),Entfernung_Binnenhäfen!$C$2:$D$10001,2,FALSE)) ->  | G164: =IF(E164="","", VLOOKUP(INDEX(SchiffstypenID, MATCH(Berechnung!A164,Schiffstypen!$B$2:$B$4,0))&"_"&INDEX(FahrttypenID, MATCH(Berechnung!B164,Fahrttypen!$B$2:$B$5,0)),Energieverbrauch_Kennzahlen!$C$2:$D$10,2,FALSE)) ->  | I164: =IF(H164="","",H164/Treibhausgas_Kennzahlen!$B$5) ->  | J164: =IF(H164="","",H164*Treibhausgas_Kennzahlen!B$9) ->  | K164: =IF(H164="","",H164*Treibhausgas_Kennzahlen!C$9) ->  | L164: =IF(H164="","",H164*Treibhausgas_Kennzahlen!D$9) ->  | M164: =IF(H164="","",H164*Treibhausgas_Kennzahlen!E$9) ->  | N164: =IF(H164="","",H164*Treibhausgas_Kennzahlen!F$9) ->  | O164: =IF(H164="","",H164*Treibhausgas_Kennzahlen!G$9) -> 
F165: =IF(E165="","",VLOOKUP(INDEX(Binnenhäfen!$A$2:$A$501, MATCH(Berechnung!C165,Binnenhäfen!$B$2:$B$501,0))&"_"&INDEX(Binnenhäfen!$A$2:$A$501, MATCH(Berechnung!D165,Binnenhäfen!$B$2:$B$501,0)),Entfernung_Binnenhäfen!$C$2:$D$10001,2,FALSE)) ->  | G165: =IF(E165="","", VLOOKUP(INDEX(SchiffstypenID, MATCH(Berechnung!A165,Schiffstypen!$B$2:$B$4,0))&"_"&INDEX(FahrttypenID, MATCH(Berechnung!B165,Fahrttypen!$B$2:$B$5,0)),Energieverbrauch_Kennzahlen!$C$2:$D$10,2,FALSE)) ->  | I165: =IF(H165="","",H165/Treibhausgas_Kennzahlen!$B$5) ->  | J165: =IF(H165="","",H165*Treibhausgas_Kennzahlen!B$9) ->  | K165: =IF(H165="","",H165*Treibhausgas_Kennzahlen!C$9) ->  | L165: =IF(H165="","",H165*Treibhausgas_Kennzahlen!D$9) ->  | M165: =IF(H165="","",H165*Treibhausgas_Kennzahlen!E$9) ->  | N165: =IF(H165="","",H165*Treibhausgas_Kennzahlen!F$9) ->  | O165: =IF(H165="","",H165*Treibhausgas_Kennzahlen!G$9) -> 
F166: =IF(E166="","",VLOOKUP(INDEX(Binnenhäfen!$A$2:$A$501, MATCH(Berechnung!C166,Binnenhäfen!$B$2:$B$501,0))&"_"&INDEX(Binnenhäfen!$A$2:$A$501, MATCH(Berechnung!D166,Binnenhäfen!$B$2:$B$501,0)),Entfernung_Binnenhäfen!$C$2:$D$10001,2,FALSE)) ->  | G166: =IF(E166="","", VLOOKUP(INDEX(SchiffstypenID, MATCH(Berechnung!A166,Schiffstypen!$B$2:$B$4,0))&"_"&INDEX(FahrttypenID, MATCH(Berechnung!B166,Fahrttypen!$B$2:$B$5,0)),Energieverbrauch_Kennzahlen!$C$2:$D$10,2,FALSE)) ->  | I166: =IF(H166="","",H166/Treibhausgas_Kennzahlen!$B$5) ->  | J166: =IF(H166="","",H166*Treibhausgas_Kennzahlen!B$9) ->  | K166: =IF(H166="","",H166*Treibhausgas_Kennzahlen!C$9) ->  | L166: =IF(H166="","",H166*Treibhausgas_Kennzahlen!D$9) ->  | M166: =IF(H166="","",H166*Treibhausgas_Kennzahlen!E$9) ->  | N166: =IF(H166="","",H166*Treibhausgas_Kennzahlen!F$9) ->  | O166: =IF(H166="","",H166*Treibhausgas_Kennzahlen!G$9) -> 
F167: =IF(E167="","",VLOOKUP(INDEX(Binnenhäfen!$A$2:$A$501, MATCH(Berechnung!C167,Binnenhäfen!$B$2:$B$501,0))&"_"&INDEX(Binnenhäfen!$A$2:$A$501, MATCH(Berechnung!D167,Binnenhäfen!$B$2:$B$501,0)),Entfernung_Binnenhäfen!$C$2:$D$10001,2,FALSE)) ->  | G167: =IF(E167="","", VLOOKUP(INDEX(SchiffstypenID, MATCH(Berechnung!A167,Schiffstypen!$B$2:$B$4,0))&"_"&INDEX(FahrttypenID, MATCH(Berechnung!B167,Fahrttypen!$B$2:$B$5,0)),Energieverbrauch_Kennzahlen!$C$2:$D$10,2,FALSE)) ->  | I167: =IF(H167="","",H167/Treibhausgas_Kennzahlen!$B$5) ->  | J167: =IF(H167="","",H167*Treibhausgas_Kennzahlen!B$9) ->  | K167: =IF(H167="","",H167*Treibhausgas_Kennzahlen!C$9) ->  | L167: =IF(H167="","",H167*Treibhausgas_Kennzahlen!D$9) ->  | M167: =IF(H167="","",H167*Treibhausgas_Kennzahlen!E$9) ->  | N167: =IF(H167="","",H167*Treibhausgas_Kennzahlen!F$9) ->  | O167: =IF(H167="","",H167*Treibhausgas_Kennzahlen!G$9) -> 
F168: =IF(E168="","",VLOOKUP(INDEX(Binnenhäfen!$A$2:$A$501, MATCH(Berechnung!C168,Binnenhäfen!$B$2:$B$501,0))&"_"&INDEX(Binnenhäfen!$A$2:$A$501, MATCH(Berechnung!D168,Binnenhäfen!$B$2:$B$501,0)),Entfernung_Binnenhäfen!$C$2:$D$10001,2,FALSE)) ->  | G168: =IF(E168="","", VLOOKUP(INDEX(SchiffstypenID, MATCH(Berechnung!A168,Schiffstypen!$B$2:$B$4,0))&"_"&INDEX(FahrttypenID, MATCH(Berechnung!B168,Fahrttypen!$B$2:$B$5,0)),Energieverbrauch_Kennzahlen!$C$2:$D$10,2,FALSE)) ->  | I168: =IF(H168="","",H168/Treibhausgas_Kennzahlen!$B$5) ->  | J168: =IF(H168="","",H168*Treibhausgas_Kennzahlen!B$9) ->  | K168: =IF(H168="","",H168*Treibhausgas_Kennzahlen!C$9) ->  | L168: =IF(H168="","",H168*Treibhausgas_Kennzahlen!D$9) ->  | M168: =IF(H168="","",H168*Treibhausgas_Kennzahlen!E$9) ->  | N168: =IF(H168="","",H168*Treibhausgas_Kennzahlen!F$9) ->  | O168: =IF(H168="","",H168*Treibhausgas_Kennzahlen!G$9) -> 
F169: =IF(E169="","",VLOOKUP(INDEX(Binnenhäfen!$A$2:$A$501, MATCH(Berechnung!C169,Binnenhäfen!$B$2:$B$501,0))&"_"&INDEX(Binnenhäfen!$A$2:$A$501, MATCH(Berechnung!D169,Binnenhäfen!$B$2:$B$501,0)),Entfernung_Binnenhäfen!$C$2:$D$10001,2,FALSE)) ->  | G169: =IF(E169="","", VLOOKUP(INDEX(SchiffstypenID, MATCH(Berechnung!A169,Schiffstypen!$B$2:$B$4,0))&"_"&INDEX(FahrttypenID, MATCH(Berechnung!B169,Fahrttypen!$B$2:$B$5,0)),Energieverbrauch_Kennzahlen!$C$2:$D$10,2,FALSE)) ->  | I169: =IF(H169="","",H169/Treibhausgas_Kennzahlen!$B$5) ->  | J169: =IF(H169="","",H169*Treibhausgas_Kennzahlen!B$9) ->  | K169: =IF(H169="","",H169*Treibhausgas_Kennzahlen!C$9) ->  | L169: =IF(H169="","",H169*Treibhausgas_Kennzahlen!D$9) ->  | M169: =IF(H169="","",H169*Treibhausgas_Kennzahlen!E$9) ->  | N169: =IF(H169="","",H169*Treibhausgas_Kennzahlen!F$9) ->  | O169: =IF(H169="","",H169*Treibhausgas_Kennzahlen!G$9) -> 
F170: =IF(E170="","",VLOOKUP(INDEX(Binnenhäfen!$A$2:$A$501, MATCH(Berechnung!C170,Binnenhäfen!$B$2:$B$501,0))&"_"&INDEX(Binnenhäfen!$A$2:$A$501, MATCH(Berechnung!D170,Binnenhäfen!$B$2:$B$501,0)),Entfernung_Binnenhäfen!$C$2:$D$10001,2,FALSE)) ->  | G170: =IF(E170="","", VLOOKUP(INDEX(SchiffstypenID, MATCH(Berechnung!A170,Schiffstypen!$B$2:$B$4,0))&"_"&INDEX(FahrttypenID, MATCH(Berechnung!B170,Fahrttypen!$B$2:$B$5,0)),Energieverbrauch_Kennzahlen!$C$2:$D$10,2,FALSE)) ->  | I170: =IF(H170="","",H170/Treibhausgas_Kennzahlen!$B$5) ->  | J170: =IF(H170="","",H170*Treibhausgas_Kennzahlen!B$9) ->  | K170: =IF(H170="","",H170*Treibhausgas_Kennzahlen!C$9) ->  | L170: =IF(H170="","",H170*Treibhausgas_Kennzahlen!D$9) ->  | M170: =IF(H170="","",H170*Treibhausgas_Kennzahlen!E$9) ->  | N170: =IF(H170="","",H170*Treibhausgas_Kennzahlen!F$9) ->  | O170: =IF(H170="","",H170*Treibhausgas_Kennzahlen!G$9) -> 
F171: =IF(E171="","",VLOOKUP(INDEX(Binnenhäfen!$A$2:$A$501, MATCH(Berechnung!C171,Binnenhäfen!$B$2:$B$501,0))&"_"&INDEX(Binnenhäfen!$A$2:$A$501, MATCH(Berechnung!D171,Binnenhäfen!$B$2:$B$501,0)),Entfernung_Binnenhäfen!$C$2:$D$10001,2,FALSE)) ->  | G171: =IF(E171="","", VLOOKUP(INDEX(SchiffstypenID, MATCH(Berechnung!A171,Schiffstypen!$B$2:$B$4,0))&"_"&INDEX(FahrttypenID, MATCH(Berechnung!B171,Fahrttypen!$B$2:$B$5,0)),Energieverbrauch_Kennzahlen!$C$2:$D$10,2,FALSE)) ->  | I171: =IF(H171="","",H171/Treibhausgas_Kennzahlen!$B$5) ->  | J171: =IF(H171="","",H171*Treibhausgas_Kennzahlen!B$9) ->  | K171: =IF(H171="","",H171*Treibhausgas_Kennzahlen!C$9) ->  | L171: =IF(H171="","",H171*Treibhausgas_Kennzahlen!D$9) ->  | M171: =IF(H171="","",H171*Treibhausgas_Kennzahlen!E$9) ->  | N171: =IF(H171="","",H171*Treibhausgas_Kennzahlen!F$9) ->  | O171: =IF(H171="","",H171*Treibhausgas_Kennzahlen!G$9) -> 
F172: =IF(E172="","",VLOOKUP(INDEX(Binnenhäfen!$A$2:$A$501, MATCH(Berechnung!C172,Binnenhäfen!$B$2:$B$501,0))&"_"&INDEX(Binnenhäfen!$A$2:$A$501, MATCH(Berechnung!D172,Binnenhäfen!$B$2:$B$501,0)),Entfernung_Binnenhäfen!$C$2:$D$10001,2,FALSE)) ->  | G172: =IF(E172="","", VLOOKUP(INDEX(SchiffstypenID, MATCH(Berechnung!A172,Schiffstypen!$B$2:$B$4,0))&"_"&INDEX(FahrttypenID, MATCH(Berechnung!B172,Fahrttypen!$B$2:$B$5,0)),Energieverbrauch_Kennzahlen!$C$2:$D$10,2,FALSE)) ->  | I172: =IF(H172="","",H172/Treibhausgas_Kennzahlen!$B$5) ->  | J172: =IF(H172="","",H172*Treibhausgas_Kennzahlen!B$9) ->  | K172: =IF(H172="","",H172*Treibhausgas_Kennzahlen!C$9) ->  | L172: =IF(H172="","",H172*Treibhausgas_Kennzahlen!D$9) ->  | M172: =IF(H172="","",H172*Treibhausgas_Kennzahlen!E$9) ->  | N172: =IF(H172="","",H172*Treibhausgas_Kennzahlen!F$9) ->  | O172: =IF(H172="","",H172*Treibhausgas_Kennzahlen!G$9) -> 
F173: =IF(E173="","",VLOOKUP(INDEX(Binnenhäfen!$A$2:$A$501, MATCH(Berechnung!C173,Binnenhäfen!$B$2:$B$501,0))&"_"&INDEX(Binnenhäfen!$A$2:$A$501, MATCH(Berechnung!D173,Binnenhäfen!$B$2:$B$501,0)),Entfernung_Binnenhäfen!$C$2:$D$10001,2,FALSE)) ->  | G173: =IF(E173="","", VLOOKUP(INDEX(SchiffstypenID, MATCH(Berechnung!A173,Schiffstypen!$B$2:$B$4,0))&"_"&INDEX(FahrttypenID, MATCH(Berechnung!B173,Fahrttypen!$B$2:$B$5,0)),Energieverbrauch_Kennzahlen!$C$2:$D$10,2,FALSE)) ->  | I173: =IF(H173="","",H173/Treibhausgas_Kennzahlen!$B$5) ->  | J173: =IF(H173="","",H173*Treibhausgas_Kennzahlen!B$9) ->  | K173: =IF(H173="","",H173*Treibhausgas_Kennzahlen!C$9) ->  | L173: =IF(H173="","",H173*Treibhausgas_Kennzahlen!D$9) ->  | M173: =IF(H173="","",H173*Treibhausgas_Kennzahlen!E$9) ->  | N173: =IF(H173="","",H173*Treibhausgas_Kennzahlen!F$9) ->  | O173: =IF(H173="","",H173*Treibhausgas_Kennzahlen!G$9) -> 
F174: =IF(E174="","",VLOOKUP(INDEX(Binnenhäfen!$A$2:$A$501, MATCH(Berechnung!C174,Binnenhäfen!$B$2:$B$501,0))&"_"&INDEX(Binnenhäfen!$A$2:$A$501, MATCH(Berechnung!D174,Binnenhäfen!$B$2:$B$501,0)),Entfernung_Binnenhäfen!$C$2:$D$10001,2,FALSE)) ->  | G174: =IF(E174="","", VLOOKUP(INDEX(SchiffstypenID, MATCH(Berechnung!A174,Schiffstypen!$B$2:$B$4,0))&"_"&INDEX(FahrttypenID, MATCH(Berechnung!B174,Fahrttypen!$B$2:$B$5,0)),Energieverbrauch_Kennzahlen!$C$2:$D$10,2,FALSE)) ->  | I174: =IF(H174="","",H174/Treibhausgas_Kennzahlen!$B$5) ->  | J174: =IF(H174="","",H174*Treibhausgas_Kennzahlen!B$9) ->  | K174: =IF(H174="","",H174*Treibhausgas_Kennzahlen!C$9) ->  | L174: =IF(H174="","",H174*Treibhausgas_Kennzahlen!D$9) ->  | M174: =IF(H174="","",H174*Treibhausgas_Kennzahlen!E$9) ->  | N174: =IF(H174="","",H174*Treibhausgas_Kennzahlen!F$9) ->  | O174: =IF(H174="","",H174*Treibhausgas_Kennzahlen!G$9) -> 
F175: =IF(E175="","",VLOOKUP(INDEX(Binnenhäfen!$A$2:$A$501, MATCH(Berechnung!C175,Binnenhäfen!$B$2:$B$501,0))&"_"&INDEX(Binnenhäfen!$A$2:$A$501, MATCH(Berechnung!D175,Binnenhäfen!$B$2:$B$501,0)),Entfernung_Binnenhäfen!$C$2:$D$10001,2,FALSE)) ->  | G175: =IF(E175="","", VLOOKUP(INDEX(SchiffstypenID, MATCH(Berechnung!A175,Schiffstypen!$B$2:$B$4,0))&"_"&INDEX(FahrttypenID, MATCH(Berechnung!B175,Fahrttypen!$B$2:$B$5,0)),Energieverbrauch_Kennzahlen!$C$2:$D$10,2,FALSE)) ->  | I175: =IF(H175="","",H175/Treibhausgas_Kennzahlen!$B$5) ->  | J175: =IF(H175="","",H175*Treibhausgas_Kennzahlen!B$9) ->  | K175: =IF(H175="","",H175*Treibhausgas_Kennzahlen!C$9) ->  | L175: =IF(H175="","",H175*Treibhausgas_Kennzahlen!D$9) ->  | M175: =IF(H175="","",H175*Treibhausgas_Kennzahlen!E$9) ->  | N175: =IF(H175="","",H175*Treibhausgas_Kennzahlen!F$9) ->  | O175: =IF(H175="","",H175*Treibhausgas_Kennzahlen!G$9) -> 
F176: =IF(E176="","",VLOOKUP(INDEX(Binnenhäfen!$A$2:$A$501, MATCH(Berechnung!C176,Binnenhäfen!$B$2:$B$501,0))&"_"&INDEX(Binnenhäfen!$A$2:$A$501, MATCH(Berechnung!D176,Binnenhäfen!$B$2:$B$501,0)),Entfernung_Binnenhäfen!$C$2:$D$10001,2,FALSE)) ->  | G176: =IF(E176="","", VLOOKUP(INDEX(SchiffstypenID, MATCH(Berechnung!A176,Schiffstypen!$B$2:$B$4,0))&"_"&INDEX(FahrttypenID, MATCH(Berechnung!B176,Fahrttypen!$B$2:$B$5,0)),Energieverbrauch_Kennzahlen!$C$2:$D$10,2,FALSE)) ->  | I176: =IF(H176="","",H176/Treibhausgas_Kennzahlen!$B$5) ->  | J176: =IF(H176="","",H176*Treibhausgas_Kennzahlen!B$9) ->  | K176: =IF(H176="","",H176*Treibhausgas_Kennzahlen!C$9) ->  | L176: =IF(H176="","",H176*Treibhausgas_Kennzahlen!D$9) ->  | M176: =IF(H176="","",H176*Treibhausgas_Kennzahlen!E$9) ->  | N176: =IF(H176="","",H176*Treibhausgas_Kennzahlen!F$9) ->  | O176: =IF(H176="","",H176*Treibhausgas_Kennzahlen!G$9) -> 
F177: =IF(E177="","",VLOOKUP(INDEX(Binnenhäfen!$A$2:$A$501, MATCH(Berechnung!C177,Binnenhäfen!$B$2:$B$501,0))&"_"&INDEX(Binnenhäfen!$A$2:$A$501, MATCH(Berechnung!D177,Binnenhäfen!$B$2:$B$501,0)),Entfernung_Binnenhäfen!$C$2:$D$10001,2,FALSE)) ->  | G177: =IF(E177="","", VLOOKUP(INDEX(SchiffstypenID, MATCH(Berechnung!A177,Schiffstypen!$B$2:$B$4,0))&"_"&INDEX(FahrttypenID, MATCH(Berechnung!B177,Fahrttypen!$B$2:$B$5,0)),Energieverbrauch_Kennzahlen!$C$2:$D$10,2,FALSE)) ->  | I177: =IF(H177="","",H177/Treibhausgas_Kennzahlen!$B$5) ->  | J177: =IF(H177="","",H177*Treibhausgas_Kennzahlen!B$9) ->  | K177: =IF(H177="","",H177*Treibhausgas_Kennzahlen!C$9) ->  | L177: =IF(H177="","",H177*Treibhausgas_Kennzahlen!D$9) ->  | M177: =IF(H177="","",H177*Treibhausgas_Kennzahlen!E$9) ->  | N177: =IF(H177="","",H177*Treibhausgas_Kennzahlen!F$9) ->  | O177: =IF(H177="","",H177*Treibhausgas_Kennzahlen!G$9) -> 
F178: =IF(E178="","",VLOOKUP(INDEX(Binnenhäfen!$A$2:$A$501, MATCH(Berechnung!C178,Binnenhäfen!$B$2:$B$501,0))&"_"&INDEX(Binnenhäfen!$A$2:$A$501, MATCH(Berechnung!D178,Binnenhäfen!$B$2:$B$501,0)),Entfernung_Binnenhäfen!$C$2:$D$10001,2,FALSE)) ->  | G178: =IF(E178="","", VLOOKUP(INDEX(SchiffstypenID, MATCH(Berechnung!A178,Schiffstypen!$B$2:$B$4,0))&"_"&INDEX(FahrttypenID, MATCH(Berechnung!B178,Fahrttypen!$B$2:$B$5,0)),Energieverbrauch_Kennzahlen!$C$2:$D$10,2,FALSE)) ->  | I178: =IF(H178="","",H178/Treibhausgas_Kennzahlen!$B$5) ->  | J178: =IF(H178="","",H178*Treibhausgas_Kennzahlen!B$9) ->  | K178: =IF(H178="","",H178*Treibhausgas_Kennzahlen!C$9) ->  | L178: =IF(H178="","",H178*Treibhausgas_Kennzahlen!D$9) ->  | M178: =IF(H178="","",H178*Treibhausgas_Kennzahlen!E$9) ->  | N178: =IF(H178="","",H178*Treibhausgas_Kennzahlen!F$9) ->  | O178: =IF(H178="","",H178*Treibhausgas_Kennzahlen!G$9) -> 
F179: =IF(E179="","",VLOOKUP(INDEX(Binnenhäfen!$A$2:$A$501, MATCH(Berechnung!C179,Binnenhäfen!$B$2:$B$501,0))&"_"&INDEX(Binnenhäfen!$A$2:$A$501, MATCH(Berechnung!D179,Binnenhäfen!$B$2:$B$501,0)),Entfernung_Binnenhäfen!$C$2:$D$10001,2,FALSE)) ->  | G179: =IF(E179="","", VLOOKUP(INDEX(SchiffstypenID, MATCH(Berechnung!A179,Schiffstypen!$B$2:$B$4,0))&"_"&INDEX(FahrttypenID, MATCH(Berechnung!B179,Fahrttypen!$B$2:$B$5,0)),Energieverbrauch_Kennzahlen!$C$2:$D$10,2,FALSE)) ->  | I179: =IF(H179="","",H179/Treibhausgas_Kennzahlen!$B$5) ->  | J179: =IF(H179="","",H179*Treibhausgas_Kennzahlen!B$9) ->  | K179: =IF(H179="","",H179*Treibhausgas_Kennzahlen!C$9) ->  | L179: =IF(H179="","",H179*Treibhausgas_Kennzahlen!D$9) ->  | M179: =IF(H179="","",H179*Treibhausgas_Kennzahlen!E$9) ->  | N179: =IF(H179="","",H179*Treibhausgas_Kennzahlen!F$9) ->  | O179: =IF(H179="","",H179*Treibhausgas_Kennzahlen!G$9) -> 
F180: =IF(E180="","",VLOOKUP(INDEX(Binnenhäfen!$A$2:$A$501, MATCH(Berechnung!C180,Binnenhäfen!$B$2:$B$501,0))&"_"&INDEX(Binnenhäfen!$A$2:$A$501, MATCH(Berechnung!D180,Binnenhäfen!$B$2:$B$501,0)),Entfernung_Binnenhäfen!$C$2:$D$10001,2,FALSE)) ->  | G180: =IF(E180="","", VLOOKUP(INDEX(SchiffstypenID, MATCH(Berechnung!A180,Schiffstypen!$B$2:$B$4,0))&"_"&INDEX(FahrttypenID, MATCH(Berechnung!B180,Fahrttypen!$B$2:$B$5,0)),Energieverbrauch_Kennzahlen!$C$2:$D$10,2,FALSE)) ->  | I180: =IF(H180="","",H180/Treibhausgas_Kennzahlen!$B$5) ->  | J180: =IF(H180="","",H180*Treibhausgas_Kennzahlen!B$9) ->  | K180: =IF(H180="","",H180*Treibhausgas_Kennzahlen!C$9) ->  | L180: =IF(H180="","",H180*Treibhausgas_Kennzahlen!D$9) ->  | M180: =IF(H180="","",H180*Treibhausgas_Kennzahlen!E$9) ->  | N180: =IF(H180="","",H180*Treibhausgas_Kennzahlen!F$9) ->  | O180: =IF(H180="","",H180*Treibhausgas_Kennzahlen!G$9) -> 
F181: =IF(E181="","",VLOOKUP(INDEX(Binnenhäfen!$A$2:$A$501, MATCH(Berechnung!C181,Binnenhäfen!$B$2:$B$501,0))&"_"&INDEX(Binnenhäfen!$A$2:$A$501, MATCH(Berechnung!D181,Binnenhäfen!$B$2:$B$501,0)),Entfernung_Binnenhäfen!$C$2:$D$10001,2,FALSE)) ->  | G181: =IF(E181="","", VLOOKUP(INDEX(SchiffstypenID, MATCH(Berechnung!A181,Schiffstypen!$B$2:$B$4,0))&"_"&INDEX(FahrttypenID, MATCH(Berechnung!B181,Fahrttypen!$B$2:$B$5,0)),Energieverbrauch_Kennzahlen!$C$2:$D$10,2,FALSE)) ->  | I181: =IF(H181="","",H181/Treibhausgas_Kennzahlen!$B$5) ->  | J181: =IF(H181="","",H181*Treibhausgas_Kennzahlen!B$9) ->  | K181: =IF(H181="","",H181*Treibhausgas_Kennzahlen!C$9) ->  | L181: =IF(H181="","",H181*Treibhausgas_Kennzahlen!D$9) ->  | M181: =IF(H181="","",H181*Treibhausgas_Kennzahlen!E$9) ->  | N181: =IF(H181="","",H181*Treibhausgas_Kennzahlen!F$9) ->  | O181: =IF(H181="","",H181*Treibhausgas_Kennzahlen!G$9) -> 
F182: =IF(E182="","",VLOOKUP(INDEX(Binnenhäfen!$A$2:$A$501, MATCH(Berechnung!C182,Binnenhäfen!$B$2:$B$501,0))&"_"&INDEX(Binnenhäfen!$A$2:$A$501, MATCH(Berechnung!D182,Binnenhäfen!$B$2:$B$501,0)),Entfernung_Binnenhäfen!$C$2:$D$10001,2,FALSE)) ->  | G182: =IF(E182="","", VLOOKUP(INDEX(SchiffstypenID, MATCH(Berechnung!A182,Schiffstypen!$B$2:$B$4,0))&"_"&INDEX(FahrttypenID, MATCH(Berechnung!B182,Fahrttypen!$B$2:$B$5,0)),Energieverbrauch_Kennzahlen!$C$2:$D$10,2,FALSE)) ->  | I182: =IF(H182="","",H182/Treibhausgas_Kennzahlen!$B$5) ->  | J182: =IF(H182="","",H182*Treibhausgas_Kennzahlen!B$9) ->  | K182: =IF(H182="","",H182*Treibhausgas_Kennzahlen!C$9) ->  | L182: =IF(H182="","",H182*Treibhausgas_Kennzahlen!D$9) ->  | M182: =IF(H182="","",H182*Treibhausgas_Kennzahlen!E$9) ->  | N182: =IF(H182="","",H182*Treibhausgas_Kennzahlen!F$9) ->  | O182: =IF(H182="","",H182*Treibhausgas_Kennzahlen!G$9) -> 
F183: =IF(E183="","",VLOOKUP(INDEX(Binnenhäfen!$A$2:$A$501, MATCH(Berechnung!C183,Binnenhäfen!$B$2:$B$501,0))&"_"&INDEX(Binnenhäfen!$A$2:$A$501, MATCH(Berechnung!D183,Binnenhäfen!$B$2:$B$501,0)),Entfernung_Binnenhäfen!$C$2:$D$10001,2,FALSE)) ->  | G183: =IF(E183="","", VLOOKUP(INDEX(SchiffstypenID, MATCH(Berechnung!A183,Schiffstypen!$B$2:$B$4,0))&"_"&INDEX(FahrttypenID, MATCH(Berechnung!B183,Fahrttypen!$B$2:$B$5,0)),Energieverbrauch_Kennzahlen!$C$2:$D$10,2,FALSE)) ->  | I183: =IF(H183="","",H183/Treibhausgas_Kennzahlen!$B$5) ->  | J183: =IF(H183="","",H183*Treibhausgas_Kennzahlen!B$9) ->  | K183: =IF(H183="","",H183*Treibhausgas_Kennzahlen!C$9) ->  | L183: =IF(H183="","",H183*Treibhausgas_Kennzahlen!D$9) ->  | M183: =IF(H183="","",H183*Treibhausgas_Kennzahlen!E$9) ->  | N183: =IF(H183="","",H183*Treibhausgas_Kennzahlen!F$9) ->  | O183: =IF(H183="","",H183*Treibhausgas_Kennzahlen!G$9) -> 
F184: =IF(E184="","",VLOOKUP(INDEX(Binnenhäfen!$A$2:$A$501, MATCH(Berechnung!C184,Binnenhäfen!$B$2:$B$501,0))&"_"&INDEX(Binnenhäfen!$A$2:$A$501, MATCH(Berechnung!D184,Binnenhäfen!$B$2:$B$501,0)),Entfernung_Binnenhäfen!$C$2:$D$10001,2,FALSE)) ->  | G184: =IF(E184="","", VLOOKUP(INDEX(SchiffstypenID, MATCH(Berechnung!A184,Schiffstypen!$B$2:$B$4,0))&"_"&INDEX(FahrttypenID, MATCH(Berechnung!B184,Fahrttypen!$B$2:$B$5,0)),Energieverbrauch_Kennzahlen!$C$2:$D$10,2,FALSE)) ->  | I184: =IF(H184="","",H184/Treibhausgas_Kennzahlen!$B$5) ->  | J184: =IF(H184="","",H184*Treibhausgas_Kennzahlen!B$9) ->  | K184: =IF(H184="","",H184*Treibhausgas_Kennzahlen!C$9) ->  | L184: =IF(H184="","",H184*Treibhausgas_Kennzahlen!D$9) ->  | M184: =IF(H184="","",H184*Treibhausgas_Kennzahlen!E$9) ->  | N184: =IF(H184="","",H184*Treibhausgas_Kennzahlen!F$9) ->  | O184: =IF(H184="","",H184*Treibhausgas_Kennzahlen!G$9) -> 
F185: =IF(E185="","",VLOOKUP(INDEX(Binnenhäfen!$A$2:$A$501, MATCH(Berechnung!C185,Binnenhäfen!$B$2:$B$501,0))&"_"&INDEX(Binnenhäfen!$A$2:$A$501, MATCH(Berechnung!D185,Binnenhäfen!$B$2:$B$501,0)),Entfernung_Binnenhäfen!$C$2:$D$10001,2,FALSE)) ->  | G185: =IF(E185="","", VLOOKUP(INDEX(SchiffstypenID, MATCH(Berechnung!A185,Schiffstypen!$B$2:$B$4,0))&"_"&INDEX(FahrttypenID, MATCH(Berechnung!B185,Fahrttypen!$B$2:$B$5,0)),Energieverbrauch_Kennzahlen!$C$2:$D$10,2,FALSE)) ->  | I185: =IF(H185="","",H185/Treibhausgas_Kennzahlen!$B$5) ->  | J185: =IF(H185="","",H185*Treibhausgas_Kennzahlen!B$9) ->  | K185: =IF(H185="","",H185*Treibhausgas_Kennzahlen!C$9) ->  | L185: =IF(H185="","",H185*Treibhausgas_Kennzahlen!D$9) ->  | M185: =IF(H185="","",H185*Treibhausgas_Kennzahlen!E$9) ->  | N185: =IF(H185="","",H185*Treibhausgas_Kennzahlen!F$9) ->  | O185: =IF(H185="","",H185*Treibhausgas_Kennzahlen!G$9) -> 
F186: =IF(E186="","",VLOOKUP(INDEX(Binnenhäfen!$A$2:$A$501, MATCH(Berechnung!C186,Binnenhäfen!$B$2:$B$501,0))&"_"&INDEX(Binnenhäfen!$A$2:$A$501, MATCH(Berechnung!D186,Binnenhäfen!$B$2:$B$501,0)),Entfernung_Binnenhäfen!$C$2:$D$10001,2,FALSE)) ->  | G186: =IF(E186="","", VLOOKUP(INDEX(SchiffstypenID, MATCH(Berechnung!A186,Schiffstypen!$B$2:$B$4,0))&"_"&INDEX(FahrttypenID, MATCH(Berechnung!B186,Fahrttypen!$B$2:$B$5,0)),Energieverbrauch_Kennzahlen!$C$2:$D$10,2,FALSE)) ->  | I186: =IF(H186="","",H186/Treibhausgas_Kennzahlen!$B$5) ->  | J186: =IF(H186="","",H186*Treibhausgas_Kennzahlen!B$9) ->  | K186: =IF(H186="","",H186*Treibhausgas_Kennzahlen!C$9) ->  | L186: =IF(H186="","",H186*Treibhausgas_Kennzahlen!D$9) ->  | M186: =IF(H186="","",H186*Treibhausgas_Kennzahlen!E$9) ->  | N186: =IF(H186="","",H186*Treibhausgas_Kennzahlen!F$9) ->  | O186: =IF(H186="","",H186*Treibhausgas_Kennzahlen!G$9) -> 
F187: =IF(E187="","",VLOOKUP(INDEX(Binnenhäfen!$A$2:$A$501, MATCH(Berechnung!C187,Binnenhäfen!$B$2:$B$501,0))&"_"&INDEX(Binnenhäfen!$A$2:$A$501, MATCH(Berechnung!D187,Binnenhäfen!$B$2:$B$501,0)),Entfernung_Binnenhäfen!$C$2:$D$10001,2,FALSE)) ->  | G187: =IF(E187="","", VLOOKUP(INDEX(SchiffstypenID, MATCH(Berechnung!A187,Schiffstypen!$B$2:$B$4,0))&"_"&INDEX(FahrttypenID, MATCH(Berechnung!B187,Fahrttypen!$B$2:$B$5,0)),Energieverbrauch_Kennzahlen!$C$2:$D$10,2,FALSE)) ->  | I187: =IF(H187="","",H187/Treibhausgas_Kennzahlen!$B$5) ->  | J187: =IF(H187="","",H187*Treibhausgas_Kennzahlen!B$9) ->  | K187: =IF(H187="","",H187*Treibhausgas_Kennzahlen!C$9) ->  | L187: =IF(H187="","",H187*Treibhausgas_Kennzahlen!D$9) ->  | M187: =IF(H187="","",H187*Treibhausgas_Kennzahlen!E$9) ->  | N187: =IF(H187="","",H187*Treibhausgas_Kennzahlen!F$9) ->  | O187: =IF(H187="","",H187*Treibhausgas_Kennzahlen!G$9) -> 
F188: =IF(E188="","",VLOOKUP(INDEX(Binnenhäfen!$A$2:$A$501, MATCH(Berechnung!C188,Binnenhäfen!$B$2:$B$501,0))&"_"&INDEX(Binnenhäfen!$A$2:$A$501, MATCH(Berechnung!D188,Binnenhäfen!$B$2:$B$501,0)),Entfernung_Binnenhäfen!$C$2:$D$10001,2,FALSE)) ->  | G188: =IF(E188="","", VLOOKUP(INDEX(SchiffstypenID, MATCH(Berechnung!A188,Schiffstypen!$B$2:$B$4,0))&"_"&INDEX(FahrttypenID, MATCH(Berechnung!B188,Fahrttypen!$B$2:$B$5,0)),Energieverbrauch_Kennzahlen!$C$2:$D$10,2,FALSE)) ->  | I188: =IF(H188="","",H188/Treibhausgas_Kennzahlen!$B$5) ->  | J188: =IF(H188="","",H188*Treibhausgas_Kennzahlen!B$9) ->  | K188: =IF(H188="","",H188*Treibhausgas_Kennzahlen!C$9) ->  | L188: =IF(H188="","",H188*Treibhausgas_Kennzahlen!D$9) ->  | M188: =IF(H188="","",H188*Treibhausgas_Kennzahlen!E$9) ->  | N188: =IF(H188="","",H188*Treibhausgas_Kennzahlen!F$9) ->  | O188: =IF(H188="","",H188*Treibhausgas_Kennzahlen!G$9) -> 
F189: =IF(E189="","",VLOOKUP(INDEX(Binnenhäfen!$A$2:$A$501, MATCH(Berechnung!C189,Binnenhäfen!$B$2:$B$501,0))&"_"&INDEX(Binnenhäfen!$A$2:$A$501, MATCH(Berechnung!D189,Binnenhäfen!$B$2:$B$501,0)),Entfernung_Binnenhäfen!$C$2:$D$10001,2,FALSE)) ->  | G189: =IF(E189="","", VLOOKUP(INDEX(SchiffstypenID, MATCH(Berechnung!A189,Schiffstypen!$B$2:$B$4,0))&"_"&INDEX(FahrttypenID, MATCH(Berechnung!B189,Fahrttypen!$B$2:$B$5,0)),Energieverbrauch_Kennzahlen!$C$2:$D$10,2,FALSE)) ->  | I189: =IF(H189="","",H189/Treibhausgas_Kennzahlen!$B$5) ->  | J189: =IF(H189="","",H189*Treibhausgas_Kennzahlen!B$9) ->  | K189: =IF(H189="","",H189*Treibhausgas_Kennzahlen!C$9) ->  | L189: =IF(H189="","",H189*Treibhausgas_Kennzahlen!D$9) ->  | M189: =IF(H189="","",H189*Treibhausgas_Kennzahlen!E$9) ->  | N189: =IF(H189="","",H189*Treibhausgas_Kennzahlen!F$9) ->  | O189: =IF(H189="","",H189*Treibhausgas_Kennzahlen!G$9) -> 
F190: =IF(E190="","",VLOOKUP(INDEX(Binnenhäfen!$A$2:$A$501, MATCH(Berechnung!C190,Binnenhäfen!$B$2:$B$501,0))&"_"&INDEX(Binnenhäfen!$A$2:$A$501, MATCH(Berechnung!D190,Binnenhäfen!$B$2:$B$501,0)),Entfernung_Binnenhäfen!$C$2:$D$10001,2,FALSE)) ->  | G190: =IF(E190="","", VLOOKUP(INDEX(SchiffstypenID, MATCH(Berechnung!A190,Schiffstypen!$B$2:$B$4,0))&"_"&INDEX(FahrttypenID, MATCH(Berechnung!B190,Fahrttypen!$B$2:$B$5,0)),Energieverbrauch_Kennzahlen!$C$2:$D$10,2,FALSE)) ->  | I190: =IF(H190="","",H190/Treibhausgas_Kennzahlen!$B$5) ->  | J190: =IF(H190="","",H190*Treibhausgas_Kennzahlen!B$9) ->  | K190: =IF(H190="","",H190*Treibhausgas_Kennzahlen!C$9) ->  | L190: =IF(H190="","",H190*Treibhausgas_Kennzahlen!D$9) ->  | M190: =IF(H190="","",H190*Treibhausgas_Kennzahlen!E$9) ->  | N190: =IF(H190="","",H190*Treibhausgas_Kennzahlen!F$9) ->  | O190: =IF(H190="","",H190*Treibhausgas_Kennzahlen!G$9) -> 
F191: =IF(E191="","",VLOOKUP(INDEX(Binnenhäfen!$A$2:$A$501, MATCH(Berechnung!C191,Binnenhäfen!$B$2:$B$501,0))&"_"&INDEX(Binnenhäfen!$A$2:$A$501, MATCH(Berechnung!D191,Binnenhäfen!$B$2:$B$501,0)),Entfernung_Binnenhäfen!$C$2:$D$10001,2,FALSE)) ->  | G191: =IF(E191="","", VLOOKUP(INDEX(SchiffstypenID, MATCH(Berechnung!A191,Schiffstypen!$B$2:$B$4,0))&"_"&INDEX(FahrttypenID, MATCH(Berechnung!B191,Fahrttypen!$B$2:$B$5,0)),Energieverbrauch_Kennzahlen!$C$2:$D$10,2,FALSE)) ->  | I191: =IF(H191="","",H191/Treibhausgas_Kennzahlen!$B$5) ->  | J191: =IF(H191="","",H191*Treibhausgas_Kennzahlen!B$9) ->  | K191: =IF(H191="","",H191*Treibhausgas_Kennzahlen!C$9) ->  | L191: =IF(H191="","",H191*Treibhausgas_Kennzahlen!D$9) ->  | M191: =IF(H191="","",H191*Treibhausgas_Kennzahlen!E$9) ->  | N191: =IF(H191="","",H191*Treibhausgas_Kennzahlen!F$9) ->  | O191: =IF(H191="","",H191*Treibhausgas_Kennzahlen!G$9) -> 
F192: =IF(E192="","",VLOOKUP(INDEX(Binnenhäfen!$A$2:$A$501, MATCH(Berechnung!C192,Binnenhäfen!$B$2:$B$501,0))&"_"&INDEX(Binnenhäfen!$A$2:$A$501, MATCH(Berechnung!D192,Binnenhäfen!$B$2:$B$501,0)),Entfernung_Binnenhäfen!$C$2:$D$10001,2,FALSE)) ->  | G192: =IF(E192="","", VLOOKUP(INDEX(SchiffstypenID, MATCH(Berechnung!A192,Schiffstypen!$B$2:$B$4,0))&"_"&INDEX(FahrttypenID, MATCH(Berechnung!B192,Fahrttypen!$B$2:$B$5,0)),Energieverbrauch_Kennzahlen!$C$2:$D$10,2,FALSE)) ->  | I192: =IF(H192="","",H192/Treibhausgas_Kennzahlen!$B$5) ->  | J192: =IF(H192="","",H192*Treibhausgas_Kennzahlen!B$9) ->  | K192: =IF(H192="","",H192*Treibhausgas_Kennzahlen!C$9) ->  | L192: =IF(H192="","",H192*Treibhausgas_Kennzahlen!D$9) ->  | M192: =IF(H192="","",H192*Treibhausgas_Kennzahlen!E$9) ->  | N192: =IF(H192="","",H192*Treibhausgas_Kennzahlen!F$9) ->  | O192: =IF(H192="","",H192*Treibhausgas_Kennzahlen!G$9) -> 
F193: =IF(E193="","",VLOOKUP(INDEX(Binnenhäfen!$A$2:$A$501, MATCH(Berechnung!C193,Binnenhäfen!$B$2:$B$501,0))&"_"&INDEX(Binnenhäfen!$A$2:$A$501, MATCH(Berechnung!D193,Binnenhäfen!$B$2:$B$501,0)),Entfernung_Binnenhäfen!$C$2:$D$10001,2,FALSE)) ->  | G193: =IF(E193="","", VLOOKUP(INDEX(SchiffstypenID, MATCH(Berechnung!A193,Schiffstypen!$B$2:$B$4,0))&"_"&INDEX(FahrttypenID, MATCH(Berechnung!B193,Fahrttypen!$B$2:$B$5,0)),Energieverbrauch_Kennzahlen!$C$2:$D$10,2,FALSE)) ->  | I193: =IF(H193="","",H193/Treibhausgas_Kennzahlen!$B$5) ->  | J193: =IF(H193="","",H193*Treibhausgas_Kennzahlen!B$9) ->  | K193: =IF(H193="","",H193*Treibhausgas_Kennzahlen!C$9) ->  | L193: =IF(H193="","",H193*Treibhausgas_Kennzahlen!D$9) ->  | M193: =IF(H193="","",H193*Treibhausgas_Kennzahlen!E$9) ->  | N193: =IF(H193="","",H193*Treibhausgas_Kennzahlen!F$9) ->  | O193: =IF(H193="","",H193*Treibhausgas_Kennzahlen!G$9) -> 
F194: =IF(E194="","",VLOOKUP(INDEX(Binnenhäfen!$A$2:$A$501, MATCH(Berechnung!C194,Binnenhäfen!$B$2:$B$501,0))&"_"&INDEX(Binnenhäfen!$A$2:$A$501, MATCH(Berechnung!D194,Binnenhäfen!$B$2:$B$501,0)),Entfernung_Binnenhäfen!$C$2:$D$10001,2,FALSE)) ->  | G194: =IF(E194="","", VLOOKUP(INDEX(SchiffstypenID, MATCH(Berechnung!A194,Schiffstypen!$B$2:$B$4,0))&"_"&INDEX(FahrttypenID, MATCH(Berechnung!B194,Fahrttypen!$B$2:$B$5,0)),Energieverbrauch_Kennzahlen!$C$2:$D$10,2,FALSE)) ->  | I194: =IF(H194="","",H194/Treibhausgas_Kennzahlen!$B$5) ->  | J194: =IF(H194="","",H194*Treibhausgas_Kennzahlen!B$9) ->  | K194: =IF(H194="","",H194*Treibhausgas_Kennzahlen!C$9) ->  | L194: =IF(H194="","",H194*Treibhausgas_Kennzahlen!D$9) ->  | M194: =IF(H194="","",H194*Treibhausgas_Kennzahlen!E$9) ->  | N194: =IF(H194="","",H194*Treibhausgas_Kennzahlen!F$9) ->  | O194: =IF(H194="","",H194*Treibhausgas_Kennzahlen!G$9) -> 
F195: =IF(E195="","",VLOOKUP(INDEX(Binnenhäfen!$A$2:$A$501, MATCH(Berechnung!C195,Binnenhäfen!$B$2:$B$501,0))&"_"&INDEX(Binnenhäfen!$A$2:$A$501, MATCH(Berechnung!D195,Binnenhäfen!$B$2:$B$501,0)),Entfernung_Binnenhäfen!$C$2:$D$10001,2,FALSE)) ->  | G195: =IF(E195="","", VLOOKUP(INDEX(SchiffstypenID, MATCH(Berechnung!A195,Schiffstypen!$B$2:$B$4,0))&"_"&INDEX(FahrttypenID, MATCH(Berechnung!B195,Fahrttypen!$B$2:$B$5,0)),Energieverbrauch_Kennzahlen!$C$2:$D$10,2,FALSE)) ->  | I195: =IF(H195="","",H195/Treibhausgas_Kennzahlen!$B$5) ->  | J195: =IF(H195="","",H195*Treibhausgas_Kennzahlen!B$9) ->  | K195: =IF(H195="","",H195*Treibhausgas_Kennzahlen!C$9) ->  | L195: =IF(H195="","",H195*Treibhausgas_Kennzahlen!D$9) ->  | M195: =IF(H195="","",H195*Treibhausgas_Kennzahlen!E$9) ->  | N195: =IF(H195="","",H195*Treibhausgas_Kennzahlen!F$9) ->  | O195: =IF(H195="","",H195*Treibhausgas_Kennzahlen!G$9) -> 
F196: =IF(E196="","",VLOOKUP(INDEX(Binnenhäfen!$A$2:$A$501, MATCH(Berechnung!C196,Binnenhäfen!$B$2:$B$501,0))&"_"&INDEX(Binnenhäfen!$A$2:$A$501, MATCH(Berechnung!D196,Binnenhäfen!$B$2:$B$501,0)),Entfernung_Binnenhäfen!$C$2:$D$10001,2,FALSE)) ->  | G196: =IF(E196="","", VLOOKUP(INDEX(SchiffstypenID, MATCH(Berechnung!A196,Schiffstypen!$B$2:$B$4,0))&"_"&INDEX(FahrttypenID, MATCH(Berechnung!B196,Fahrttypen!$B$2:$B$5,0)),Energieverbrauch_Kennzahlen!$C$2:$D$10,2,FALSE)) ->  | I196: =IF(H196="","",H196/Treibhausgas_Kennzahlen!$B$5) ->  | J196: =IF(H196="","",H196*Treibhausgas_Kennzahlen!B$9) ->  | K196: =IF(H196="","",H196*Treibhausgas_Kennzahlen!C$9) ->  | L196: =IF(H196="","",H196*Treibhausgas_Kennzahlen!D$9) ->  | M196: =IF(H196="","",H196*Treibhausgas_Kennzahlen!E$9) ->  | N196: =IF(H196="","",H196*Treibhausgas_Kennzahlen!F$9) ->  | O196: =IF(H196="","",H196*Treibhausgas_Kennzahlen!G$9) -> 
F197: =IF(E197="","",VLOOKUP(INDEX(Binnenhäfen!$A$2:$A$501, MATCH(Berechnung!C197,Binnenhäfen!$B$2:$B$501,0))&"_"&INDEX(Binnenhäfen!$A$2:$A$501, MATCH(Berechnung!D197,Binnenhäfen!$B$2:$B$501,0)),Entfernung_Binnenhäfen!$C$2:$D$10001,2,FALSE)) ->  | G197: =IF(E197="","", VLOOKUP(INDEX(SchiffstypenID, MATCH(Berechnung!A197,Schiffstypen!$B$2:$B$4,0))&"_"&INDEX(FahrttypenID, MATCH(Berechnung!B197,Fahrttypen!$B$2:$B$5,0)),Energieverbrauch_Kennzahlen!$C$2:$D$10,2,FALSE)) ->  | I197: =IF(H197="","",H197/Treibhausgas_Kennzahlen!$B$5) ->  | J197: =IF(H197="","",H197*Treibhausgas_Kennzahlen!B$9) ->  | K197: =IF(H197="","",H197*Treibhausgas_Kennzahlen!C$9) ->  | L197: =IF(H197="","",H197*Treibhausgas_Kennzahlen!D$9) ->  | M197: =IF(H197="","",H197*Treibhausgas_Kennzahlen!E$9) ->  | N197: =IF(H197="","",H197*Treibhausgas_Kennzahlen!F$9) ->  | O197: =IF(H197="","",H197*Treibhausgas_Kennzahlen!G$9) -> 
F198: =IF(E198="","",VLOOKUP(INDEX(Binnenhäfen!$A$2:$A$501, MATCH(Berechnung!C198,Binnenhäfen!$B$2:$B$501,0))&"_"&INDEX(Binnenhäfen!$A$2:$A$501, MATCH(Berechnung!D198,Binnenhäfen!$B$2:$B$501,0)),Entfernung_Binnenhäfen!$C$2:$D$10001,2,FALSE)) ->  | G198: =IF(E198="","", VLOOKUP(INDEX(SchiffstypenID, MATCH(Berechnung!A198,Schiffstypen!$B$2:$B$4,0))&"_"&INDEX(FahrttypenID, MATCH(Berechnung!B198,Fahrttypen!$B$2:$B$5,0)),Energieverbrauch_Kennzahlen!$C$2:$D$10,2,FALSE)) ->  | I198: =IF(H198="","",H198/Treibhausgas_Kennzahlen!$B$5) ->  | J198: =IF(H198="","",H198*Treibhausgas_Kennzahlen!B$9) ->  | K198: =IF(H198="","",H198*Treibhausgas_Kennzahlen!C$9) ->  | L198: =IF(H198="","",H198*Treibhausgas_Kennzahlen!D$9) ->  | M198: =IF(H198="","",H198*Treibhausgas_Kennzahlen!E$9) ->  | N198: =IF(H198="","",H198*Treibhausgas_Kennzahlen!F$9) ->  | O198: =IF(H198="","",H198*Treibhausgas_Kennzahlen!G$9) -> 
F199: =IF(E199="","",VLOOKUP(INDEX(Binnenhäfen!$A$2:$A$501, MATCH(Berechnung!C199,Binnenhäfen!$B$2:$B$501,0))&"_"&INDEX(Binnenhäfen!$A$2:$A$501, MATCH(Berechnung!D199,Binnenhäfen!$B$2:$B$501,0)),Entfernung_Binnenhäfen!$C$2:$D$10001,2,FALSE)) ->  | G199: =IF(E199="","", VLOOKUP(INDEX(SchiffstypenID, MATCH(Berechnung!A199,Schiffstypen!$B$2:$B$4,0))&"_"&INDEX(FahrttypenID, MATCH(Berechnung!B199,Fahrttypen!$B$2:$B$5,0)),Energieverbrauch_Kennzahlen!$C$2:$D$10,2,FALSE)) ->  | H199: =IF(G199="","",PRODUCT(G199,F199,E199)/1000) ->  | I199: =IF(H199="","",H199/Treibhausgas_Kennzahlen!$B$5) ->  | J199: =IF(H199="","",H199*Treibhausgas_Kennzahlen!B$9) ->  | K199: =IF(H199="","",H199*Treibhausgas_Kennzahlen!C$9) ->  | L199: =IF(H199="","",H199*Treibhausgas_Kennzahlen!D$9) ->  | M199: =IF(H199="","",H199*Treibhausgas_Kennzahlen!E$9) ->  | N199: =IF(H199="","",H199*Treibhausgas_Kennzahlen!F$9) ->  | O199: =IF(H199="","",H199*Treibhausgas_Kennzahlen!G$9) -> 
F200: =IF(E200="","",VLOOKUP(INDEX(Binnenhäfen!$A$2:$A$501, MATCH(Berechnung!C200,Binnenhäfen!$B$2:$B$501,0))&"_"&INDEX(Binnenhäfen!$A$2:$A$501, MATCH(Berechnung!D200,Binnenhäfen!$B$2:$B$501,0)),Entfernung_Binnenhäfen!$C$2:$D$10001,2,FALSE)) ->  | G200: =IF(E200="","", VLOOKUP(INDEX(SchiffstypenID, MATCH(Berechnung!A200,Schiffstypen!$B$2:$B$4,0))&"_"&INDEX(FahrttypenID, MATCH(Berechnung!B200,Fahrttypen!$B$2:$B$5,0)),Energieverbrauch_Kennzahlen!$C$2:$D$10,2,FALSE)) ->  | I200: =IF(H200="","",H200/Treibhausgas_Kennzahlen!$B$5) ->  | J200: =IF(H200="","",H200*Treibhausgas_Kennzahlen!B$9) ->  | K200: =IF(H200="","",H200*Treibhausgas_Kennzahlen!C$9) ->  | L200: =IF(H200="","",H200*Treibhausgas_Kennzahlen!D$9) ->  | M200: =IF(H200="","",H200*Treibhausgas_Kennzahlen!E$9) ->  | N200: =IF(H200="","",H200*Treibhausgas_Kennzahlen!F$9) ->  | O200: =IF(H200="","",H200*Treibhausgas_Kennzahlen!G$9) -> 
F201: =IF(E201="","",VLOOKUP(INDEX(Binnenhäfen!$A$2:$A$501, MATCH(Berechnung!C201,Binnenhäfen!$B$2:$B$501,0))&"_"&INDEX(Binnenhäfen!$A$2:$A$501, MATCH(Berechnung!D201,Binnenhäfen!$B$2:$B$501,0)),Entfernung_Binnenhäfen!$C$2:$D$10001,2,FALSE)) ->  | G201: =IF(E201="","", VLOOKUP(INDEX(SchiffstypenID, MATCH(Berechnung!A201,Schiffstypen!$B$2:$B$4,0))&"_"&INDEX(FahrttypenID, MATCH(Berechnung!B201,Fahrttypen!$B$2:$B$5,0)),Energieverbrauch_Kennzahlen!$C$2:$D$10,2,FALSE)) ->  | I201: =IF(H201="","",H201/Treibhausgas_Kennzahlen!$B$5) ->  | J201: =IF(H201="","",H201*Treibhausgas_Kennzahlen!B$9) ->  | K201: =IF(H201="","",H201*Treibhausgas_Kennzahlen!C$9) ->  | L201: =IF(H201="","",H201*Treibhausgas_Kennzahlen!D$9) ->  | M201: =IF(H201="","",H201*Treibhausgas_Kennzahlen!E$9) ->  | N201: =IF(H201="","",H201*Treibhausgas_Kennzahlen!F$9) ->  | O201: =IF(H201="","",H201*Treibhausgas_Kennzahlen!G$9) -> 
F202: =IF(E202="","",VLOOKUP(INDEX(Binnenhäfen!$A$2:$A$501, MATCH(Berechnung!C202,Binnenhäfen!$B$2:$B$501,0))&"_"&INDEX(Binnenhäfen!$A$2:$A$501, MATCH(Berechnung!D202,Binnenhäfen!$B$2:$B$501,0)),Entfernung_Binnenhäfen!$C$2:$D$10001,2,FALSE)) ->  | G202: =IF(E202="","", VLOOKUP(INDEX(SchiffstypenID, MATCH(Berechnung!A202,Schiffstypen!$B$2:$B$4,0))&"_"&INDEX(FahrttypenID, MATCH(Berechnung!B202,Fahrttypen!$B$2:$B$5,0)),Energieverbrauch_Kennzahlen!$C$2:$D$10,2,FALSE)) ->  | I202: =IF(H202="","",H202/Treibhausgas_Kennzahlen!$B$5) ->  | J202: =IF(H202="","",H202*Treibhausgas_Kennzahlen!B$9) ->  | K202: =IF(H202="","",H202*Treibhausgas_Kennzahlen!C$9) ->  | L202: =IF(H202="","",H202*Treibhausgas_Kennzahlen!D$9) ->  | M202: =IF(H202="","",H202*Treibhausgas_Kennzahlen!E$9) ->  | N202: =IF(H202="","",H202*Treibhausgas_Kennzahlen!F$9) ->  | O202: =IF(H202="","",H202*Treibhausgas_Kennzahlen!G$9) -> 
... 1800 more rows

Sheet Energieverbrauch_Kennzahlen
A1: Schiffstyp_ID | B1: Fahrttyp_ID | C1: Schiffstyp_Fahrttyp_ID | D1: Verbrauch [g Diesel/tkm]
A2: 1 | B2: 1 | C2: 1_1 | D2: 16.8
A3: 1 | B3: 2 | C3: 1_2 | D3: 8.3
A4: 1 | B4: 3 | C4: 1_3 | D4: 11.8
A5: 2 | B5: 1 | C5: 2_1 | D5: 7.5
A6: 2 | B6: 2 | C6: 2_2 | D6: 3.9
A7: 2 | B7: 3 | C7: 2_3 | D7: 4.6
A8: 3 | B8: 1 | C8: 3_1 | D8: 5.2
A9: 3 | B9: 2 | C9: 3_2 | D9: 2.7
A10: 3 | B10: 3 | C10: 3_3 | D10: - | E10: (Anmerkung: Schiff zu groß für Kanalfahrt)
A41: Quelle:
A42: Kranke, A.; et al.: CO2-Berechnung in der Logistik. Verlag Heinrich Vogel in der Springer Fachmedien München GmbH, München, 2011

Sheet Treibhausgas_Kennzahlen
B1: Energieverbrauch | D1: CO2-Emissionen | F1: CO2e-Emissionen
B2: TTW [MJ/l] | C2: WTW [MJ/l] | D2: TTW [kg/l] | E2: WTW [kg/l] | F2: TTW [kg CO2e/l] | G2: WTW [kg CO2e/l]
A3: Diesel* | B3: 35.9 | C3: 42.7 | D3: 2.63 | E3: 3.19 | F3: 2.67 | G3: 3.24
A5: Dichte Diesel [kg/l] | B5: 0.832
B7: Energieverbrauch | D7: CO2-Emissionen | F7: CO2e-Emissionen
B8: TTW [MJ/kg] | C8: WTW [MJ/kg] | D8: TTW [kg/kg] | E8: WTW [kg/kg] | F8: TTW [kg CO2e/kg] | G8: WTW [kg CO2e/kg]
A9: Diesel* | B9: 43.1 | C9: 51.3 | D9: 3.16 | E9: 3.84 | F9: 3.21 | G9: 3.9
A11: *Gültigkeit erhalten die Werte ab Dez 2012.
A42: Quelle:
A43: Öko-Insitut e.V. (2012). Umrechnungsfaktoren für Energie, CO2- und Treibhausgasemissionen. Berlin

Sheet Binnenhäfen
A1: ID | B1: Bezeichnung
A2: 1 | B2: Rotterdam
A3: 2 | B3: Nijmegen
A4: 3 | B4: Duisburg
A5: 4 | B5: Leverkusen
A6: 5 | B6: Koblenz
A7: 6 | B7: Mainz
A8: 7 | B8: Würzburg
A9: 8 | B9: Bamberg
A10: 9 | B10: Linz
A11: 10 | B11: Wien
A12: 11 | B12: Basel
A13: 12
A14: 13
A15: 14
A16: 15
A17: 16
A18: 17
A19: 18
A20: 19
A21: 20
A22: 21
A23: 22
A24: 23
A25: 24
A26: 25
A27: 26
A28: 27
A29: 28
A30: 29
A31: 30
A32: 31
A33: 32
A34: 33
A35: 34
A36: 35
A37: 36
A38: 37
A39: 38
A40: 39
A41: 40
A42: 41
A43: 42
A44: 43
A45: 44
A46: 45
A47: 46
A48: 47
A49: 48
A50: 49
A51: 50
A52: 51
A53: 52
A54: 53
A55: 54
A56: 55
A57: 56
A58: 57
A59: 58
A60: 59
A61: 60
A62: 61
A63: 62
A64: 63
A65: 64
A66: 65
A67: 66
A68: 67
A69: 68
A70: 69
A71: 70
A72: 71
A73: 72
A74: 73
A75: 74
A76: 75
A77: 76
A78: 77
A79: 78
A80: 79
A81: 80
A82: 81
A83: 82
A84: 83
A85: 84
A86: 85
A87: 86
A88: 87
A89: 88
A90: 89
A91: 90
A92: 91
A93: 92
A94: 93
A95: 94
A96: 95
A97: 96
A98: 97
A99: 98
A100: 99
A101: 100
A102: 101
A103: 102
A104: 103
A105: 104
A106: 105
A107: 106
A108: 107
A109: 108
A110: 109
A111: 110
A112: 111
A113: 112
A114: 113
A115: 114
A116: 115
A117: 116
A118: 117
A119: 118
A120: 119
A121: 120
A122: 121
A123: 122
A124: 123
A125: 124
A126: 125
A127: 126
A128: 127
A129: 128
A130: 129
A131: 130
A132: 131
A133: 132
A134: 133
A135: 134
A136: 135
A137: 136
A138: 137
A139: 138
A140: 139
A141: 140
A142: 141
A143: 142
A144: 143
A145: 144
A146: 145
A147: 146
A148: 147
A149: 148
A150: 149
A151: 150
A152: 151
A153: 152
A154: 153
A155: 154
A156: 155
A157: 156
A158: 157
A159: 158
A160: 159
A161: 160
A162: 161
A163: 162
A164: 163
A165: 164
A166: 165
A167: 166
A168: 167
A169: 168
A170: 169
A171: 170
A172: 171
A173: 172
A174: 173
A175: 174
A176: 175
A177: 176
A178: 177
A179: 178
A180: 179
A181: 180
A182: 181
A183: 182
A184: 183
A185: 184
A186: 185
A187: 186
A188: 187
A189: 188
A190: 189
A191: 190
A192: 191
A193: 192
A194: 193
A195: 194
A196: 195
A197: 196
A198: 197
A199: 198
A200: 199
... 301 more rows

Sheet Entfernung_Binnenhäfen
A1: Start_ID | B1: Ziel_ID | C1: Start_Ziel_ID | D1: Entfernung [km]
A2: 1 | B2: 2 | C2: =INDIRECT("A"&ROW())&"_"&INDIRECT("B"&ROW()) -> 1_2 | D2: 112
A3: 1 | B3: 3 | C3: =INDIRECT("A"&ROW())&"_"&INDIRECT("B"&ROW()) -> 1_3 | D3: 225
A4: 1 | B4: 4 | C4: 1_4 | D4: 285
A5: 1 | B5: 5 | C5: 1_5 | D5: 397
A6: 1 | B6: 6 | C6: 1_6 | D6: 503
A7: 1 | B7: 7 | C7: 1_7 | D7: 738
A8: 1 | B8: 8 | C8: 1_8 | D8: 890
A9: 1 | B9: 9 | C9: 1_9 | D9: 1343
A10: 1 | B10: 10 | C10: 1_10 | D10: 1538
A11: 1 | B11: 11 | C11: 1_11 | D11: 816
A12: 2 | B12: 1 | C12: 2_1 | D12: 112
A13: 2 | B13: 3 | C13: 2_3 | D13: 101
A14: 2 | B14: 4 | C14: 2_4 | D14: 173
A15: 2 | B15: 5 | C15: 2_5 | D15: 285
A16: 2 | B16: 6 | C16: 2_6 | D16: 374
A17: 2 | B17: 7 | C17: 2_7 | D17: 626
A18: 2 | B18: 8 | C18: 2_8 | D18: 760
A19: 2 | B19: 9 | C19: 2_9 | D19: 1201
A20: 2 | B20: 10 | C20: 2_10 | D20: 1395
A21: 2 | B21: 11 | C21: 2_11 | D21: 704
A22: 3 | B22: 1 | C22: 3_1 | D22: 225
A23: 3 | B23: 2 | C23: 3_2 | D23: 101
A24: 3 | B24: 4 | C24: 3_4 | D24: 72
A25: 3 | B25: 5 | C25: 3_5 | D25: 184
A26: 3 | B26: 6 | C26: 3_6 | D26: 278
A27: 3 | B27: 7 | C27: 3_7 | D27: 530
A28: 3 | B28: 8 | C28: 3_8 | D28: 387
A29: 3 | B29: 9 | C29: 3_9 | D29: 1118
A30: 3 | B30: 10 | C30: 3_10 | D30: 1313
A31: 3 | B31: 11 | C31: 3_11 | D31: 602
A32: 4 | B32: 1 | C32: 4_1 | D32: 285
A33: 4 | B33: 2 | C33: 4_2 | D33: 173
A34: 4 | B34: 3 | C34: 4_3 | D34: 72
A35: 4 | B35: 5 | C35: 4_5 | D35: 114
A36: 4 | B36: 6 | C36: 4_6 | D36: 202
A37: 4 | B37: 7 | C37: 4_7 | D37: 454
A38: 4 | B38: 8 | C38: 4_8 | D38: 588
A39: 4 | B39: 9 | C39: 4_9 | D39: 1029
A40: 4 | B40: 10 | C40: 4_10 | D40: 1223
A41: 4 | B41: 11 | C41: 4_11 | D41: 532
A42: 5 | B42: 1 | C42: 5_1 | D42: 397
A43: 5 | B43: 2 | C43: 5_2 | D43: 285
A44: 5 | B44: 3 | C44: 5_3 | D44: 184
A45: 5 | B45: 4 | C45: 5_4 | D45: 114
A46: 5 | B46: 6 | C46: 5_6 | D46: 89
A47: 5 | B47: 7 | C47: 5_7 | D47: 342
A48: 5 | B48: 8 | C48: 5_8 | D48: 475
A49: 5 | B49: 9 | C49: 5_9 | D49: 916
A50: 5 | B50: 10 | C50: 5_10 | D50: 1110
A51: 5 | B51: 11 | C51: 5_11 | D51: 420
A52: 6 | B52: 1 | C52: 6_1 | D52: 503
A53: 6 | B53: 2 | C53: 6_2 | D53: 374
A54: 6 | B54: 3 | C54: 6_3 | D54: 278
A55: 6 | B55: 4 | C55: 6_4 | D55: 202
A56: 6 | B56: 5 | C56: 6_5 | D56: 89
A57: 6 | B57: 7 | C57: 6_7 | D57: 252
A58: 6 | B58: 8 | C58: 6_8 | D58: 387
A59: 6 | B59: 9 | C59: 6_9 | D59: 840
A60: 6 | B60: 10 | C60: 6_10 | D60: 1035
A61: 6 | B61: 11 | C61: 6_11 | D61: 331
A62: 7 | B62: 1 | C62: 7_1 | D62: 738
A63: 7 | B63: 2 | C63: 7_2 | D63: 626
A64: 7 | B64: 3 | C64: 7_3 | D64: 530
A65: 7 | B65: 4 | C65: 7_4 | D65: 454
A66: 7 | B66: 5 | C66: 7_5 | D66: 342
A67: 7 | B67: 6 | C67: =INDIRECT("A"&ROW())&"_"&INDIRECT("B"&ROW()) -> 7_6 | D67: 252
A68: 7 | B68: 8 | C68: 7_8 | D68: 135
A69: 7 | B69: 9 | C69: 7_9 | D69: 588
A70: 7 | B70: 10 | C70: 7_10 | D70: 783
A71: 7 | B71: 11 | C71: 7_11 | D71: 575
A72: 8 | B72: 1 | C72: 8_1 | D72: 890
A73: 8 | B73: 2 | C73: 8_2 | D73: 760
A74: 8 | B74: 3 | C74: 8_3 | D74: 387
A75: 8 | B75: 4 | C75: 8_4 | D75: 588
A76: 8 | B76: 5 | C76: 8_5 | D76: 475
A77: 8 | B77: 6 | C77: 8_6 | D77: 387
A78: 8 | B78: 7 | C78: 8_7 | D78: 135
A79: 8 | B79: 9 | C79: 8_9 | D79: 453
A80: 8 | B80: 10 | C80: 8_10 | D80: 648
A81: 8 | B81: 11 | C81: 8_11 | D81: 709
A82: 9 | B82: 1 | C82: 9_1 | D82: 1343
A83: 9 | B83: 2 | C83: 9_2 | D83: 1201
A84: 9 | B84: 3 | C84: 9_3 | D84: 1118
A85: 9 | B85: 4 | C85: 9_4 | D85: 1029
A86: 9 | B86: 5 | C86: 9_5 | D86: 916
A87: 9 | B87: 6 | C87: 9_6 | D87: 840
A88: 9 | B88: 7 | C88: 9_7 | D88: 588
A89: 9 | B89: 8 | C89: 9_8 | D89: 453
A90: 9 | B90: 10 | C90: 9_10 | D90: 195
A91: 9 | B91: 11 | C91: 9_11 | D91: 1150
A92: 10 | B92: 1 | C92: 10_1 | D92: 1538
A93: 10 | B93: 2 | C93: 10_2 | D93: 1395
A94: 10 | B94: 3 | C94: 10_3 | D94: 1313
A95: 10 | B95: 4 | C95: 10_4 | D95: 1223
A96: 10 | B96: 5 | C96: 10_5 | D96: 1110
A97: 10 | B97: 6 | C97: 10_6 | D97: 1035
A98: 10 | B98: 7 | C98: 10_7 | D98: 783
A99: 10 | B99: 8 | C99: 10_8 | D99: 648
A100: 10 | B100: 9 | C100: 10_9 | D100: 195
A101: 10 | B101: 11 | C101: 10_11 | D101: 1344
A102: 11 | B102: 1 | C102: 11_1 | D102: 816
A103: 11 | B103: 2 | C103: 11_2 | D103: 704
A104: 11 | B104: 3 | C104: 11_3 | D104: 602
A105: 11 | B105: 4 | C105: 11_4 | D105: 532
A106: 11 | B106: 5 | C106: 11_5 | D106: 420
A107: 11 | B107: 6 | C107: 11_6 | D107: 331
A108: 11 | B108: 7 | C108: 11_7 | D108: 575
A109: 11 | B109: 8 | C109: 11_8 | D109: 709
A110: 11 | B110: 9 | C110: 11_9 | D110: 1150
A111: 11 | B111: 10 | C111: 11_10 | D111: 1344
C112: _
C113: _
C114: _
C115: _
C116: _
C117: _
C118: _
C119: _
C120: _
C121: _
C122: _
C123: _
C124: _
C125: _
C126: _
C127: _
C128: _
C129: _
C130: _
C131: =INDIRECT("A"&ROW())&"_"&INDIRECT("B"&ROW()) -> _
C132: _
C133: _
C134: _
C135: _
C136: _
C137: _
C138: _
C139: _
C140: _
C141: _
C142: _
C143: _
C144: _
C145: _
C146: _
C147: _
C148: _
C149: _
C150: _
C151: _
C152: _
C153: _
C154: _
C155: _
C156: _
C157: _
C158: _
C159: _
C160: _
C161: _
C162: _
C163: _
C164: _
C165: _
C166: _
C167: _
C168: _
C169: _
C170: _
C171: _
C172: _
C173: _
C174: _
C175: _
C176: _
C177: _
C178: _
C179: _
C180: _
C181: _
C182: _
C183: _
C184: _
C185: _
C186: _
C187: _
C188: _
C189: _
C190: _
C191: _
C192: _
C193: _
C194: _
C195: =INDIRECT("A"&ROW())&"_"&INDIRECT("B"&ROW()) -> _
C196: _
C197: _
C198: _
C199: _
C200: _
... 9801 more rows

Sheet Schiffstypen
A1: ID | B1: Bezeichnung
A2: 1 | B2: Europaschiff
A3: 2 | B3: Großmotorschiff
A4: 3 | B4: Jowi-Klasse

Sheet Fahrttypen
A1: ID | B1: Bezeichnung
A2: 1 | B2: Bergfahrt
A3: 2 | B3: Talfahrt
A4: 3 | B4: Kanalfahrt
